Workbook

Sheet 0-Instruções de preenchimento
A1: PLANO DE RECUPERAÇÃO FISCAL
A2: Instruções de preenchimento
A4: Orientações Gerais
A5: 1. Receitas
A6: As receitas consideram valores arrecadados.
A7: Não devem ser consideradas receitas com fonte de recurso RPPS.
A8: Os repasses para o Fundeb integram a base de receitas, e devem ser lançados na linha "Deduções para formação do Fundeb (IIa)".
A9: 2. Despesas
A10: Todas as despesas consideram valores empenhados.
A11: Não devem ser consideradas despesas com fonte de recursos RPPS.
A13: Instruções de preenchimento
A14: 1. Cenário Base
A15: Informar Exercício Corrente e Ano-base para a limitação de despesas (no exercício de 2021, o ano-base pode ser escolhido a partir de 2017).
A16: Preencher valores realizados até o exercício anterior, e projeções para o exercício atual e seguintes (substituir as fórmulas-padrão, que realizam projeção com base no IPCA e na variação do PIB real Nacional).
A17: Em alguns casos, são necessárias informações do exercício X-4, para algum cálculo que se dê de forma incremental (como Restos a Pagar).
A19: 2. Medidas a implementar
A20: Informar, para cada uma das medidas de ajuste a implementar constante da documentação descritiva do PRF (Notas Técnicas), os fluxos afetados (um por linha) e impactos esperados.
A21: O nome de cada fluxo afetado deve ser idêntico à linha correspondente nas planilhas "I-Cenário Base" e "III-Cenário Ajustado".
A23: 3. Vinculações
A24: Esta aba possibilita gerar os reflexos indiretos das medidas a implementar.
A25: Cada linha representa um "Fluxo afetado - reflexo" (Y), que será afetado na proporção indicada cada vez que uma medida trouxer impacto a um "Fluxo afetado pela medida"(X), podendo a proporção ser positiva ou negativa (caso em que um aumento do fluxo X gera redução no fluxo Y).
A26: Importante destacar que, caso haja mais de uma vinculação afetando o mesmo fluxo, o percentual incidente deve ser o final (percentual real), e não o percentual listado no normativo (percentual nominal). Esses percentuais podem ser diferentes consoante a ordem de aplicação. Exemplo: sobre uma receita incide 25% de transferências aos municípios e 20% de dedução do Fundeb - esses são os percentuais nominais. Entretanto, como é feita a dedução do montante transferido aos municípios antes da dedução do Fundeb, essa dedução, na verdade, é de 20% sobre os 75% restantes, ou seja, 15% sobre o total. Na coluna "Proporção" da vinculação do Fundeb, deve constar, portanto, 15%.
A27: Ao fim, pressionar o botão para executar a macro e gerar os reflexos das medidas a implementar.
A29: 4. Cenário Ajustado
A30: Os dados do Cenário Ajustado são obtidos automaticamente através da soma das projeções do Cenário Base com os impactos das Medidas a implementar e seus Reflexos.
A32: 5. Verificações
A33: A aba de verificações averigua: a) o cumprimento da limitação de despesas do inciso V do § 1º do artigo 2º da Lei Complementar nº 159/2017; e b) o atingimento do equilíbrio ao fim do Regime
A34: Para a verificação do cumprimento da limitação de despesas, devem ser informados dados do pagamento de passivos não financeiros e das despesas não incluídas no cálculo, referentes ao ano-base do cálculo da limitação e aos anos posteriores.
A35: O serviço da dívida por competência será informado pela STN.
A36: O respeito à limitação de despesas ao longo de todo o Regime é condição necessária à aprovação do PRF.
A37: Para a verificação das condições de equilíbrio, devem ser informadas as receitas e despesas extraordinárias não incluídas no cálculo do resultado primário para fins de apuração do equilíbrio, uma por linha (inserir linhas extras entre as já existentes, de forma a atualizar automaticamente a fórmula de soma das receitas e das despesas).
A39: 6. Parâmetros
A40: Na aba de parâmetros são informadas projeções de variáveis macroeconômicas úteis para a estimação de rubricas fiscais. Essas projeções, no entanto, poderão ser substituídas por outras que o Estado achar mais convenientes.
A42: Mapeamento de Contas RRF e Instruções
A43: Consultar a aba "VI-Referência".

Sheet I-Cenário Base
A1: PLANO DE RECUPERAÇÃO FISCAL
A2: Anexo I - Demonstrativo de Resultados Fiscais
A3: Cenário Base - Dados anuais em R$ milhões
A4: Receitas arrecadadas, brutas do repasse para o Fundeb Despesas empenhadas, inclusive transferências a Municípios
B5: 2017 | C5: 2018 | D5: 2019 | E5: 2020 | F5: 2021 | G5: 2022 | H5: 2023 | I5: 2024 | J5: 2025 | K5: 2026 | L5: 2027 | M5: 2028 | N5: 2029 | O5: 2030 | P5: 2031 | Q5: 2032
A6: ACIMA DA LINHA - RECEITAS E DESPESAS
A7: Receita Total (I) = (II+IX) | C7: =C8+C33 -> 26172.22006 | D7: 31437.7773 | E7: 31618.63724 | F7: 38672.95903 | G7: 47927.21772 | H7: 45393.98394 | I7: 45459.85561 | J7: 47591.09475 | K7: 49010.31286 | L7: 51477.80588 | M7: 54282.71023 | N7: 57181.86853 | O7: 60068.9049 | P7: 0 | Q7: 0
A8: Receitas Correntes (II) = (III+IV+V+VI+VII-IIa) | C8: =C9+C15+C18+C21+C27-C31 -> 25779.11936 | D8: 29384.08602 | E8: 31385.07991 | F8: 38323.94533 | G8: 44710.04618 | H8: 45296.1336 | I8: 45349.82465 | J8: 47537.13577 | K8: 48957.63866 | L8: 51423.67215 | M8: 54227.06113 | N8: 57124.87292 | O8: 60010.48549 | P8: 0 | Q8: 0
A9: Receitas Tributárias (III) | C9: =SUM(C10:C14) -> 20372.48076 | D9: =SUM(D10:D14) -> 23031.17015 | E9: 23762.7035 | F9: 30095.5821 | G9: =SUM(G10:G14) -> 32349.59164 | H9: =SUM(H10:H14) -> 32942.25748 | I9: 34642.92496 | J9: 36583.74932 | K9: 38493.07986 | L9: 40512.95149 | M9: 42673.29275 | N9: 44902.3512 | O9: 47282.19995 | P9: =SUM(P10:P14) -> 0 | Q9: 0
A10: ICMS | C10: 15691.23548 | D10: 17025.78628 | E10: 17816.87962 | F10: 23176.42498 | G10: 24065.86042 | H10: 23509.62189 | I10: =H10*(1+'V-Parâmetros'!O$6)*(1+'V-Parâmetros'!O$10) -> 24868.05486 | J10: =I10*(1+'V-Parâmetros'!P$6)*(1+'V-Parâmetros'!P$10) -> 26354.28372 | K10: =J10*(1+'V-Parâmetros'!Q$6)*(1+'V-Parâmetros'!Q$10) -> 27823.3951 | L10: =K10*(1+'V-Parâmetros'!R$6)*(1+'V-Parâmetros'!R$10) -> 29403.20747 | M10: =L10*(1+'V-Parâmetros'!S$6)*(1+'V-Parâmetros'!S$10) -> 31072.72159 | N10: =M10*(1+'V-Parâmetros'!T$6)*(1+'V-Parâmetros'!T$10) -> 32837.03072 | O10: =N10*(1+'V-Parâmetros'!U$6)*(1+'V-Parâmetros'!U$10) -> 34701.51733
A11: IPVA | C11: 1422.24023 | D11: 1574.87223 | E11: 1637.000209 | F11: 1825.803495 | G11: 2422.973133 | H11: 2974.910294 | I11: =H11*(1+'V-Parâmetros'!O$6)*(1+'V-Parâmetros'!O$10) -> 3146.80656 | J11: =I11*(1+'V-Parâmetros'!P$6)*(1+'V-Parâmetros'!P$10) -> 3334.874133 | K11: =J11*(1+'V-Parâmetros'!Q$6)*(1+'V-Parâmetros'!Q$10) -> 3520.775657 | L11: =K11*(1+'V-Parâmetros'!R$6)*(1+'V-Parâmetros'!R$10) -> 3720.685299 | M11: =L11*(1+'V-Parâmetros'!S$6)*(1+'V-Parâmetros'!S$10) -> 3931.94581 | N11: =M11*(1+'V-Parâmetros'!T$6)*(1+'V-Parâmetros'!T$10) -> 4155.201693 | O11: =N11*(1+'V-Parâmetros'!U$6)*(1+'V-Parâmetros'!U$10) -> 4391.134046
A12: ITCD | C12: 386.5556177 | D12: 307.3566877 | E12: 378.3874956 | F12: 705.7823233 | G12: 889.1213685 | H12: 1137.29409 | I12: =H12*(1+'V-Parâmetros'!O$6) -> 1175.962089 | J12: =I12*(1+'V-Parâmetros'!P$6) -> 1212.53451 | K12: =J12*(1+'V-Parâmetros'!Q$6) -> 1250.001827 | L12: =K12*(1+'V-Parâmetros'!R$6) -> 1287.501881 | M12: =L12*(1+'V-Parâmetros'!S$6) -> 1326.126938 | N12: =M12*(1+'V-Parâmetros'!T$6) -> 1365.910746 | O12: =N12*(1+'V-Parâmetros'!U$6) -> 1406.888068
A13: IRRF | C13: 1382.138709 | D13: 2083.036959 | E13: 1812.491461 | F13: 1850.487692 | G13: 2252.084875 | H13: 2393.38415 | I13: 2425.534795 | J13: 2561.364078 | K13: 2681.784998 | L13: 2787.920883 | M13: 2929.453382 | N13: 3028.771654 | O13: 3161.761035
A14: Outras Receitas Tributárias | C14: 1490.310721 | D14: 2040.117985 | E14: 2117.944719 | F14: 2537.083607 | G14: 2719.551847 | H14: 2927.047055 | I14: =H14*(1+'V-Parâmetros'!O$6) -> 3026.566655 | J14: =I14*(1+'V-Parâmetros'!P$6) -> 3120.692878 | K14: =J14*(1+'V-Parâmetros'!Q$6) -> 3217.122288 | L14: =K14*(1+'V-Parâmetros'!R$6) -> 3313.635956 | M14: =L14*(1+'V-Parâmetros'!S$6) -> 3413.045035 | N14: =M14*(1+'V-Parâmetros'!T$6) -> 3515.436386 | O14: =N14*(1+'V-Parâmetros'!U$6) -> 3620.899477
A15: Receitas de Contribuições (IV) | C15: =SUM(C16:C17) -> 0.01542287 | D15: =SUM(D16:D17) -> 0 | E15: 0 | F15: 362.6091254 | G15: =SUM(G16:G17) -> 399.5178892 | H15: =SUM(H16:H17) -> 410.8272167 | I15: =SUM(I16:I17) -> 443.952 | J15: 447.7540936 | K15: 451.3950001 | L15: 475.2079245 | M15: 505.2118275 | N15: 525.8161422 | O15: 554.5021203 | P15: =SUM(P16:P17) -> 0 | Q15: 0
A16: Receitas Previdenciárias (a) | C16: 0 | D16: 0 | E16: 0 | F16: 354.957104 | G16: 388.3658596 | H16: 398.9717415 | I16: 431.451 | J16: 434.4800817 | K16: 437.338574 | L16: 459.5560809 | M16: 488.4447412 | N16: 507.9338131 | O16: 535.5045485 | Q16: =P16*'V-Parâmetros'!W$7*(1+'V-Parâmetros'!W$10) -> 0
A17: Outras Receitas de Contribuições | C17: 0.01542287 | D17: 0 | E17: 0 | F17: 7.65202135 | G17: 11.15202955 | H17: 11.85547516 | I17: 12.501 | J17: 13.27401189 | K17: 14.05642613 | L17: 15.65184359 | M17: 16.76708633 | N17: 17.88232906 | O17: 18.9975718 | Q17: =P17*'V-Parâmetros'!W$7*(1+'V-Parâmetros'!W$10) -> 0
A18: Receita Patrimonial (V) | C18: =SUM(C19:C20) -> 196.1571392 | D18: =SUM(D19:D20) -> 276.890531 | E18: 228.4310876 | F18: 431.2002714 | G18: =SUM(G19:G20) -> 2644.065217 | H18: =SUM(H19:H20) -> 1703.388207 | I18: =SUM(I19:I20) -> 1339.696 | J18: 872.3087567 | K18: 537.2939489 | L18: 426.208219 | M18: 439.4111728 | N18: 453.5409739 | O18: 468.6626871 | P18: =SUM(P19:P20) -> 0 | Q18: 0
A19: Receita de Aplicações Financeiras (b) | C19: 145.9279496 | D19: 108.7184433 | E19: 75.4733083 | F19: 333.2249978 | G19: 1356.518926 | H19: 1570.622933 | I19: 1230.046 | J19: 706.2107816 | K19: 361.5545876 | L19: 238.1319545 | M19: 238.1319545 | N19: 238.1319545 | O19: 238.1319545
A20: Outras Receitas Patrimoniais | C20: 50.22918967 | D20: 168.1720876 | E20: 152.9577793 | F20: 97.97527355 | G20: 1287.546291 | H20: 132.7652738 | I20: 109.65 | J20: 166.0979751 | K20: 175.7393613 | L20: 188.0762645 | M20: 201.2792183 | N20: 215.4090194 | O20: 230.5307326
A21: Transferências Correntes (VI) | C21: =SUM(C22:C26) -> 5240.005174 | D21: 5976.906277 | E21: 7460.323387 | F21: 7978.987743 | G21: 9797.81311 | H21: 10712.42858 | I21: 9960.461994 | J21: 10899.77226 | K21: 11131.54112 | L21: 11759.1702 | M21: 12422.44253 | N21: 13123.24307 | O21: 13655.51117 | P21: 0 | Q21: 0
A22: Cota-Parte do FPE | C22: 2565.312233 | D22: 2753.70319 | E22: 2658.345076 | F22: 3712.026047 | G22: 4734.810488 | H22: 4988.959404 | I22: 5327.368 | J22: 5631.027761 | K22: 5959.316679 | L22: 6297.686681 | M22: 6655.26933 | N22: 7033.155523 | O22: 7432.498093
A23: Cota-Parte do IPI-Exp. (LC nº 61/1989) | C23: 130.6358302 | D23: 127.5996125 | E23: 114.2237063 | F23: 171.2949293 | G23: 150.1395945 | H23: 135.1582567 | I23: 157.436 | J23: 166.3425284 | K23: 175.4868048 | L23: 185.4509456 | M23: 195.9808503 | N23: 207.108643 | O23: 218.8682717
A24: Transferências do FUNDEB | C24: 1953.844607 | D24: 2146.264096 | E24: 2373.40386 | F24: 3006.138696 | G24: 3394.53342 | H24: 3311.34832 | I24: 3436.268994 | J24: 3668.838275 | K24: 3836.015073 | L24: 4049.539203 | M24: 4275.058688 | N24: 4513.25077 | O24: 4764.831025
A25: Royalties e Participações Especiais | C25: 72.66327967 | D25: 46.87769999 | E25: 36.72271543 | F25: 64.51271243 | G25: 0 | H25: 0 | I25: 0 | J25: 0 | K25: 0 | L25: 0 | M25: 0 | N25: 0 | O25: 0
A26: Outras Transferências Correntes | C26: 517.5492238 | D26: 902.4616792 | E26: 2277.628029 | F26: 1025.015358 | G26: 1518.329607 | H26: 2276.9626 | I26: 1039.389 | J26: 1433.563698 | K26: 1160.722563 | L26: 1226.493368 | M26: 1296.133661 | N26: 1369.72813 | O26: 1239.313782
A27: Demais Receitas Correntes (VII) | C27: =SUM(C28:C30) -> 2948.145582 | D27: =SUM(D28:D30) -> 3281.210214 | E27: 3658.914347 | F27: 4099.48645 | G27: 4626.491254 | H27: =SUM(H28:H30) -> 4701.213862 | I27: =SUM(I28:I30) -> 4331.96 | J27: 4466.111144 | K27: 4338.102278 | L27: 4577.53933 | M27: 4866.48205 | N27: 5171.875869 | O27: 5494.658034 | P27: =SUM(P28:P30) -> 0 | Q27: 0
A28: Outras Receitas Financeiras (c) | C28: 48.59661427 | D28: 48.21996096 | E28: 65.76250987 | F28: 63.54617501 | G28: 48.45793559 | H28: 41.522344 | I28: 43.844 | J28: 44.6347369 | K28: 44.56439431 | L28: 47.69281479 | M28: 51.04085039 | N28: 54.62391809 | O28: 58.45851714
A29: Compensações Financeiras entre o RGPS e o RPPS (d) | C29: 0 | D29: 0 | E29: 0 | F29: 0 | G29: 0.11091458 | H29: 0 | I29: 0 | J29: 0 | K29: 0 | L29: 0 | M29: 0 | N29: 0 | O29: 0
A30: Receitas Correntes Restantes | C30: 2899.548968 | D30: 3232.990253 | E30: 3593.151837 | F30: 4035.940275 | G30: 4577.922404 | H30: 4659.691518 | I30: 4288.116 | J30: 4421.476408 | K30: 4293.537884 | L30: 4529.846515 | M30: 4815.4412 | N30: 5117.251951 | O30: 5436.199517
A31: Deduções para formação do Fundeb (IIa) | C31: 2977.68471 | D31: 3182.091148 | E31: 3725.292411 | F31: 4643.920356 | G31: 5107.432935 | H31: =H10*0.15+H11*0.1+H12*0.2+H22*0.2+H23*0.15+696.82*0.15 -> 5173.981751 | I31: =I10*0.15+I11*0.1+I12*0.2+I22*0.2+I23*0.15 -> 5369.170304 | J31: =J10*0.15+J11*0.1+J12*0.2+J22*0.2+J23*0.15+348.44*0.15 -> 5732.559805 | K31: =K10*0.15+K11*0.1+K12*0.2+K22*0.2+K23*0.15 -> 5993.773552 | L31: 6327.405004 | M31: 6679.779201 | N31: 7051.954328 | O31: 7445.048476
A32: Receitas Primárias Correntes (VIII) = (II-b-c) | C32: =C8-C19-C28 -> 25584.5948 | D32: 29227.14762 | E32: 31243.8441 | F32: 37927.17416 | G32: 43305.06931 | H32: 43683.98832 | I32: 44075.93465 | J32: 46786.29025 | K32: 48551.51968 | L32: 51137.84738 | M32: 53937.88833 | N32: 56832.11705 | O32: 59713.89502 | P32: 0 | Q32: 0
A33: Receitas de Capital (IX) = (X+XI+XII+XIII+XIV) | C33: =C34+C35+C36+C39+C40 -> 393.1006974 | D33: =D34+D35+D36+D39+D40 -> 2053.691275 | E33: 233.5573215 | F33: 349.0137012 | G33: 3217.171544 | H33: =H34+H35+H36+H39+H40 -> 97.8503426 | I33: =I34+I35+I36+I39+I40 -> 110.0309543 | J33: 53.95897646 | K33: 52.67419531 | L33: 54.1337249 | M33: 55.6490942 | N33: 56.99560359 | O33: 58.41940939 | P33: =P34+P35+P36+P39+P40 -> 0 | Q33: 0
A34: Operações de Crédito (X) | C34: 173.3254687 | D34: 6.20657552 | E34: 30 | F34: 0 | G34: 2494.249732 | H34: 0 | I34: 0 | J34: 0 | K34: 0 | L34: 0 | M34: 0 | N34: 0 | O34: 0 | Q34: =P34*'V-Parâmetros'!W$7*(1+'V-Parâmetros'!W$10) -> 0
A35: Amortização de Empréstimos (XI) | C35: 12.70705799 | D35: 12.20109427 | E35: 12.5024523 | F35: 13.04545894 | G35: 13.53869195 | H35: 14.62721123 | I35: 14.99995433 | J35: 15.11201782 | K35: 14.18829092 | L35: 14.49324338 | M35: 14.81939823 | N35: 14.94101674 | O35: 15.10318494
A36: Alienação de Bens (XII) | C36: =SUM(C37:C38) -> 12.06115421 | D36: =SUM(D37:D38) -> 48.0638954 | E36: 0.95380949 | F36: 132.597763 | G36: 586.9045723 | H36: =SUM(H37:H38) -> 9.52604968 | I36: =SUM(I37:I38) -> 0 | J36: 0 | K36: 0 | L36: 0 | M36: 0 | N36: 0 | O36: 0 | P36: =SUM(P37:P38) -> 0 | Q36: 0
A37: Alienação de Bens Não Primária (e) | C37: 12.06115421 | D37: 0 | E37: 0 | F37: 0 | G37: 549.4763229 | H37: 0 | I37: 0 | J37: 0 | K37: 0 | L37: 0 | M37: 0 | N37: 0 | O37: 0
A38: Alienação de Bens Primária | C38: 0 | D38: 48.0638954 | E38: 0.95380949 | F38: 132.597763 | G38: 37.42824933 | H38: 9.52604968 | I38: 0 | J38: 0 | K38: 0 | L38: 0 | M38: 0 | N38: 0 | O38: 0
A39: Transferências de Capital (XIII) | C39: 146.1665413 | D39: 122.405886 | E39: 185.5377908 | F39: 191.4722791 | G39: 122.4335482 | H39: 73.62708169 | I39: 94.957 | J39: 38.76856179 | K39: 38.40297137 | L39: 39.55506051 | M39: 40.74171233 | N39: 41.9639637 | O39: 43.22288261
A40: Outras Receitas de Capital (XIV) | C40: =SUM(C41:C42) -> 48.84047523 | D40: =SUM(D41:D42) -> 1864.813824 | E40: 4.56326896 | F40: 11.89820018 | G40: 0.045 | H40: =SUM(H41:H42) -> 0.07 | I40: =SUM(I41:I42) -> 0.074 | J40: 0.07839685 | K40: 0.08293302 | L40: 0.0854210106 | M40: 0.08798364092 | N40: 0.09062315015 | O40: 0.09334184465 | P40: =SUM(P41:P42) -> 0 | Q40: 0
A41: Outras Receitas de Capital Não Primárias (f) | C41: 0 | D41: 0 | E41: 0 | F41: 0 | G41: 0 | H41: 0 | I41: 0 | J41: 0 | K41: 0 | L41: 0 | M41: 0 | N41: 0 | O41: 0
A42: Outras Receitas de Capital Primárias | C42: 48.84047523 | D42: 1864.813824 | E42: 4.56326896 | F42: 11.89820018 | G42: 0.045 | H42: 0.07 | I42: 0.074 | J42: 0.07839685 | K42: 0.08293302 | L42: 0.0854210106 | M42: 0.08798364092 | N42: 0.09062315015 | O42: 0.09334184465
A43: Receitas Primárias de Capital (XV) = (IX-X-XI-e-f) | C43: =C33-C34-C35-C37-C41 -> 195.0070165 | D43: =D33-D34-D35-D37-D41 -> 2035.283605 | E43: 191.0548692 | F43: 335.9682423 | G43: 159.9067975 | H43: =H33-H34-H35-H37-H41 -> 83.22313137 | I43: =I33-I34-I35-I37-I41 -> 95.031 | J43: 38.84695864 | K43: 38.48590439 | L43: 39.64048152 | M43: 40.82969597 | N43: 42.05458685 | O43: 43.31622445 | P43: =P33-P34-P35-P37-P41 -> 0 | Q43: 0
A44: RECEITA PRIMÁRIA TOTAL (XVI) = (VIII+XV) | C44: =C32+C43 -> 25779.60182 | D44: =D32+D43 -> 31262.43122 | E44: 31434.89896 | F44: 38263.1424 | G44: 43464.97611 | H44: =H32+H43 -> 43767.21145 | I44: 44170.96565 | J44: 46825.13721 | K44: 48590.00558 | L44: 51177.48787 | M44: 53978.71803 | N44: 56874.17164 | O44: 59757.21124 | P44: =P32+P43 -> 0 | Q44: 0
A45: Despesa Orçamentária (XVII) = (XVIII+XXIII) | C45: =C46+C58 -> 30274.4669 | D45: 31237.9397 | E45: 31219.0133 | F45: 37866.33132 | G45: 43405.1973 | H45: 44467.16659 | I45: 45876.15723 | J45: 48301.72973 | K45: 50284.98237 | L45: 52512.34886 | M45: 53733.24172 | N45: 55953.77847 | O45: 58283.65856 | P45: 0 | Q45: 0
A46: Despesas Correntes (XVIII) = (XIX+XX+XXI) | C46: =C47+C52+C53 -> 27831.68801 | D46: =D47+D52+D53 -> 29627.46156 | E46: 29116.48829 | F46: 33022.28489 | G46: 38177.27567 | H46: =H47+H52+H53 -> 40781.07801 | I46: 44292.02638 | J46: 46593.60985 | K46: 48199.57406 | L46: 49560.24852 | M46: 50522.22488 | N46: 51778.67211 | O46: 53680.24522 | P46: =P47+P52+P53 -> 0 | Q46: 0
A47: Pessoal e Encargos Sociais (XIX) | C47: =SUM(C48:C51) -> 15639.77621 | D47: =SUM(D48:D51) -> 16275.19938 | E47: 15159.28852 | F47: 16253.98278 | G47: 18648.93856 | H47: =SUM(H48:H51) -> 20134.70995 | I47: 22514.29834 | J47: 23595.5029 | K47: 24108.69447 | L47: 24262.00789 | M47: 24987.40005 | N47: 25075.83934 | O47: 25750.09977 | P47: =SUM(P48:P51) -> 0 | Q47: 0
A48: Ativo | C48: 10134.95894 | D48: 11626.36465 | E48: 10741.01102 | F48: 11056.49162 | G48: 12544.62652 | H48: 13386.73919 | I48: 15795.47857 | J48: 17040.12732 | K48: 17766.12259 | L48: 18048.66949 | M48: 18963.86842 | N48: 19146.99759 | O48: 19843.81862
A49: Inativos e Pensionistas | C49: 5217.248151 | D49: 3287.185851 | E49: 3832.442903 | F49: 4267.232428 | G49: 5154.006258 | H49: 5196.524291 | I49: 5499.333485 | J49: 5306.391446 | K49: 5059.891303 | L49: 4889.932629 | M49: 4658.044418 | N49: 4519.976581 | O49: 4452.699967
A50: Sentenças Judiciais - Pessoal | C50: 13.51619639 | D50: 4.89986096 | E50: 3.39285801 | F50: 544.4256598 | G50: 242.1215607 | H50: 801.5390299 | I50: 444.082 | J50: 449.4647734 | K50: 458.4560647 | L50: 474.454527 | M50: 491.0674354 | N50: 508.2127957 | O50: 525.9092435
A51: Outras Despesas com Pessoal | C51: 274.0529225 | D51: 1356.749019 | E51: 582.4417322 | F51: 385.8330741 | G51: 708.184215 | H51: 749.9074355 | I51: 775.4042883 | J51: 799.5193617 | K51: 824.2245099 | L51: 848.9512452 | M51: 874.4197826 | N51: 900.6523761 | O51: 927.6719474
A52: Juros e Encargos da Dívida (XX) | C52: 1151.80954 | D52: 1285.923427 | E52: 1081.109531 | F52: 72.01690213 | G52: 358.1340531 | H52: 581.1270751 | I52: 741.0115993 | J52: 861.6637114 | K52: 956.236834 | L52: 1008.244749 | M52: 1015.500778 | N52: 1006.352597 | O52: 989.9229227
A53: Outras Despesas Correntes (XXI) | C53: =SUM(C54:C56) -> 11040.10226 | D53: 12066.33875 | E53: 12876.09024 | F53: 16696.28521 | G53: 19170.20306 | H53: 20065.24099 | I53: 21036.71644 | J53: 22136.44324 | K53: 23134.64276 | L53: 24289.99589 | M53: 24519.32405 | N53: 25696.48018 | O53: 26940.22252 | P53: 0 | Q53: 0
A54: Transferências Constitucionais e Legais (g) | C54: 4467.796319 | D54: 4821.93118 | E54: 5039.920086 | F54: 6414.564957 | G54: 7107.399388 | H54: 7573.455184 | I54: 7833.345996 | J54: 8353.639628 | K54: 8764.118304 | L54: 9257.507253 | M54: 9783.148515 | N54: 10338.63569 | O54: 10925.66342
A55: Sentenças Judiciais - Outras Correntes | C55: 207.7974507 | D55: 370.6972197 | E55: 542.0565739 | F55: 745.765314 | G55: 750.3812759 | H55: 810.1046516 | I55: 1003.284149 | J55: 1042.123754 | K55: 1085.311496 | L55: 1184.728415 | M55: 293.3345058 | N55: 302.134541 | O55: 311.1985772
A56: Demais Despesas Correntes | C56: 6364.508491 | D56: 6873.71035 | E56: 7294.113584 | F56: 9535.954937 | G56: 11312.4224 | H56: 11681.68115 | I56: 12200.08629 | J56: 12740.67986 | K56: 13285.21296 | L56: 13847.76022 | M56: 14442.84103 | N56: 15055.70995 | O56: 15703.36052
A57: Despesas Primárias Correntes (XXII) = (XVIII-XX-h) | C57: =C46-C52 -> 26679.87847 | D57: 28341.53813 | E57: 28035.37876 | F57: 32950.26799 | G57: 37819.14162 | H57: 40199.95094 | I57: 43551.01478 | J57: 45731.94614 | K57: 47243.33723 | L57: 48552.00377 | M57: 49506.7241 | N57: 50772.31952 | O57: 52690.3223 | P57: 0 | Q57: 0
A58: Despesas de Capital (XXIII) = (XXIV+XXV+XXVI) | C58: =C59+C62+C66 -> 2442.778888 | D58: =D59+D62+D66 -> 1610.478144 | E58: 2102.525011 | F58: 4844.046427 | G58: 5227.921628 | H58: =H59+H62+H66 -> 3686.088578 | I58: =I59+I62+I66 -> 1584.130847 | J58: 1708.119877 | K58: 2085.408309 | L58: 2952.100338 | M58: 3211.016845 | N58: 4175.106361 | O58: =O59+O62+O66 -> 4603.413337 | P58: 0 | Q58: =Q59+Q62+Q66 -> 0
A59: Investimentos (XXIV) | C59: =SUM(C60:C61) -> 1566.834169 | D59: =SUM(D60:D61) -> 648.9104885 | E59: 923.1838539 | F59: 4586.263434 | G59: 2608.604831 | H59: =SUM(H60:H61) -> 3341.051072 | I59: =SUM(I60:I61) -> 1111.687132 | J59: 923.3047993 | K59: 1133.516118 | L59: 1785.152898 | M59: 1923.416691 | N59: 2760.164649 | O59: =SUM(O60:O61) -> 3018.784786 | P59: 0 | Q59: =SUM(Q60:Q61) -> 0
A60: Sentenças Judiciais - Investimentos | C60: 0 | D60: 0 | E60: 0 | F60: 0 | G60: 0 | H60: =G60*'V-Parâmetros'!N$7 -> 0 | I60: =H60*'V-Parâmetros'!O$7 -> 0 | J60: =I60*'V-Parâmetros'!P$7 -> 0 | K60: =J60*'V-Parâmetros'!Q$7 -> 0 | L60: =K60*'V-Parâmetros'!R$7 -> 0 | M60: =L60*'V-Parâmetros'!S$7 -> 0 | N60: =M60*'V-Parâmetros'!T$7 -> 0 | O60: =N60*'V-Parâmetros'!U$7 -> 0 | P60: =O60*'V-Parâmetros'!V$7 -> 0 | Q60: =P60*'V-Parâmetros'!W$7 -> 0
A61: Demais Investimentos | C61: 1566.834169 | D61: 648.9104885 | E61: 923.1838539 | F61: 4586.263434 | G61: 2608.604831 | H61: 3341.051072 | I61: 1111.687132 | J61: 923.3047993 | K61: 1133.516118 | L61: 1785.152898 | M61: 1923.416691 | N61: 2760.164649 | O61: 3018.784786
A62: Inversões Financeiras (XXV) | C62: =SUM(C63:C65) -> 86.51020666 | D62: =SUM(D63:D65) -> 66.52263375 | E62: 7.37670808 | F62: 184.0806356 | G62: 25.31551421 | H62: =SUM(H63:H65) -> 26.54331665 | I62: =SUM(I63:I65) -> 27.44578942 | J62: 28.29935347 | K62: 29.17380349 | L62: 30.04901759 | M62: 30.95048812 | N62: 31.87900276 | O62: =SUM(O63:O65) -> 32.83537285 | P62: 0 | Q62: =SUM(Q63:Q65) -> 0
A63: Inversões Financeiras Não Primárias (h) 1) | C63: 0 | D63: 0 | E63: 0 | F63: 0 | G63: 0 | H63: 0 | I63: 0 | J63: 0 | K63: 0 | L63: 0 | M63: 0 | N63: 0 | O63: 0 | P63: 0 | Q63: 0
A64: Sentenças Judiciais - Inversões | C64: 0 | D64: 0 | E64: 0 | F64: 0 | G64: 0 | H64: 0 | I64: 0 | J64: 0 | K64: 0 | L64: 0 | M64: 0 | N64: 0 | O64: 0 | P64: 0 | Q64: 0
A65: Demais Inversões Financeiras Primárias | C65: 86.51020666 | D65: 66.52263375 | E65: 7.37670808 | F65: 184.0806356 | G65: 25.31551421 | H65: =G65*'V-Parâmetros'!N7 -> 26.54331665 | I65: =H65*'V-Parâmetros'!O7 -> 27.44578942 | J65: =I65*'V-Parâmetros'!P7 -> 28.29935347 | K65: =J65*'V-Parâmetros'!Q7 -> 29.17380349 | L65: =K65*'V-Parâmetros'!R7 -> 30.04901759 | M65: =L65*'V-Parâmetros'!S7 -> 30.95048812 | N65: =M65*'V-Parâmetros'!T7 -> 31.87900276 | O65: =N65*'V-Parâmetros'!U7 -> 32.83537285
A66: Amortização da Dívida (XXVI) | C66: 789.4345115 | D66: =965.26746653-68.42749831-1.79494696 -> 895.0450213 | E66: =1175.48446491-1.65659849-1.86341711 -> 1171.964449 | F66: =75.24750677-1.5451496 -> 73.70235717 | G66: =2597.85067337-3.84939014 -> 2594.001283 | H66: 318.4941892 | I66: 444.9979259 | J66: 756.5157237 | K66: 922.7183873 | L66: 1136.898422 | M66: 1256.649666 | N66: 1383.062709 | O66: 1551.793178
A67: Despesas Primárias de Capital (XXVII) = (XXIII-h-XXVI) | C67: =C58-C63-C66 -> 1653.344376 | D67: =D58-D63-D66 -> 715.4331223 | E67: 930.560562 | F67: 4770.34407 | G67: 2633.920345 | H67: =H58-H63-H66 -> 3367.594388 | I67: =I58-I63-I66 -> 1139.132921 | J67: 951.6041528 | K67: 1162.689921 | L67: 1815.201916 | M67: 1954.367179 | N67: 2792.043652 | O67: =O58-O63-O66 -> 3051.620159 | P67: 0 | Q67: =Q58-Q63-Q66 -> 0
A68: DESPESA PRIMÁRIA ORÇAMENTÁRIA (XXVIII) = (XXII+XXVII) | C68: =C57+C67 -> 28333.22285 | D68: =D57+D67 -> 29056.97126 | E68: 28965.93932 | F68: 37720.61206 | G68: 40453.06196 | H68: =H57+H67 -> 43567.54533 | I68: =I57+I67 -> 44690.1477 | J68: 46683.55029 | K68: 48406.02715 | L68: 50367.20569 | M68: 51461.09128 | N68: 53564.36317 | O68: =O57+O67 -> 55741.94245 | P68: 0 | Q68: =Q57+Q67 -> 0
A69: Receitas Correntes Intraorçamentárias (exceto fonte RPPS) (XXIX) | C69: 14.69258681 | D69: 23.53352314 | E69: 21.81754593 | F69: 1.45438649 | G69: 5.70996484
A70: RECEITA CORRENTE LÍQUIDA (XXX) = (II-a-d-g-XXIX) | C70: =C8-C16-C29-C54-C69 -> 21296.63046 | D70: 24538.62132 | E70: 26323.34228 | F70: 31552.96888 | G70: 37208.46005 | H70: 37323.70667 | I70: =I8-I16-I29-I54-I69 -> 37085.02766 | J70: 38749.01606 | K70: 39756.18178 | L70: 41706.60882 | M70: 43955.46788 | N70: 46278.30342 | O70: 48549.31752 | P70: 0 | Q70: 0
A71: RESTOS A PAGAR
A72: Inscrições de Restos a Pagar (XXXI) = (i+l) | C72: =SUM(C73,C76) -> 2665.502636 | D72: =SUM(D73,D76) -> 2117.276816 | E72: 2947.82861 | F72: 3501.976581 | G72: 1637.873227 | H72: =SUM(H73,H76) -> 1744.476682 | I72: 1792.493475 | J72: 1891.20752 | K72: 2026.665184 | L72: 2165.971353 | M72: 2142.452801 | N72: 2172.665198 | O72: 2072.439425 | P72: =SUM(P73,P76) -> 0 | Q72: 0
A73: Inscrição de RAP Processados (i) | C73: =SUM(C74:C75) -> 1951.507521 | D73: =SUM(D74:D75) -> 1423.311229 | E73: 2322.600243 | F73: 177.1702728 | G73: 125.0173809 | H73: =SUM(H74:H75) -> 116.4341374 | I73: 122.2986172 | J73: 145.2741865 | K73: 211.9729625 | L73: 273.9776003 | M73: 214.0302715 | N73: 169.2152068 | O73: 0 | P73: =SUM(P74:P75) -> 0 | Q73: 0
A74: Inscrição de RAP Processados Primários (j) | C74: 1888.351557 | D74: 287.7707765 | E74: 154.6543957 | F74: 177.1075728 | G74: 125.0160115 | H74: =IF(H7<(H45+H83),IF(H45>H7,H45-H7,0)*(G74/G72)+H83*(G74/G72),0) -> 116.432862 | I74: 122.2972776 | J74: 145.2725952 | K74: 211.9706407 | L74: 273.9745993 | M74: 214.0279272 | N74: 169.2133534 | O74: 0
A75: Inscrição de RAP Processados Não Primários (k) | C75: 63.15596424 | D75: 1135.540453 | E75: 2167.945847 | F75: 0.06270006 | G75: 0.00136935 | H75: =IF(H7<(H45+H83),IF(H45>H7,H45-H7,0)*(G75/G72)+H83*(G75/G72),0) -> 0.001275335356 | I75: 0.001339570629 | J75: 0.001591228402 | K75: 0.002321798571 | L75: 0.003000952542 | M75: 0.002344332846 | N75: 0.00185346103 | O75: 0
A76: Inscrição de RAP Não Processados (l) | C76: =SUM(C77:C78) -> 713.9951149 | D76: =SUM(D77:D78) -> 693.9655869 | E76: 625.2283673 | F76: 3324.806308 | G76: 1512.855846 | H76: =SUM(H77:H78) -> 1628.042544 | I76: 1670.194858 | J76: 1745.933333 | K76: 1814.692221 | L76: 1891.993753 | M76: 1928.422529 | N76: 2003.449991 | O76: 2072.439425 | P76: =SUM(P77:P78) -> 0 | Q76: 0
A77: Inscrição de RAP Não Processados Primários (m) | C77: 694.1133156 | D77: 681.1902263 | E77: 619.6061813 | F77: 3314.901793 | G77: 1504.011464 | H77: =(G77/G$68)*H$68 -> 1619.805386 | I77: =(H77/H$68)*I$68 -> 1661.542816 | J77: 1735.655879 | K77: 1799.696147 | L77: 1872.611147 | M77: 1913.280911 | N77: 1991.478824 | O77: 2072.439425
A78: Inscrição de RAP Não Processados Não Primários (n) | C78: 19.88179928 | D78: 12.77536059 | E78: 5.62218601 | F78: 9.90451508 | G78: 8.84438216 | H78: =IF(H7<(H45+H83),IF(H45>H7,H45-H7,0)*(G78/G72)+H83*(G78/G72),0) -> 8.237158706 | I78: 8.652042626 | J78: 10.27745434 | K78: 14.99607395 | L78: 19.38260571 | M78: 15.14161872 | N78: 11.9711671 | O78: 0
A79: Cancelamentos de Restos a Pagar (XXXII) = (o+p) | C79: =SUM(C80:C81) -> 540.8099555 | D79: =SUM(D80:D81) -> 426.0106853 | E79: 955.890067 | F79: 3783.141112 | G79: 637.984298 | H79: =SUM(H80:H81) -> 381.4166241 | I79: 368.0550548 | J79: 366.8846565 | K79: 384.1185219 | L79: 412.3104811 | M79: 442.2961992 | N79: 441.1550805 | O79: 444.2707907 | P79: =SUM(P80:P81) -> 0 | Q79: 0
A80: Cancelamento de RAP Processados (o) | C80: 53.0851353 | D80: 180.5449525 | E80: 403.5818076 | F80: 3546.263065 | G80: 105.4354007 | H80: =IFERROR(G86*(G80/F86),0) -> 52.58765428 | I80: 110.1052451 | J80: 102.256163 | K80: 107.4898965 | L80: 124.7875814 | M80: 142.5255143 | N80: 135.6125587 | O80: 126.8407913
A81: Cancelamento de RAP Não Processados (p) | C81: 487.7248202 | D81: 245.4657328 | E81: 552.3082595 | F81: 236.8780478 | G81: 532.5488973 | H81: 328.8289698 | I81: 257.9498097 | J81: 264.6284935 | K81: 276.6286254 | L81: 287.5228997 | M81: 299.7706849 | N81: 305.5425217 | O81: 317.4299995
A82: Liquidação de Restos a Pagar Não Processados (XXXIII) | C82: 279.2748867 | D82: 288.1449361 | E82: 288.5164681 | F82: 386.2241701 | G82: 2266.079206 | H82: =MAX(G87-H81,0) -> 1746.565283 | I82: 1370.092735 | J82: 1405.566365 | K82: 1469.304708 | L82: 1527.169322 | M82: 1592.223068 | N82: 1622.880008 | O82: 1686.019992
A83: Pagamento de Restos a Pagar Primário (XXXIV) | C83: 1727.802605 | D83: 1223.954772 | E83: 657.600605 | F83: 671.4983405 | G83: 2535.06102 | H83: =IFERROR((G83/F85)*G85,0) -> 1525.422745 | I83: =IFERROR((H83/G85)*H85,0) -> 1416.039744 | J83: =IFERROR((I83/H85)*I85,0) -> 1418.604394 | K83: =IFERROR((J83/I85)*J85,0) -> 1484.835599 | L83: =IFERROR((K83/J85)*K85,0) -> 1584.946113 | M83: =IFERROR((L83/K85)*L85,0) -> 1692.04868 | N83: =IFERROR((M83/L85)*M85,0) -> 1693.851955 | O83: =IFERROR((N83/M85)*N85,0) -> 1714.984862
A84: Pagamento de Restos a Pagar Não Primário (XXXV) | C84: 115.2812712 | D84: 71.46203208 | E84: 20.85871416 | F84: 7.75551161 | G84: 8.01800942 | H84: =IFERROR((G84/F85)*G85,0) -> 4.824678318 | I84: =IFERROR((H84/G85)*H85,0) -> 4.478716654 | J84: =IFERROR((I84/H85)*I85,0) -> 4.486828246 | K84: =IFERROR((J84/I85)*J85,0) -> 4.696307396 | L84: =IFERROR((K84/J85)*K85,0) -> 5.012941606 | M84: =IFERROR((L84/K85)*L85,0) -> 5.351690608 | N84: =IFERROR((M84/L85)*M85,0) -> 5.357394092 | O84: =IFERROR((N84/M85)*N85,0) -> 5.424234236
A85: ESTOQUE DE RESTOS A PAGAR (XXXVI) = (XXXVII+XXXVIII) | B85: =B86+B87 -> 2844.216334 | C85: =SUM(C86:C87) -> 3125.825138 | D85: =SUM(D86:D87) -> 3521.674465 | E85: 4835.153689 | F85: 3874.735305 | G85: =SUM(G86:G87) -> 2331.545205 | H85: =SUM(H86:H87) -> 2164.357839 | I85: 2168.277799 | J85: 2269.50944 | K85: 2422.524196 | L85: 2586.226014 | M85: 2588.982246 | N85: 2621.283014 | O85: 2529.042553 | P85: =SUM(P86:P87) -> 2529.042553 | Q85: 2529.042553
A86: Estoque de RAP Processados (XXXVII) = XXXVII(t-1) + (i-o+XXXIII-XXXIV-XXXV) | B86: 2076.507879 | C86: =B86+C73-C80+C82-C83-C84 -> 2411.121276 | D86: =C86+D73-D80+D82-D83-D84 -> 2646.615685 | E86: =D86+E73-E80+E82-E83-E84 -> 4175.691269 | F86: =E86+F73-F80+F82-F83-F84 -> 513.568795 | G86: =F86+G73-G80+G82-G83-G84 -> 256.1509518 | H86: =G86+H73-H80+H82-H83-H84 -> 536.3152949 | I86: =H86+I73-I80+I82-I83-I84 -> 498.0829406 | J86: =I86+J73-J80+J82-J83-J84 -> 523.5761069 | K86: =J86+K73-K80+K82-K83-K84 -> 607.8319749 | L86: =K86+L73-L80+L82-L83-L84 -> 694.2322611 | M86: =L86+M73-M80+M82-M83-M84 -> 660.5597162 | N86: =M86+N73-N80+N82-N83-N84 -> 617.8330228 | O86: =N86+O73-O80+O82-O83-O84 -> 456.6031275 | P86: 456.6031275 | Q86: 456.6031275
A87: Estoque de RAP Não Processados (XXXVIII) = XXXVIII(t-1) + (l-p-XXXIII) | B87: 767.7084547 | C87: =B87+C76-C81-C82 -> 714.7038626 | D87: =C87+D76-D81-D82 -> 875.0587807 | E87: =D87+E76-E81-E82 -> 659.4624205 | F87: =E87+F76-F81-F82 -> 3361.16651 | G87: =F87+G76-G81-G82 -> 2075.394253 | H87: =G87+H76-H81-H82 -> 1628.042544 | I87: =H87+I76-I81-I82 -> 1670.194858 | J87: =I87+J76-J81-J82 -> 1745.933333 | K87: =J87+K76-K81-K82 -> 1814.692221 | L87: =K87+L76-L81-L82 -> 1891.993753 | M87: =L87+M76-M81-M82 -> 1928.422529 | N87: =M87+N76-N81-N82 -> 2003.449991 | O87: =N87+O76-O81-O82 -> 2072.439425 | P87: 2072.439425 | Q87: 2072.439425
A88: ESTOQUE DE RESTOS A PAGAR / RECEITA CORRENTE LÍQUIDA (XXXVI/XXX) | C88: =IFERROR(C85/C$70,0) -> 0.146775573 | D88: =IFERROR(D85/D$70,0) -> 0.1435155798 | E88: 0.1836831219 | F88: 0.1228009738 | G88: =IFERROR(G85/G$70,0) -> 0.0626616958 | H88: =IFERROR(H85/H$70,0) -> 0.05798882352 | I88: 0.05846774118 | J88: 0.05856947275 | K88: 0.06093452861 | L88: 0.06200998084 | M88: 0.05890011802 | N88: 0.05664172669 | O88: 0.05209223696 | P88: =IFERROR(P85/P$70,0) -> 0 | Q88: 0
A89: RAP Processados / RCL (XXXVII/XXX) | C89: =IFERROR(C86/C$70,0) -> 0.1132160921 | D89: 0.1078551093 | E89: 0.1586307401 | F89: 0.01627640166 | G89: =IFERROR(G86/G$70,0) -> 0.006884212661 | H89: =IFERROR(H86/H$70,0) -> 0.01436929348 | I89: 0.01343083643 | J89: 0.01351198456 | K89: 0.01528899275 | L89: 0.01664561758 | M89: 0.0150279305 | N89: 0.01335038187 | O89: 0.00940493401 | P89: =IFERROR(P86/P$70,0) -> 0 | Q89: 0
A90: RAP Não Processados / RCL (XXXVIII/XXX) | C90: 0.03355948088 | D90: 0.03566047046 | E90: 0.02505238178 | F90: 0.1065245722 | G90: =IFERROR(G87/G$70,0) -> 0.05577748314 | H90: =IFERROR(H87/H$70,0) -> 0.04361953004 | I90: 0.04503690475 | J90: 0.04505748819 | K90: 0.04564553586 | L90: 0.04536436326 | M90: 0.04387218752 | N90: 0.04329134482 | O90: 0.04268730295 | P90: =IFERROR(P87/P$70,0) -> 0 | Q90: 0
A91: DESPESA PRIMÁRIA (XXXIX) = (XXVIII-j-m+XXXIV) | C91: =C68-C74-C77+C83 -> 27478.56058 | D91: =D68-D74-D77+D83 -> 29311.96503 | E91: 28849.27935 | F91: 34900.10103 | G91: =G68-G74-G77+G83 -> 41359.09551 | H91: =H68-H74-H77+H83 -> 43356.72982 | I91: 44322.34735 | J91: 46221.22621 | K91: 47879.19596 | L91: 49805.56606 | M91: 51025.83112 | N91: 53097.52295 | O91: 55384.48789 | P91: =P68-P74-P77+P83 -> 0 | Q91: 0
A92: Demais Despesas Primárias (XL) 2)
A93: DESPESA PRIMÁRIA TOTAL (XLI) = (XXXIX+XL) | C93: =C91+C92 -> 27478.56058 | D93: =D91+D92 -> 29311.96503 | E93: 28849.27935 | F93: 34900.10103 | G93: =G91+G92 -> 41359.09551 | H93: =H91+H92 -> 43356.72982 | I93: =I91+I92 -> 44322.34735 | J93: 46221.22621 | K93: 47879.19596 | L93: 49805.56606 | M93: 51025.83112 | N93: 53097.52295 | O93: 55384.48789 | P93: =P91+P92 -> 0 | Q93: 0
A94: RESULTADO PRIMÁRIO
A95: RESULTADO PRIMÁRIO (XLII) = (XVI-XLI) | C95: =C44-C93 -> -1698.958762 | D95: 1950.466195 | E95: 2585.619615 | F95: 3363.041369 | G95: 2105.880606 | H95: 410.4816286 | I95: -151.3816986 | J95: 603.9109975 | K95: 710.8096209 | L95: 1371.921809 | M95: 2952.886905 | N95: 3776.648692 | O95: 4372.723351 | P95: 0 | Q95: 0
A96: Juros e Encargos da Dívida (XX) | C96: =C52 -> 1151.80954 | D96: 1285.923427 | E96: 1081.109531 | F96: 72.01690213 | G96: 358.1340531 | H96: 581.1270751 | I96: 741.0115993 | J96: 861.6637114 | K96: 956.236834 | L96: 1008.244749 | M96: 1015.500778 | N96: 1006.352597 | O96: 989.9229227 | P96: 0 | Q96: 0
A97: Amortização da Dívida (XXVI) | C97: =C66 -> 789.4345115 | D97: =D66 -> 895.0450213 | E97: 1171.964449 | F97: 73.70235717 | G97: 2594.001283 | H97: 318.4941892 | I97: 444.9979259 | J97: 756.5157237 | K97: 922.7183873 | L97: 1136.898422 | M97: 1256.649666 | N97: 1383.062709 | O97: 1551.793178 | P97: =P66 -> 0 | Q97: 0
A98: Inversões Financeiras Não Primárias (h) 1) | C98: =C63 -> 0 | D98: 0 | E98: 0 | F98: 0 | G98: 0 | H98: 0 | I98: 0 | J98: 0 | K98: 0 | L98: 0 | M98: 0 | N98: 0 | O98: 0 | P98: 0 | Q98: 0
A99: Receita de Aplicações Financeiras (b) | C99: =C19 -> 145.9279496 | D99: 108.7184433 | E99: 75.4733083 | F99: 333.2249978 | G99: 1356.518926 | H99: 1570.622933 | I99: 1230.046 | J99: 706.2107816 | K99: 361.5545876 | L99: 238.1319545 | M99: 238.1319545 | N99: 238.1319545 | O99: 238.1319545 | P99: 0 | Q99: 0
A100: Outras Receitas Financeiras (c) | C100: =C28 -> 48.59661427 | D100: 48.21996096 | E100: 65.76250987 | F100: 63.54617501 | G100: 48.45793559 | H100: 41.522344 | I100: 43.844 | J100: 44.6347369 | K100: 44.56439431 | L100: 47.69281479 | M100: 51.04085039 | N100: 54.62391809 | O100: 58.45851714 | P100: 0 | Q100: 0
A101: Outras Receitas de Capital Não Primárias (f) | C101: =C41 -> 0 | D101: 0 | E101: 0 | F101: 0 | G101: 0 | H101: 0 | I101: 0 | J101: 0 | K101: 0 | L101: 0 | M101: 0 | N101: 0 | O101: 0 | P101: 0 | Q101: 0
A102: Amortização de Empréstimos (XI) | C102: =C35 -> 12.70705799 | D102: 12.20109427 | E102: 12.5024523 | F102: 13.04545894 | G102: 13.53869195 | H102: 14.62721123 | I102: 14.99995433 | J102: 15.11201782 | K102: 14.18829092 | L102: 14.49324338 | M102: 14.81939823 | N102: 14.94101674 | O102: 15.10318494 | P102: 0 | Q102: 0
A103: Despesa Financeira Líquida (XLIII) = (XX+XXVI+h-k-n+XXXV-b-c-f-XI) | C103: =C96+C97+C98-C75-C78+C84-C99-C100-C101-C102 -> 1766.255938 | D103: 934.9751681 | E103: -53.37360926 | F103: -266.309076 | G103: 1532.792041 | H103: -730.5649799 | I103: -107.0550946 | J103: 846.4296815 | K103: 1448.34586 | L103: 1830.452493 | M103: 1958.365968 | N103: 2075.102791 | O103: 2235.446678 | P103: 0 | Q103: 0
A104: NECESSIDADE DE FINANCIAMENTO (XLIV) = (XLIII-XLII) | C104: =C103-C95 -> 3465.214699 | D104: =D103-D95 -> -1015.491027 | E104: -2638.993224 | F104: -3629.350445 | G104: -573.0885656 | H104: -1141.046609 | I104: 44.32660404 | J104: 242.518684 | K104: 737.5362393 | L104: 458.5306832 | M104: -994.5209364 | N104: -1701.545901 | O104: -2137.276672 | P104: 0 | Q104: 0
A105: Operações de Crédito (X) | C105: =C34 -> 173.3254687 | D105: 6.20657552 | E105: 30 | F105: 0 | G105: 2494.249732 | H105: 0 | I105: 0 | J105: 0 | K105: 0 | L105: 0 | M105: 0 | N105: 0 | O105: 0 | P105: 0 | Q105: 0
A106: Alienação de Bens Não Primária (e) | C106: =C37 -> 12.06115421 | D106: 0 | E106: 0 | F106: 0 | G106: 549.4763229 | H106: 0 | I106: 0 | J106: 0 | K106: 0 | L106: 0 | M106: 0 | N106: 0 | O106: 0 | P106: 0 | Q106: 0
A107: Fontes de Financiamento (XLV) = (X+e) | C107: =C105+C106 -> 185.3866229 | D107: =D105+D106 -> 6.20657552 | E107: 30 | F107: 0 | G107: =G105+G106 -> 3043.726055 | H107: =H105+H106 -> 0 | I107: 0 | J107: 0 | K107: 0 | L107: 0 | M107: 0 | N107: 0 | O107: 0 | P107: =P105+P106 -> 0 | Q107: 0
A108: Outros Fluxos de Caixa (XLVI)
A109: FLUXO DE CAIXA (XLVII) = (XLV-XLIV+XLVI) | C109: =C107-C104+C108 -> -3279.828076 | D109: 1021.697602 | E109: 2668.993224 | F109: 3629.350445 | G109: =G107-G104+G108 -> 3616.81462 | H109: =H107-H104+H108 -> 1141.046609 | I109: =I107-I104+I108 -> -44.32660404 | J109: -242.518684 | K109: -737.5362393 | L109: -458.5306832 | M109: 994.5209364 | N109: 1701.545901 | O109: 2137.276672 | P109: =P107-P104+P108 -> 0 | Q109: 0
A110: 1) Corresponde ao somatório de Concessão de Empréstimos e Financiamentos, Aquisição de Título de Capital já Integralizado e Aquisição de Título de Crédito.
A111: 2) As Demais Despesas Primárias são despesas que compõem o resultado primário por caixa, mas não transitam pelo orçamento.

Sheet II-a) Medidas a implementar
A1: PLANO DE RECUPERAÇÃO FISCAL
A2: Anexo II-a) - Medidas de Ajuste Fiscal a implementar no Regime
D4: Impacto Esperado
A5: Referência | B5: Descrição | C5: Fluxo Afetado | D5: ='I-Cenário Base'!G5 -> 2022 | E5: ='I-Cenário Base'!H5 -> 2023 | F5: ='I-Cenário Base'!I5 -> 2024 | G5: ='I-Cenário Base'!J5 -> 2025 | H5: ='I-Cenário Base'!K5 -> 2026 | I5: ='I-Cenário Base'!L5 -> 2027 | J5: ='I-Cenário Base'!M5 -> 2028 | K5: ='I-Cenário Base'!N5 -> 2029 | L5: ='I-Cenário Base'!O5 -> 2030 | M5: ='I-Cenário Base'!P5 -> 2031 | N5: ='I-Cenário Base'!Q5 -> 2032
A6: 1 | B6: Alienação de bens imóveis | C6: Alienação de Bens Primária | D6: 0 | E6: 0 | F6: 70 | G6: 10 | H6: 10 | I6: 0 | J6: 0 | K6: 0 | L6: 0
A7: 2 | B7: Privatização da CELGPAR | C7: Outras Receitas de Capital Não Primárias (f) | D7: 0 | E7: 0 | F7: 0 | G7: 450 | H7: 0 | I7: 0 | J7: 0 | K7: 0 | L7: 0
A8: 3 | B8: Operação de Crédito Externa - BID Profisco III | C8: Operações de Crédito (X) | D8: 0 | E8: 0 | F8: 0 | G8: 83.2459125 | H8: 167.8237596 | I8: 169.8216615 | J8: 84.91083075 | K8: 0 | L8: 0
A9: 4 | B9: Operação de Crédito Externa - BID Profisco III | C9: Juros e Encargos da Dívida (XX) | D9: 0 | E9: 0 | F9: 0 | G9: 1.040573906 | H9: 9.50653641 | I9: 19.60573262 | J9: 29.87824609 | K9: 31.39624396 | L9: 29.91872603
A10: 5 | B10: Operação de Crédito Externa - BID Profisco III | C10: Amortização da Dívida (XXVI) | D10: 0 | E10: 0 | F10: 0 | G10: 0 | H10: 0 | I10: 0 | J10: 11.57874965 | K10: 23.1574993 | L10: 23.1574993
A11: 6 | B11: Termo Aditivo art. 4º-A, inciso I, Alínea "a" da LC nº 156/2016 | C11: Juros e Encargos da Dívida (XX) | D11: 0 | E11: 0 | F11: 1.632506922 | G11: 6.392162838 | H11: 9.198309793 | I11: 12.13060274 | J11: 12.77484907 | K11: 13.12458507 | L11: 13.35915642
A12: 7 | B12: Termo Aditivo art. 4º-A, inciso I, Alínea "a" da LC nº 156/2016 | C12: Amortização da Dívida (XXVI) | D12: 0 | E12: 0 | F12: 0.03310904067 | G12: 0.2738405475 | H12: 0.5420251382 | I12: 0.8097132283 | J12: 3.490214039 | K12: 6.582964514 | L12: 9.90131815

Sheet II-b) Vinculos
A1: PLANO DE RECUPERAÇÃO FISCAL
A2: Anexo II-b) Vinculações para Reflexos das Medidas de Ajuste Fiscal a implementar
A3: * quando concluir o preenchimento das abas "II - Medidas a implementar" e "II-a) Vinculações", executar a macro para gerar os Reflexos:
A5: Sequencial | B5: Medida (nº Referência) ou Fluxo afetado pela medida | C5: Reflexo | D5: Fluxo afetado - reflexo | E5: Proporção | F5: Base legal

Sheet II-c) Reflexos
A1: PLANO DE RECUPERAÇÃO FISCAL
A2: Anexo II-c) - Reflexos das Medidas de Ajuste Fiscal a implementar
F4: Impacto Esperado
A5: Referência - original | B5: Fluxo afetado pela medida | C5: Reflexo | D5: Fluxo afetado - reflexo | E5: Proporção | F5: ='I-Cenário Base'!G5 -> 2022 | G5: ='I-Cenário Base'!H5 -> 2023 | H5: ='I-Cenário Base'!I5 -> 2024 | I5: ='I-Cenário Base'!J5 -> 2025 | J5: ='I-Cenário Base'!K5 -> 2026 | K5: ='I-Cenário Base'!L5 -> 2027 | L5: ='I-Cenário Base'!M5 -> 2028 | M5: ='I-Cenário Base'!N5 -> 2029 | N5: ='I-Cenário Base'!O5 -> 2030 | O5: ='I-Cenário Base'!P5 -> 2031 | P5: ='I-Cenário Base'!Q5 -> 2032

Sheet III-Cenário Ajustado
A1: PLANO DE RECUPERAÇÃO FISCAL
A2: Anexo III - Demonstrativo de Resultados Fiscais
A3: Cenário com medidas de ajuste - Dados anuais em R$ milhões | E3: 2 | F3: 3 | G3: 4 | H3: 5 | I3: 6 | J3: 7 | K3: 8
A4: Receitas arrecadadas, brutas do repasse para o Fundeb Despesas empenhadas e transferências a Municípios
B5: 2022 | C5: 2023 | D5: 2024 | E5: 2025 | F5: 2026 | G5: 2027 | H5: 2028 | I5: 2029 | J5: 2030 | K5: 2031 | L5: 2032
A6: ACIMA DA LINHA - RECEITAS E DESPESAS
A7: Receita Total (I) = (II+IX) | B7: =B8+B33 -> 47927.21772 | C7: 45393.98394 | D7: 45529.85561 | E7: 48134.34066 | F7: 49188.13662 | G7: 51647.62754 | H7: 54367.62106 | I7: 57181.86853 | J7: 60068.9049 | K7: 0 | L7: 0
A8: Receitas Correntes (II) = (III+IV+V+VI+VII-IIa) | B8: =B9+B15+B18+B21+B27-B31 -> 44710.04618 | C8: 45296.1336 | D8: 45349.82465 | E8: 47537.13577 | F8: 48957.63866 | G8: 51423.67215 | H8: 54227.06113 | I8: 57124.87292 | J8: 60010.48549 | K8: 0 | L8: 0
A9: Receitas Tributárias (III) | B9: =SUM(B10:B14) -> 32349.59164 | C9: =SUM(C10:C14) -> 32942.25748 | D9: 34642.92496 | E9: 36583.74932 | F9: 38493.07986 | G9: 40512.95149 | H9: 42673.29275 | I9: 44902.3512 | J9: 47282.19995 | K9: =SUM(K10:K14) -> 0 | L9: 0
A10: ICMS | B10: ='I-Cenário Base'!G10+SUMIF('II-a) Medidas a implementar'!$C:$C,$A10,'II-a) Medidas a implementar'!D:D)+SUMIF('II-c) Reflexos'!$D:$D,$A10,'II-c) Reflexos'!F:F) -> 24065.86042 | C10: ='I-Cenário Base'!H10+SUMIF('II-a) Medidas a implementar'!$C:$C,$A10,'II-a) Medidas a implementar'!E:E)+SUMIF('II-c) Reflexos'!$D:$D,$A10,'II-c) Reflexos'!G:G) -> 23509.62189 | D10: ='I-Cenário Base'!I10+SUMIF('II-a) Medidas a implementar'!$C:$C,$A10,'II-a) Medidas a implementar'!F:F)+SUMIF('II-c) Reflexos'!$D:$D,$A10,'II-c) Reflexos'!H:H) -> 24868.05486 | E10: ='I-Cenário Base'!J10+SUMIF('II-a) Medidas a implementar'!$C:$C,$A10,'II-a) Medidas a implementar'!G:G)+SUMIF('II-c) Reflexos'!$D:$D,$A10,'II-c) Reflexos'!I:I) -> 26354.28372 | F10: ='I-Cenário Base'!K10+SUMIF('II-a) Medidas a implementar'!$C:$C,$A10,'II-a) Medidas a implementar'!H:H)+SUMIF('II-c) Reflexos'!$D:$D,$A10,'II-c) Reflexos'!J:J) -> 27823.3951 | G10: ='I-Cenário Base'!L10+SUMIF('II-a) Medidas a implementar'!$C:$C,$A10,'II-a) Medidas a implementar'!I:I)+SUMIF('II-c) Reflexos'!$D:$D,$A10,'II-c) Reflexos'!K:K) -> 29403.20747 | H10: ='I-Cenário Base'!M10+SUMIF('II-a) Medidas a implementar'!$C:$C,$A10,'II-a) Medidas a implementar'!J:J)+SUMIF('II-c) Reflexos'!$D:$D,$A10,'II-c) Reflexos'!L:L) -> 31072.72159 | I10: ='I-Cenário Base'!N10+SUMIF('II-a) Medidas a implementar'!$C:$C,$A10,'II-a) Medidas a implementar'!K:K)+SUMIF('II-c) Reflexos'!$D:$D,$A10,'II-c) Reflexos'!M:M) -> 32837.03072 | J10: ='I-Cenário Base'!O10+SUMIF('II-a) Medidas a implementar'!$C:$C,$A10,'II-a) Medidas a implementar'!L:L)+SUMIF('II-c) Reflexos'!$D:$D,$A10,'II-c) Reflexos'!N:N) -> 34701.51733 | K10: ='I-Cenário Base'!P10+SUMIF('II-a) Medidas a implementar'!$C:$C,$A10,'II-a) Medidas a implementar'!M:M)+SUMIF('II-c) Reflexos'!$D:$D,$A10,'II-c) Reflexos'!O:O) -> 0 | L10: ='I-Cenário Base'!Q10+SUMIF('II-a) Medidas a implementar'!$C:$C,$A10,'II-a) Medidas a implementar'!N:N)+SUMIF('II-c) Reflexos'!$D:$D,$A10,'II-c) Reflexos'!P:P) -> 0
A11: IPVA | B11: ='I-Cenário Base'!G11+SUMIF('II-a) Medidas a implementar'!$C:$C,$A11,'II-a) Medidas a implementar'!D:D)+SUMIF('II-c) Reflexos'!$D:$D,$A11,'II-c) Reflexos'!F:F) -> 2422.973133 | C11: ='I-Cenário Base'!H11+SUMIF('II-a) Medidas a implementar'!$C:$C,$A11,'II-a) Medidas a implementar'!E:E)+SUMIF('II-c) Reflexos'!$D:$D,$A11,'II-c) Reflexos'!G:G) -> 2974.910294 | D11: ='I-Cenário Base'!I11+SUMIF('II-a) Medidas a implementar'!$C:$C,$A11,'II-a) Medidas a implementar'!F:F)+SUMIF('II-c) Reflexos'!$D:$D,$A11,'II-c) Reflexos'!H:H) -> 3146.80656 | E11: ='I-Cenário Base'!J11+SUMIF('II-a) Medidas a implementar'!$C:$C,$A11,'II-a) Medidas a implementar'!G:G)+SUMIF('II-c) Reflexos'!$D:$D,$A11,'II-c) Reflexos'!I:I) -> 3334.874133 | F11: ='I-Cenário Base'!K11+SUMIF('II-a) Medidas a implementar'!$C:$C,$A11,'II-a) Medidas a implementar'!H:H)+SUMIF('II-c) Reflexos'!$D:$D,$A11,'II-c) Reflexos'!J:J) -> 3520.775657 | G11: ='I-Cenário Base'!L11+SUMIF('II-a) Medidas a implementar'!$C:$C,$A11,'II-a) Medidas a implementar'!I:I)+SUMIF('II-c) Reflexos'!$D:$D,$A11,'II-c) Reflexos'!K:K) -> 3720.685299 | H11: ='I-Cenário Base'!M11+SUMIF('II-a) Medidas a implementar'!$C:$C,$A11,'II-a) Medidas a implementar'!J:J)+SUMIF('II-c) Reflexos'!$D:$D,$A11,'II-c) Reflexos'!L:L) -> 3931.94581 | I11: ='I-Cenário Base'!N11+SUMIF('II-a) Medidas a implementar'!$C:$C,$A11,'II-a) Medidas a implementar'!K:K)+SUMIF('II-c) Reflexos'!$D:$D,$A11,'II-c) Reflexos'!M:M) -> 4155.201693 | J11: ='I-Cenário Base'!O11+SUMIF('II-a) Medidas a implementar'!$C:$C,$A11,'II-a) Medidas a implementar'!L:L)+SUMIF('II-c) Reflexos'!$D:$D,$A11,'II-c) Reflexos'!N:N) -> 4391.134046 | K11: ='I-Cenário Base'!P11+SUMIF('II-a) Medidas a implementar'!$C:$C,$A11,'II-a) Medidas a implementar'!M:M)+SUMIF('II-c) Reflexos'!$D:$D,$A11,'II-c) Reflexos'!O:O) -> 0 | L11: ='I-Cenário Base'!Q11+SUMIF('II-a) Medidas a implementar'!$C:$C,$A11,'II-a) Medidas a implementar'!N:N)+SUMIF('II-c) Reflexos'!$D:$D,$A11,'II-c) Reflexos'!P:P) -> 0
A12: ITCD | B12: ='I-Cenário Base'!G12+SUMIF('II-a) Medidas a implementar'!$C:$C,$A12,'II-a) Medidas a implementar'!D:D)+SUMIF('II-c) Reflexos'!$D:$D,$A12,'II-c) Reflexos'!F:F) -> 889.1213685 | C12: ='I-Cenário Base'!H12+SUMIF('II-a) Medidas a implementar'!$C:$C,$A12,'II-a) Medidas a implementar'!E:E)+SUMIF('II-c) Reflexos'!$D:$D,$A12,'II-c) Reflexos'!G:G) -> 1137.29409 | D12: ='I-Cenário Base'!I12+SUMIF('II-a) Medidas a implementar'!$C:$C,$A12,'II-a) Medidas a implementar'!F:F)+SUMIF('II-c) Reflexos'!$D:$D,$A12,'II-c) Reflexos'!H:H) -> 1175.962089 | E12: ='I-Cenário Base'!J12+SUMIF('II-a) Medidas a implementar'!$C:$C,$A12,'II-a) Medidas a implementar'!G:G)+SUMIF('II-c) Reflexos'!$D:$D,$A12,'II-c) Reflexos'!I:I) -> 1212.53451 | F12: ='I-Cenário Base'!K12+SUMIF('II-a) Medidas a implementar'!$C:$C,$A12,'II-a) Medidas a implementar'!H:H)+SUMIF('II-c) Reflexos'!$D:$D,$A12,'II-c) Reflexos'!J:J) -> 1250.001827 | G12: ='I-Cenário Base'!L12+SUMIF('II-a) Medidas a implementar'!$C:$C,$A12,'II-a) Medidas a implementar'!I:I)+SUMIF('II-c) Reflexos'!$D:$D,$A12,'II-c) Reflexos'!K:K) -> 1287.501881 | H12: ='I-Cenário Base'!M12+SUMIF('II-a) Medidas a implementar'!$C:$C,$A12,'II-a) Medidas a implementar'!J:J)+SUMIF('II-c) Reflexos'!$D:$D,$A12,'II-c) Reflexos'!L:L) -> 1326.126938 | I12: ='I-Cenário Base'!N12+SUMIF('II-a) Medidas a implementar'!$C:$C,$A12,'II-a) Medidas a implementar'!K:K)+SUMIF('II-c) Reflexos'!$D:$D,$A12,'II-c) Reflexos'!M:M) -> 1365.910746 | J12: ='I-Cenário Base'!O12+SUMIF('II-a) Medidas a implementar'!$C:$C,$A12,'II-a) Medidas a implementar'!L:L)+SUMIF('II-c) Reflexos'!$D:$D,$A12,'II-c) Reflexos'!N:N) -> 1406.888068 | K12: ='I-Cenário Base'!P12+SUMIF('II-a) Medidas a implementar'!$C:$C,$A12,'II-a) Medidas a implementar'!M:M)+SUMIF('II-c) Reflexos'!$D:$D,$A12,'II-c) Reflexos'!O:O) -> 0 | L12: ='I-Cenário Base'!Q12+SUMIF('II-a) Medidas a implementar'!$C:$C,$A12,'II-a) Medidas a implementar'!N:N)+SUMIF('II-c) Reflexos'!$D:$D,$A12,'II-c) Reflexos'!P:P) -> 0
A13: IRRF | B13: ='I-Cenário Base'!G13+SUMIF('II-a) Medidas a implementar'!$C:$C,$A13,'II-a) Medidas a implementar'!D:D)+SUMIF('II-c) Reflexos'!$D:$D,$A13,'II-c) Reflexos'!F:F) -> 2252.084875 | C13: ='I-Cenário Base'!H13+SUMIF('II-a) Medidas a implementar'!$C:$C,$A13,'II-a) Medidas a implementar'!E:E)+SUMIF('II-c) Reflexos'!$D:$D,$A13,'II-c) Reflexos'!G:G) -> 2393.38415 | D13: ='I-Cenário Base'!I13+SUMIF('II-a) Medidas a implementar'!$C:$C,$A13,'II-a) Medidas a implementar'!F:F)+SUMIF('II-c) Reflexos'!$D:$D,$A13,'II-c) Reflexos'!H:H) -> 2425.534795 | E13: ='I-Cenário Base'!J13+SUMIF('II-a) Medidas a implementar'!$C:$C,$A13,'II-a) Medidas a implementar'!G:G)+SUMIF('II-c) Reflexos'!$D:$D,$A13,'II-c) Reflexos'!I:I) -> 2561.364078 | F13: ='I-Cenário Base'!K13+SUMIF('II-a) Medidas a implementar'!$C:$C,$A13,'II-a) Medidas a implementar'!H:H)+SUMIF('II-c) Reflexos'!$D:$D,$A13,'II-c) Reflexos'!J:J) -> 2681.784998 | G13: ='I-Cenário Base'!L13+SUMIF('II-a) Medidas a implementar'!$C:$C,$A13,'II-a) Medidas a implementar'!I:I)+SUMIF('II-c) Reflexos'!$D:$D,$A13,'II-c) Reflexos'!K:K) -> 2787.920883 | H13: ='I-Cenário Base'!M13+SUMIF('II-a) Medidas a implementar'!$C:$C,$A13,'II-a) Medidas a implementar'!J:J)+SUMIF('II-c) Reflexos'!$D:$D,$A13,'II-c) Reflexos'!L:L) -> 2929.453382 | I13: ='I-Cenário Base'!N13+SUMIF('II-a) Medidas a implementar'!$C:$C,$A13,'II-a) Medidas a implementar'!K:K)+SUMIF('II-c) Reflexos'!$D:$D,$A13,'II-c) Reflexos'!M:M) -> 3028.771654 | J13: ='I-Cenário Base'!O13+SUMIF('II-a) Medidas a implementar'!$C:$C,$A13,'II-a) Medidas a implementar'!L:L)+SUMIF('II-c) Reflexos'!$D:$D,$A13,'II-c) Reflexos'!N:N) -> 3161.761035 | K13: ='I-Cenário Base'!P13+SUMIF('II-a) Medidas a implementar'!$C:$C,$A13,'II-a) Medidas a implementar'!M:M)+SUMIF('II-c) Reflexos'!$D:$D,$A13,'II-c) Reflexos'!O:O) -> 0 | L13: ='I-Cenário Base'!Q13+SUMIF('II-a) Medidas a implementar'!$C:$C,$A13,'II-a) Medidas a implementar'!N:N)+SUMIF('II-c) Reflexos'!$D:$D,$A13,'II-c) Reflexos'!P:P) -> 0
A14: Outras Receitas Tributárias | B14: ='I-Cenário Base'!G14+SUMIF('II-a) Medidas a implementar'!$C:$C,$A14,'II-a) Medidas a implementar'!D:D)+SUMIF('II-c) Reflexos'!$D:$D,$A14,'II-c) Reflexos'!F:F) -> 2719.551847 | C14: ='I-Cenário Base'!H14+SUMIF('II-a) Medidas a implementar'!$C:$C,$A14,'II-a) Medidas a implementar'!E:E)+SUMIF('II-c) Reflexos'!$D:$D,$A14,'II-c) Reflexos'!G:G) -> 2927.047055 | D14: ='I-Cenário Base'!I14+SUMIF('II-a) Medidas a implementar'!$C:$C,$A14,'II-a) Medidas a implementar'!F:F)+SUMIF('II-c) Reflexos'!$D:$D,$A14,'II-c) Reflexos'!H:H) -> 3026.566655 | E14: ='I-Cenário Base'!J14+SUMIF('II-a) Medidas a implementar'!$C:$C,$A14,'II-a) Medidas a implementar'!G:G)+SUMIF('II-c) Reflexos'!$D:$D,$A14,'II-c) Reflexos'!I:I) -> 3120.692878 | F14: ='I-Cenário Base'!K14+SUMIF('II-a) Medidas a implementar'!$C:$C,$A14,'II-a) Medidas a implementar'!H:H)+SUMIF('II-c) Reflexos'!$D:$D,$A14,'II-c) Reflexos'!J:J) -> 3217.122288 | G14: ='I-Cenário Base'!L14+SUMIF('II-a) Medidas a implementar'!$C:$C,$A14,'II-a) Medidas a implementar'!I:I)+SUMIF('II-c) Reflexos'!$D:$D,$A14,'II-c) Reflexos'!K:K) -> 3313.635956 | H14: ='I-Cenário Base'!M14+SUMIF('II-a) Medidas a implementar'!$C:$C,$A14,'II-a) Medidas a implementar'!J:J)+SUMIF('II-c) Reflexos'!$D:$D,$A14,'II-c) Reflexos'!L:L) -> 3413.045035 | I14: ='I-Cenário Base'!N14+SUMIF('II-a) Medidas a implementar'!$C:$C,$A14,'II-a) Medidas a implementar'!K:K)+SUMIF('II-c) Reflexos'!$D:$D,$A14,'II-c) Reflexos'!M:M) -> 3515.436386 | J14: ='I-Cenário Base'!O14+SUMIF('II-a) Medidas a implementar'!$C:$C,$A14,'II-a) Medidas a implementar'!L:L)+SUMIF('II-c) Reflexos'!$D:$D,$A14,'II-c) Reflexos'!N:N) -> 3620.899477 | K14: ='I-Cenário Base'!P14+SUMIF('II-a) Medidas a implementar'!$C:$C,$A14,'II-a) Medidas a implementar'!M:M)+SUMIF('II-c) Reflexos'!$D:$D,$A14,'II-c) Reflexos'!O:O) -> 0 | L14: ='I-Cenário Base'!Q14+SUMIF('II-a) Medidas a implementar'!$C:$C,$A14,'II-a) Medidas a implementar'!N:N)+SUMIF('II-c) Reflexos'!$D:$D,$A14,'II-c) Reflexos'!P:P) -> 0
A15: Receitas de Contribuições (IV) | B15: =SUM(B16:B17) -> 399.5178892 | C15: =SUM(C16:C17) -> 410.8272167 | D15: 443.952 | E15: 447.7540936 | F15: 451.3950001 | G15: 475.2079245 | H15: 505.2118275 | I15: 525.8161422 | J15: 554.5021203 | K15: =SUM(K16:K17) -> 0 | L15: 0
A16: Receitas Previdenciárias (a) | B16: ='I-Cenário Base'!G16+SUMIF('II-a) Medidas a implementar'!$C:$C,$A16,'II-a) Medidas a implementar'!D:D)+SUMIF('II-c) Reflexos'!$D:$D,$A16,'II-c) Reflexos'!F:F) -> 388.3658596 | C16: ='I-Cenário Base'!H16+SUMIF('II-a) Medidas a implementar'!$C:$C,$A16,'II-a) Medidas a implementar'!E:E)+SUMIF('II-c) Reflexos'!$D:$D,$A16,'II-c) Reflexos'!G:G) -> 398.9717415 | D16: ='I-Cenário Base'!I16+SUMIF('II-a) Medidas a implementar'!$C:$C,$A16,'II-a) Medidas a implementar'!F:F)+SUMIF('II-c) Reflexos'!$D:$D,$A16,'II-c) Reflexos'!H:H) -> 431.451 | E16: ='I-Cenário Base'!J16+SUMIF('II-a) Medidas a implementar'!$C:$C,$A16,'II-a) Medidas a implementar'!G:G)+SUMIF('II-c) Reflexos'!$D:$D,$A16,'II-c) Reflexos'!I:I) -> 434.4800817 | F16: ='I-Cenário Base'!K16+SUMIF('II-a) Medidas a implementar'!$C:$C,$A16,'II-a) Medidas a implementar'!H:H)+SUMIF('II-c) Reflexos'!$D:$D,$A16,'II-c) Reflexos'!J:J) -> 437.338574 | G16: ='I-Cenário Base'!L16+SUMIF('II-a) Medidas a implementar'!$C:$C,$A16,'II-a) Medidas a implementar'!I:I)+SUMIF('II-c) Reflexos'!$D:$D,$A16,'II-c) Reflexos'!K:K) -> 459.5560809 | H16: ='I-Cenário Base'!M16+SUMIF('II-a) Medidas a implementar'!$C:$C,$A16,'II-a) Medidas a implementar'!J:J)+SUMIF('II-c) Reflexos'!$D:$D,$A16,'II-c) Reflexos'!L:L) -> 488.4447412 | I16: ='I-Cenário Base'!N16+SUMIF('II-a) Medidas a implementar'!$C:$C,$A16,'II-a) Medidas a implementar'!K:K)+SUMIF('II-c) Reflexos'!$D:$D,$A16,'II-c) Reflexos'!M:M) -> 507.9338131 | J16: ='I-Cenário Base'!O16+SUMIF('II-a) Medidas a implementar'!$C:$C,$A16,'II-a) Medidas a implementar'!L:L)+SUMIF('II-c) Reflexos'!$D:$D,$A16,'II-c) Reflexos'!N:N) -> 535.5045485 | K16: ='I-Cenário Base'!P16+SUMIF('II-a) Medidas a implementar'!$C:$C,$A16,'II-a) Medidas a implementar'!M:M)+SUMIF('II-c) Reflexos'!$D:$D,$A16,'II-c) Reflexos'!O:O) -> 0 | L16: ='I-Cenário Base'!Q16+SUMIF('II-a) Medidas a implementar'!$C:$C,$A16,'II-a) Medidas a implementar'!N:N)+SUMIF('II-c) Reflexos'!$D:$D,$A16,'II-c) Reflexos'!P:P) -> 0
A17: Outras Receitas de Contribuições | B17: ='I-Cenário Base'!G17+SUMIF('II-a) Medidas a implementar'!$C:$C,$A17,'II-a) Medidas a implementar'!D:D)+SUMIF('II-c) Reflexos'!$D:$D,$A17,'II-c) Reflexos'!F:F) -> 11.15202955 | C17: ='I-Cenário Base'!H17+SUMIF('II-a) Medidas a implementar'!$C:$C,$A17,'II-a) Medidas a implementar'!E:E)+SUMIF('II-c) Reflexos'!$D:$D,$A17,'II-c) Reflexos'!G:G) -> 11.85547516 | D17: ='I-Cenário Base'!I17+SUMIF('II-a) Medidas a implementar'!$C:$C,$A17,'II-a) Medidas a implementar'!F:F)+SUMIF('II-c) Reflexos'!$D:$D,$A17,'II-c) Reflexos'!H:H) -> 12.501 | E17: ='I-Cenário Base'!J17+SUMIF('II-a) Medidas a implementar'!$C:$C,$A17,'II-a) Medidas a implementar'!G:G)+SUMIF('II-c) Reflexos'!$D:$D,$A17,'II-c) Reflexos'!I:I) -> 13.27401189 | F17: ='I-Cenário Base'!K17+SUMIF('II-a) Medidas a implementar'!$C:$C,$A17,'II-a) Medidas a implementar'!H:H)+SUMIF('II-c) Reflexos'!$D:$D,$A17,'II-c) Reflexos'!J:J) -> 14.05642613 | G17: ='I-Cenário Base'!L17+SUMIF('II-a) Medidas a implementar'!$C:$C,$A17,'II-a) Medidas a implementar'!I:I)+SUMIF('II-c) Reflexos'!$D:$D,$A17,'II-c) Reflexos'!K:K) -> 15.65184359 | H17: ='I-Cenário Base'!M17+SUMIF('II-a) Medidas a implementar'!$C:$C,$A17,'II-a) Medidas a implementar'!J:J)+SUMIF('II-c) Reflexos'!$D:$D,$A17,'II-c) Reflexos'!L:L) -> 16.76708633 | I17: ='I-Cenário Base'!N17+SUMIF('II-a) Medidas a implementar'!$C:$C,$A17,'II-a) Medidas a implementar'!K:K)+SUMIF('II-c) Reflexos'!$D:$D,$A17,'II-c) Reflexos'!M:M) -> 17.88232906 | J17: ='I-Cenário Base'!O17+SUMIF('II-a) Medidas a implementar'!$C:$C,$A17,'II-a) Medidas a implementar'!L:L)+SUMIF('II-c) Reflexos'!$D:$D,$A17,'II-c) Reflexos'!N:N) -> 18.9975718 | K17: ='I-Cenário Base'!P17+SUMIF('II-a) Medidas a implementar'!$C:$C,$A17,'II-a) Medidas a implementar'!M:M)+SUMIF('II-c) Reflexos'!$D:$D,$A17,'II-c) Reflexos'!O:O) -> 0 | L17: ='I-Cenário Base'!Q17+SUMIF('II-a) Medidas a implementar'!$C:$C,$A17,'II-a) Medidas a implementar'!N:N)+SUMIF('II-c) Reflexos'!$D:$D,$A17,'II-c) Reflexos'!P:P) -> 0
A18: Receita Patrimonial (V) | B18: =SUM(B19:B20) -> 2644.065217 | C18: =SUM(C19:C20) -> 1703.388207 | D18: 1339.696 | E18: 872.3087567 | F18: 537.2939489 | G18: 426.208219 | H18: 439.4111728 | I18: 453.5409739 | J18: 468.6626871 | K18: =SUM(K19:K20) -> 0 | L18: 0
A19: Receita de Aplicações Financeiras (b) | B19: ='I-Cenário Base'!G19+SUMIF('II-a) Medidas a implementar'!$C:$C,$A19,'II-a) Medidas a implementar'!D:D)+SUMIF('II-c) Reflexos'!$D:$D,$A19,'II-c) Reflexos'!F:F) -> 1356.518926 | C19: ='I-Cenário Base'!H19+SUMIF('II-a) Medidas a implementar'!$C:$C,$A19,'II-a) Medidas a implementar'!E:E)+SUMIF('II-c) Reflexos'!$D:$D,$A19,'II-c) Reflexos'!G:G) -> 1570.622933 | D19: ='I-Cenário Base'!I19+SUMIF('II-a) Medidas a implementar'!$C:$C,$A19,'II-a) Medidas a implementar'!F:F)+SUMIF('II-c) Reflexos'!$D:$D,$A19,'II-c) Reflexos'!H:H) -> 1230.046 | E19: ='I-Cenário Base'!J19+SUMIF('II-a) Medidas a implementar'!$C:$C,$A19,'II-a) Medidas a implementar'!G:G)+SUMIF('II-c) Reflexos'!$D:$D,$A19,'II-c) Reflexos'!I:I) -> 706.2107816 | F19: ='I-Cenário Base'!K19+SUMIF('II-a) Medidas a implementar'!$C:$C,$A19,'II-a) Medidas a implementar'!H:H)+SUMIF('II-c) Reflexos'!$D:$D,$A19,'II-c) Reflexos'!J:J) -> 361.5545876 | G19: ='I-Cenário Base'!L19+SUMIF('II-a) Medidas a implementar'!$C:$C,$A19,'II-a) Medidas a implementar'!I:I)+SUMIF('II-c) Reflexos'!$D:$D,$A19,'II-c) Reflexos'!K:K) -> 238.1319545 | H19: ='I-Cenário Base'!M19+SUMIF('II-a) Medidas a implementar'!$C:$C,$A19,'II-a) Medidas a implementar'!J:J)+SUMIF('II-c) Reflexos'!$D:$D,$A19,'II-c) Reflexos'!L:L) -> 238.1319545 | I19: ='I-Cenário Base'!N19+SUMIF('II-a) Medidas a implementar'!$C:$C,$A19,'II-a) Medidas a implementar'!K:K)+SUMIF('II-c) Reflexos'!$D:$D,$A19,'II-c) Reflexos'!M:M) -> 238.1319545 | J19: ='I-Cenário Base'!O19+SUMIF('II-a) Medidas a implementar'!$C:$C,$A19,'II-a) Medidas a implementar'!L:L)+SUMIF('II-c) Reflexos'!$D:$D,$A19,'II-c) Reflexos'!N:N) -> 238.1319545 | K19: ='I-Cenário Base'!P19+SUMIF('II-a) Medidas a implementar'!$C:$C,$A19,'II-a) Medidas a implementar'!M:M)+SUMIF('II-c) Reflexos'!$D:$D,$A19,'II-c) Reflexos'!O:O) -> 0 | L19: ='I-Cenário Base'!Q19+SUMIF('II-a) Medidas a implementar'!$C:$C,$A19,'II-a) Medidas a implementar'!N:N)+SUMIF('II-c) Reflexos'!$D:$D,$A19,'II-c) Reflexos'!P:P) -> 0
A20: Outras Receitas Patrimoniais | B20: ='I-Cenário Base'!G20+SUMIF('II-a) Medidas a implementar'!$C:$C,$A20,'II-a) Medidas a implementar'!D:D)+SUMIF('II-c) Reflexos'!$D:$D,$A20,'II-c) Reflexos'!F:F) -> 1287.546291 | C20: ='I-Cenário Base'!H20+SUMIF('II-a) Medidas a implementar'!$C:$C,$A20,'II-a) Medidas a implementar'!E:E)+SUMIF('II-c) Reflexos'!$D:$D,$A20,'II-c) Reflexos'!G:G) -> 132.7652738 | D20: ='I-Cenário Base'!I20+SUMIF('II-a) Medidas a implementar'!$C:$C,$A20,'II-a) Medidas a implementar'!F:F)+SUMIF('II-c) Reflexos'!$D:$D,$A20,'II-c) Reflexos'!H:H) -> 109.65 | E20: ='I-Cenário Base'!J20+SUMIF('II-a) Medidas a implementar'!$C:$C,$A20,'II-a) Medidas a implementar'!G:G)+SUMIF('II-c) Reflexos'!$D:$D,$A20,'II-c) Reflexos'!I:I) -> 166.0979751 | F20: ='I-Cenário Base'!K20+SUMIF('II-a) Medidas a implementar'!$C:$C,$A20,'II-a) Medidas a implementar'!H:H)+SUMIF('II-c) Reflexos'!$D:$D,$A20,'II-c) Reflexos'!J:J) -> 175.7393613 | G20: ='I-Cenário Base'!L20+SUMIF('II-a) Medidas a implementar'!$C:$C,$A20,'II-a) Medidas a implementar'!I:I)+SUMIF('II-c) Reflexos'!$D:$D,$A20,'II-c) Reflexos'!K:K) -> 188.0762645 | H20: ='I-Cenário Base'!M20+SUMIF('II-a) Medidas a implementar'!$C:$C,$A20,'II-a) Medidas a implementar'!J:J)+SUMIF('II-c) Reflexos'!$D:$D,$A20,'II-c) Reflexos'!L:L) -> 201.2792183 | I20: ='I-Cenário Base'!N20+SUMIF('II-a) Medidas a implementar'!$C:$C,$A20,'II-a) Medidas a implementar'!K:K)+SUMIF('II-c) Reflexos'!$D:$D,$A20,'II-c) Reflexos'!M:M) -> 215.4090194 | J20: ='I-Cenário Base'!O20+SUMIF('II-a) Medidas a implementar'!$C:$C,$A20,'II-a) Medidas a implementar'!L:L)+SUMIF('II-c) Reflexos'!$D:$D,$A20,'II-c) Reflexos'!N:N) -> 230.5307326 | K20: ='I-Cenário Base'!P20+SUMIF('II-a) Medidas a implementar'!$C:$C,$A20,'II-a) Medidas a implementar'!M:M)+SUMIF('II-c) Reflexos'!$D:$D,$A20,'II-c) Reflexos'!O:O) -> 0 | L20: ='I-Cenário Base'!Q20+SUMIF('II-a) Medidas a implementar'!$C:$C,$A20,'II-a) Medidas a implementar'!N:N)+SUMIF('II-c) Reflexos'!$D:$D,$A20,'II-c) Reflexos'!P:P) -> 0
A21: Transferências Correntes (VI) | B21: =SUM(B22:B26) -> 9797.81311 | C21: 10712.42858 | D21: 9960.461994 | E21: 10899.77226 | F21: 11131.54112 | G21: 11759.1702 | H21: 12422.44253 | I21: 13123.24307 | J21: 13655.51117 | K21: 0 | L21: 0
A22: Cota-Parte do FPE | B22: ='I-Cenário Base'!G22+SUMIF('II-a) Medidas a implementar'!$C:$C,$A22,'II-a) Medidas a implementar'!D:D)+SUMIF('II-c) Reflexos'!$D:$D,$A22,'II-c) Reflexos'!F:F) -> 4734.810488 | C22: ='I-Cenário Base'!H22+SUMIF('II-a) Medidas a implementar'!$C:$C,$A22,'II-a) Medidas a implementar'!E:E)+SUMIF('II-c) Reflexos'!$D:$D,$A22,'II-c) Reflexos'!G:G) -> 4988.959404 | D22: ='I-Cenário Base'!I22+SUMIF('II-a) Medidas a implementar'!$C:$C,$A22,'II-a) Medidas a implementar'!F:F)+SUMIF('II-c) Reflexos'!$D:$D,$A22,'II-c) Reflexos'!H:H) -> 5327.368 | E22: ='I-Cenário Base'!J22+SUMIF('II-a) Medidas a implementar'!$C:$C,$A22,'II-a) Medidas a implementar'!G:G)+SUMIF('II-c) Reflexos'!$D:$D,$A22,'II-c) Reflexos'!I:I) -> 5631.027761 | F22: ='I-Cenário Base'!K22+SUMIF('II-a) Medidas a implementar'!$C:$C,$A22,'II-a) Medidas a implementar'!H:H)+SUMIF('II-c) Reflexos'!$D:$D,$A22,'II-c) Reflexos'!J:J) -> 5959.316679 | G22: ='I-Cenário Base'!L22+SUMIF('II-a) Medidas a implementar'!$C:$C,$A22,'II-a) Medidas a implementar'!I:I)+SUMIF('II-c) Reflexos'!$D:$D,$A22,'II-c) Reflexos'!K:K) -> 6297.686681 | H22: ='I-Cenário Base'!M22+SUMIF('II-a) Medidas a implementar'!$C:$C,$A22,'II-a) Medidas a implementar'!J:J)+SUMIF('II-c) Reflexos'!$D:$D,$A22,'II-c) Reflexos'!L:L) -> 6655.26933 | I22: ='I-Cenário Base'!N22+SUMIF('II-a) Medidas a implementar'!$C:$C,$A22,'II-a) Medidas a implementar'!K:K)+SUMIF('II-c) Reflexos'!$D:$D,$A22,'II-c) Reflexos'!M:M) -> 7033.155523 | J22: ='I-Cenário Base'!O22+SUMIF('II-a) Medidas a implementar'!$C:$C,$A22,'II-a) Medidas a implementar'!L:L)+SUMIF('II-c) Reflexos'!$D:$D,$A22,'II-c) Reflexos'!N:N) -> 7432.498093 | K22: ='I-Cenário Base'!P22+SUMIF('II-a) Medidas a implementar'!$C:$C,$A22,'II-a) Medidas a implementar'!M:M)+SUMIF('II-c) Reflexos'!$D:$D,$A22,'II-c) Reflexos'!O:O) -> 0 | L22: ='I-Cenário Base'!Q22+SUMIF('II-a) Medidas a implementar'!$C:$C,$A22,'II-a) Medidas a implementar'!N:N)+SUMIF('II-c) Reflexos'!$D:$D,$A22,'II-c) Reflexos'!P:P) -> 0
A23: Cota-Parte do IPI-Exp. (LC nº 61/1989) | B23: ='I-Cenário Base'!G23+SUMIF('II-a) Medidas a implementar'!$C:$C,$A23,'II-a) Medidas a implementar'!D:D)+SUMIF('II-c) Reflexos'!$D:$D,$A23,'II-c) Reflexos'!F:F) -> 150.1395945 | C23: ='I-Cenário Base'!H23+SUMIF('II-a) Medidas a implementar'!$C:$C,$A23,'II-a) Medidas a implementar'!E:E)+SUMIF('II-c) Reflexos'!$D:$D,$A23,'II-c) Reflexos'!G:G) -> 135.1582567 | D23: ='I-Cenário Base'!I23+SUMIF('II-a) Medidas a implementar'!$C:$C,$A23,'II-a) Medidas a implementar'!F:F)+SUMIF('II-c) Reflexos'!$D:$D,$A23,'II-c) Reflexos'!H:H) -> 157.436 | E23: ='I-Cenário Base'!J23+SUMIF('II-a) Medidas a implementar'!$C:$C,$A23,'II-a) Medidas a implementar'!G:G)+SUMIF('II-c) Reflexos'!$D:$D,$A23,'II-c) Reflexos'!I:I) -> 166.3425284 | F23: ='I-Cenário Base'!K23+SUMIF('II-a) Medidas a implementar'!$C:$C,$A23,'II-a) Medidas a implementar'!H:H)+SUMIF('II-c) Reflexos'!$D:$D,$A23,'II-c) Reflexos'!J:J) -> 175.4868048 | G23: ='I-Cenário Base'!L23+SUMIF('II-a) Medidas a implementar'!$C:$C,$A23,'II-a) Medidas a implementar'!I:I)+SUMIF('II-c) Reflexos'!$D:$D,$A23,'II-c) Reflexos'!K:K) -> 185.4509456 | H23: ='I-Cenário Base'!M23+SUMIF('II-a) Medidas a implementar'!$C:$C,$A23,'II-a) Medidas a implementar'!J:J)+SUMIF('II-c) Reflexos'!$D:$D,$A23,'II-c) Reflexos'!L:L) -> 195.9808503 | I23: ='I-Cenário Base'!N23+SUMIF('II-a) Medidas a implementar'!$C:$C,$A23,'II-a) Medidas a implementar'!K:K)+SUMIF('II-c) Reflexos'!$D:$D,$A23,'II-c) Reflexos'!M:M) -> 207.108643 | J23: ='I-Cenário Base'!O23+SUMIF('II-a) Medidas a implementar'!$C:$C,$A23,'II-a) Medidas a implementar'!L:L)+SUMIF('II-c) Reflexos'!$D:$D,$A23,'II-c) Reflexos'!N:N) -> 218.8682717 | K23: ='I-Cenário Base'!P23+SUMIF('II-a) Medidas a implementar'!$C:$C,$A23,'II-a) Medidas a implementar'!M:M)+SUMIF('II-c) Reflexos'!$D:$D,$A23,'II-c) Reflexos'!O:O) -> 0 | L23: ='I-Cenário Base'!Q23+SUMIF('II-a) Medidas a implementar'!$C:$C,$A23,'II-a) Medidas a implementar'!N:N)+SUMIF('II-c) Reflexos'!$D:$D,$A23,'II-c) Reflexos'!P:P) -> 0
A24: Transferências do FUNDEB | B24: ='I-Cenário Base'!G24+SUMIF('II-a) Medidas a implementar'!$C:$C,$A24,'II-a) Medidas a implementar'!D:D)+SUMIF('II-c) Reflexos'!$D:$D,$A24,'II-c) Reflexos'!F:F) -> 3394.53342 | C24: ='I-Cenário Base'!H24+SUMIF('II-a) Medidas a implementar'!$C:$C,$A24,'II-a) Medidas a implementar'!E:E)+SUMIF('II-c) Reflexos'!$D:$D,$A24,'II-c) Reflexos'!G:G) -> 3311.34832 | D24: ='I-Cenário Base'!I24+SUMIF('II-a) Medidas a implementar'!$C:$C,$A24,'II-a) Medidas a implementar'!F:F)+SUMIF('II-c) Reflexos'!$D:$D,$A24,'II-c) Reflexos'!H:H) -> 3436.268994 | E24: ='I-Cenário Base'!J24+SUMIF('II-a) Medidas a implementar'!$C:$C,$A24,'II-a) Medidas a implementar'!G:G)+SUMIF('II-c) Reflexos'!$D:$D,$A24,'II-c) Reflexos'!I:I) -> 3668.838275 | F24: ='I-Cenário Base'!K24+SUMIF('II-a) Medidas a implementar'!$C:$C,$A24,'II-a) Medidas a implementar'!H:H)+SUMIF('II-c) Reflexos'!$D:$D,$A24,'II-c) Reflexos'!J:J) -> 3836.015073 | G24: ='I-Cenário Base'!L24+SUMIF('II-a) Medidas a implementar'!$C:$C,$A24,'II-a) Medidas a implementar'!I:I)+SUMIF('II-c) Reflexos'!$D:$D,$A24,'II-c) Reflexos'!K:K) -> 4049.539203 | H24: ='I-Cenário Base'!M24+SUMIF('II-a) Medidas a implementar'!$C:$C,$A24,'II-a) Medidas a implementar'!J:J)+SUMIF('II-c) Reflexos'!$D:$D,$A24,'II-c) Reflexos'!L:L) -> 4275.058688 | I24: ='I-Cenário Base'!N24+SUMIF('II-a) Medidas a implementar'!$C:$C,$A24,'II-a) Medidas a implementar'!K:K)+SUMIF('II-c) Reflexos'!$D:$D,$A24,'II-c) Reflexos'!M:M) -> 4513.25077 | J24: ='I-Cenário Base'!O24+SUMIF('II-a) Medidas a implementar'!$C:$C,$A24,'II-a) Medidas a implementar'!L:L)+SUMIF('II-c) Reflexos'!$D:$D,$A24,'II-c) Reflexos'!N:N) -> 4764.831025 | K24: ='I-Cenário Base'!P24+SUMIF('II-a) Medidas a implementar'!$C:$C,$A24,'II-a) Medidas a implementar'!M:M)+SUMIF('II-c) Reflexos'!$D:$D,$A24,'II-c) Reflexos'!O:O) -> 0 | L24: ='I-Cenário Base'!Q24+SUMIF('II-a) Medidas a implementar'!$C:$C,$A24,'II-a) Medidas a implementar'!N:N)+SUMIF('II-c) Reflexos'!$D:$D,$A24,'II-c) Reflexos'!P:P) -> 0
A25: Royalties e Participações Especiais | B25: ='I-Cenário Base'!G25+SUMIF('II-a) Medidas a implementar'!$C:$C,$A25,'II-a) Medidas a implementar'!D:D)+SUMIF('II-c) Reflexos'!$D:$D,$A25,'II-c) Reflexos'!F:F) -> 0 | C25: ='I-Cenário Base'!H25+SUMIF('II-a) Medidas a implementar'!$C:$C,$A25,'II-a) Medidas a implementar'!E:E)+SUMIF('II-c) Reflexos'!$D:$D,$A25,'II-c) Reflexos'!G:G) -> 0 | D25: ='I-Cenário Base'!I25+SUMIF('II-a) Medidas a implementar'!$C:$C,$A25,'II-a) Medidas a implementar'!F:F)+SUMIF('II-c) Reflexos'!$D:$D,$A25,'II-c) Reflexos'!H:H) -> 0 | E25: ='I-Cenário Base'!J25+SUMIF('II-a) Medidas a implementar'!$C:$C,$A25,'II-a) Medidas a implementar'!G:G)+SUMIF('II-c) Reflexos'!$D:$D,$A25,'II-c) Reflexos'!I:I) -> 0 | F25: ='I-Cenário Base'!K25+SUMIF('II-a) Medidas a implementar'!$C:$C,$A25,'II-a) Medidas a implementar'!H:H)+SUMIF('II-c) Reflexos'!$D:$D,$A25,'II-c) Reflexos'!J:J) -> 0 | G25: ='I-Cenário Base'!L25+SUMIF('II-a) Medidas a implementar'!$C:$C,$A25,'II-a) Medidas a implementar'!I:I)+SUMIF('II-c) Reflexos'!$D:$D,$A25,'II-c) Reflexos'!K:K) -> 0 | H25: ='I-Cenário Base'!M25+SUMIF('II-a) Medidas a implementar'!$C:$C,$A25,'II-a) Medidas a implementar'!J:J)+SUMIF('II-c) Reflexos'!$D:$D,$A25,'II-c) Reflexos'!L:L) -> 0 | I25: ='I-Cenário Base'!N25+SUMIF('II-a) Medidas a implementar'!$C:$C,$A25,'II-a) Medidas a implementar'!K:K)+SUMIF('II-c) Reflexos'!$D:$D,$A25,'II-c) Reflexos'!M:M) -> 0 | J25: ='I-Cenário Base'!O25+SUMIF('II-a) Medidas a implementar'!$C:$C,$A25,'II-a) Medidas a implementar'!L:L)+SUMIF('II-c) Reflexos'!$D:$D,$A25,'II-c) Reflexos'!N:N) -> 0 | K25: ='I-Cenário Base'!P25+SUMIF('II-a) Medidas a implementar'!$C:$C,$A25,'II-a) Medidas a implementar'!M:M)+SUMIF('II-c) Reflexos'!$D:$D,$A25,'II-c) Reflexos'!O:O) -> 0 | L25: ='I-Cenário Base'!Q25+SUMIF('II-a) Medidas a implementar'!$C:$C,$A25,'II-a) Medidas a implementar'!N:N)+SUMIF('II-c) Reflexos'!$D:$D,$A25,'II-c) Reflexos'!P:P) -> 0
A26: Outras Transferências Correntes | B26: ='I-Cenário Base'!G26+SUMIF('II-a) Medidas a implementar'!$C:$C,$A26,'II-a) Medidas a implementar'!D:D)+SUMIF('II-c) Reflexos'!$D:$D,$A26,'II-c) Reflexos'!F:F) -> 1518.329607 | C26: ='I-Cenário Base'!H26+SUMIF('II-a) Medidas a implementar'!$C:$C,$A26,'II-a) Medidas a implementar'!E:E)+SUMIF('II-c) Reflexos'!$D:$D,$A26,'II-c) Reflexos'!G:G) -> 2276.9626 | D26: ='I-Cenário Base'!I26+SUMIF('II-a) Medidas a implementar'!$C:$C,$A26,'II-a) Medidas a implementar'!F:F)+SUMIF('II-c) Reflexos'!$D:$D,$A26,'II-c) Reflexos'!H:H) -> 1039.389 | E26: ='I-Cenário Base'!J26+SUMIF('II-a) Medidas a implementar'!$C:$C,$A26,'II-a) Medidas a implementar'!G:G)+SUMIF('II-c) Reflexos'!$D:$D,$A26,'II-c) Reflexos'!I:I) -> 1433.563698 | F26: ='I-Cenário Base'!K26+SUMIF('II-a) Medidas a implementar'!$C:$C,$A26,'II-a) Medidas a implementar'!H:H)+SUMIF('II-c) Reflexos'!$D:$D,$A26,'II-c) Reflexos'!J:J) -> 1160.722563 | G26: ='I-Cenário Base'!L26+SUMIF('II-a) Medidas a implementar'!$C:$C,$A26,'II-a) Medidas a implementar'!I:I)+SUMIF('II-c) Reflexos'!$D:$D,$A26,'II-c) Reflexos'!K:K) -> 1226.493368 | H26: ='I-Cenário Base'!M26+SUMIF('II-a) Medidas a implementar'!$C:$C,$A26,'II-a) Medidas a implementar'!J:J)+SUMIF('II-c) Reflexos'!$D:$D,$A26,'II-c) Reflexos'!L:L) -> 1296.133661 | I26: ='I-Cenário Base'!N26+SUMIF('II-a) Medidas a implementar'!$C:$C,$A26,'II-a) Medidas a implementar'!K:K)+SUMIF('II-c) Reflexos'!$D:$D,$A26,'II-c) Reflexos'!M:M) -> 1369.72813 | J26: ='I-Cenário Base'!O26+SUMIF('II-a) Medidas a implementar'!$C:$C,$A26,'II-a) Medidas a implementar'!L:L)+SUMIF('II-c) Reflexos'!$D:$D,$A26,'II-c) Reflexos'!N:N) -> 1239.313782 | K26: ='I-Cenário Base'!P26+SUMIF('II-a) Medidas a implementar'!$C:$C,$A26,'II-a) Medidas a implementar'!M:M)+SUMIF('II-c) Reflexos'!$D:$D,$A26,'II-c) Reflexos'!O:O) -> 0 | L26: ='I-Cenário Base'!Q26+SUMIF('II-a) Medidas a implementar'!$C:$C,$A26,'II-a) Medidas a implementar'!N:N)+SUMIF('II-c) Reflexos'!$D:$D,$A26,'II-c) Reflexos'!P:P) -> 0
A27: Demais Receitas Correntes (VII) | B27: =SUM(B28:B30) -> 4626.491254 | C27: =SUM(C28:C30) -> 4701.213862 | D27: 4331.96 | E27: 4466.111144 | F27: 4338.102278 | G27: 4577.53933 | H27: 4866.48205 | I27: 5171.875869 | J27: 5494.658034 | K27: =SUM(K28:K30) -> 0 | L27: 0
A28: Outras Receitas Financeiras (c) | B28: ='I-Cenário Base'!G28+SUMIF('II-a) Medidas a implementar'!$C:$C,$A28,'II-a) Medidas a implementar'!D:D)+SUMIF('II-c) Reflexos'!$D:$D,$A28,'II-c) Reflexos'!F:F) -> 48.45793559 | C28: ='I-Cenário Base'!H28+SUMIF('II-a) Medidas a implementar'!$C:$C,$A28,'II-a) Medidas a implementar'!E:E)+SUMIF('II-c) Reflexos'!$D:$D,$A28,'II-c) Reflexos'!G:G) -> 41.522344 | D28: ='I-Cenário Base'!I28+SUMIF('II-a) Medidas a implementar'!$C:$C,$A28,'II-a) Medidas a implementar'!F:F)+SUMIF('II-c) Reflexos'!$D:$D,$A28,'II-c) Reflexos'!H:H) -> 43.844 | E28: ='I-Cenário Base'!J28+SUMIF('II-a) Medidas a implementar'!$C:$C,$A28,'II-a) Medidas a implementar'!G:G)+SUMIF('II-c) Reflexos'!$D:$D,$A28,'II-c) Reflexos'!I:I) -> 44.6347369 | F28: ='I-Cenário Base'!K28+SUMIF('II-a) Medidas a implementar'!$C:$C,$A28,'II-a) Medidas a implementar'!H:H)+SUMIF('II-c) Reflexos'!$D:$D,$A28,'II-c) Reflexos'!J:J) -> 44.56439431 | G28: ='I-Cenário Base'!L28+SUMIF('II-a) Medidas a implementar'!$C:$C,$A28,'II-a) Medidas a implementar'!I:I)+SUMIF('II-c) Reflexos'!$D:$D,$A28,'II-c) Reflexos'!K:K) -> 47.69281479 | H28: ='I-Cenário Base'!M28+SUMIF('II-a) Medidas a implementar'!$C:$C,$A28,'II-a) Medidas a implementar'!J:J)+SUMIF('II-c) Reflexos'!$D:$D,$A28,'II-c) Reflexos'!L:L) -> 51.04085039 | I28: ='I-Cenário Base'!N28+SUMIF('II-a) Medidas a implementar'!$C:$C,$A28,'II-a) Medidas a implementar'!K:K)+SUMIF('II-c) Reflexos'!$D:$D,$A28,'II-c) Reflexos'!M:M) -> 54.62391809 | J28: ='I-Cenário Base'!O28+SUMIF('II-a) Medidas a implementar'!$C:$C,$A28,'II-a) Medidas a implementar'!L:L)+SUMIF('II-c) Reflexos'!$D:$D,$A28,'II-c) Reflexos'!N:N) -> 58.45851714 | K28: ='I-Cenário Base'!P28+SUMIF('II-a) Medidas a implementar'!$C:$C,$A28,'II-a) Medidas a implementar'!M:M)+SUMIF('II-c) Reflexos'!$D:$D,$A28,'II-c) Reflexos'!O:O) -> 0 | L28: ='I-Cenário Base'!Q28+SUMIF('II-a) Medidas a implementar'!$C:$C,$A28,'II-a) Medidas a implementar'!N:N)+SUMIF('II-c) Reflexos'!$D:$D,$A28,'II-c) Reflexos'!P:P) -> 0
A29: Compensações Financeiras entre o RGPS e o RPPS (d) | B29: ='I-Cenário Base'!G29+SUMIF('II-a) Medidas a implementar'!$C:$C,$A29,'II-a) Medidas a implementar'!D:D)+SUMIF('II-c) Reflexos'!$D:$D,$A29,'II-c) Reflexos'!F:F) -> 0.11091458 | C29: ='I-Cenário Base'!H29+SUMIF('II-a) Medidas a implementar'!$C:$C,$A29,'II-a) Medidas a implementar'!E:E)+SUMIF('II-c) Reflexos'!$D:$D,$A29,'II-c) Reflexos'!G:G) -> 0 | D29: ='I-Cenário Base'!I29+SUMIF('II-a) Medidas a implementar'!$C:$C,$A29,'II-a) Medidas a implementar'!F:F)+SUMIF('II-c) Reflexos'!$D:$D,$A29,'II-c) Reflexos'!H:H) -> 0 | E29: ='I-Cenário Base'!J29+SUMIF('II-a) Medidas a implementar'!$C:$C,$A29,'II-a) Medidas a implementar'!G:G)+SUMIF('II-c) Reflexos'!$D:$D,$A29,'II-c) Reflexos'!I:I) -> 0 | F29: ='I-Cenário Base'!K29+SUMIF('II-a) Medidas a implementar'!$C:$C,$A29,'II-a) Medidas a implementar'!H:H)+SUMIF('II-c) Reflexos'!$D:$D,$A29,'II-c) Reflexos'!J:J) -> 0 | G29: ='I-Cenário Base'!L29+SUMIF('II-a) Medidas a implementar'!$C:$C,$A29,'II-a) Medidas a implementar'!I:I)+SUMIF('II-c) Reflexos'!$D:$D,$A29,'II-c) Reflexos'!K:K) -> 0 | H29: ='I-Cenário Base'!M29+SUMIF('II-a) Medidas a implementar'!$C:$C,$A29,'II-a) Medidas a implementar'!J:J)+SUMIF('II-c) Reflexos'!$D:$D,$A29,'II-c) Reflexos'!L:L) -> 0 | I29: ='I-Cenário Base'!N29+SUMIF('II-a) Medidas a implementar'!$C:$C,$A29,'II-a) Medidas a implementar'!K:K)+SUMIF('II-c) Reflexos'!$D:$D,$A29,'II-c) Reflexos'!M:M) -> 0 | J29: ='I-Cenário Base'!O29+SUMIF('II-a) Medidas a implementar'!$C:$C,$A29,'II-a) Medidas a implementar'!L:L)+SUMIF('II-c) Reflexos'!$D:$D,$A29,'II-c) Reflexos'!N:N) -> 0 | K29: ='I-Cenário Base'!P29+SUMIF('II-a) Medidas a implementar'!$C:$C,$A29,'II-a) Medidas a implementar'!M:M)+SUMIF('II-c) Reflexos'!$D:$D,$A29,'II-c) Reflexos'!O:O) -> 0 | L29: ='I-Cenário Base'!Q29+SUMIF('II-a) Medidas a implementar'!$C:$C,$A29,'II-a) Medidas a implementar'!N:N)+SUMIF('II-c) Reflexos'!$D:$D,$A29,'II-c) Reflexos'!P:P) -> 0
A30: Receitas Correntes Restantes | B30: ='I-Cenário Base'!G30+SUMIF('II-a) Medidas a implementar'!$C:$C,$A30,'II-a) Medidas a implementar'!D:D)+SUMIF('II-c) Reflexos'!$D:$D,$A30,'II-c) Reflexos'!F:F) -> 4577.922404 | C30: ='I-Cenário Base'!H30+SUMIF('II-a) Medidas a implementar'!$C:$C,$A30,'II-a) Medidas a implementar'!E:E)+SUMIF('II-c) Reflexos'!$D:$D,$A30,'II-c) Reflexos'!G:G) -> 4659.691518 | D30: ='I-Cenário Base'!I30+SUMIF('II-a) Medidas a implementar'!$C:$C,$A30,'II-a) Medidas a implementar'!F:F)+SUMIF('II-c) Reflexos'!$D:$D,$A30,'II-c) Reflexos'!H:H) -> 4288.116 | E30: ='I-Cenário Base'!J30+SUMIF('II-a) Medidas a implementar'!$C:$C,$A30,'II-a) Medidas a implementar'!G:G)+SUMIF('II-c) Reflexos'!$D:$D,$A30,'II-c) Reflexos'!I:I) -> 4421.476408 | F30: ='I-Cenário Base'!K30+SUMIF('II-a) Medidas a implementar'!$C:$C,$A30,'II-a) Medidas a implementar'!H:H)+SUMIF('II-c) Reflexos'!$D:$D,$A30,'II-c) Reflexos'!J:J) -> 4293.537884 | G30: ='I-Cenário Base'!L30+SUMIF('II-a) Medidas a implementar'!$C:$C,$A30,'II-a) Medidas a implementar'!I:I)+SUMIF('II-c) Reflexos'!$D:$D,$A30,'II-c) Reflexos'!K:K) -> 4529.846515 | H30: ='I-Cenário Base'!M30+SUMIF('II-a) Medidas a implementar'!$C:$C,$A30,'II-a) Medidas a implementar'!J:J)+SUMIF('II-c) Reflexos'!$D:$D,$A30,'II-c) Reflexos'!L:L) -> 4815.4412 | I30: ='I-Cenário Base'!N30+SUMIF('II-a) Medidas a implementar'!$C:$C,$A30,'II-a) Medidas a implementar'!K:K)+SUMIF('II-c) Reflexos'!$D:$D,$A30,'II-c) Reflexos'!M:M) -> 5117.251951 | J30: ='I-Cenário Base'!O30+SUMIF('II-a) Medidas a implementar'!$C:$C,$A30,'II-a) Medidas a implementar'!L:L)+SUMIF('II-c) Reflexos'!$D:$D,$A30,'II-c) Reflexos'!N:N) -> 5436.199517 | K30: ='I-Cenário Base'!P30+SUMIF('II-a) Medidas a implementar'!$C:$C,$A30,'II-a) Medidas a implementar'!M:M)+SUMIF('II-c) Reflexos'!$D:$D,$A30,'II-c) Reflexos'!O:O) -> 0 | L30: ='I-Cenário Base'!Q30+SUMIF('II-a) Medidas a implementar'!$C:$C,$A30,'II-a) Medidas a implementar'!N:N)+SUMIF('II-c) Reflexos'!$D:$D,$A30,'II-c) Reflexos'!P:P) -> 0
A31: Deduções para formação do Fundeb (IIa) | B31: ='I-Cenário Base'!G31+SUMIF('II-a) Medidas a implementar'!$C:$C,$A31,'II-a) Medidas a implementar'!D:D)+SUMIF('II-c) Reflexos'!$D:$D,$A31,'II-c) Reflexos'!F:F) -> 5107.432935 | C31: ='I-Cenário Base'!H31+SUMIF('II-a) Medidas a implementar'!$C:$C,$A31,'II-a) Medidas a implementar'!E:E)+SUMIF('II-c) Reflexos'!$D:$D,$A31,'II-c) Reflexos'!G:G) -> 5173.981751 | D31: ='I-Cenário Base'!I31+SUMIF('II-a) Medidas a implementar'!$C:$C,$A31,'II-a) Medidas a implementar'!F:F)+SUMIF('II-c) Reflexos'!$D:$D,$A31,'II-c) Reflexos'!H:H) -> 5369.170304 | E31: ='I-Cenário Base'!J31+SUMIF('II-a) Medidas a implementar'!$C:$C,$A31,'II-a) Medidas a implementar'!G:G)+SUMIF('II-c) Reflexos'!$D:$D,$A31,'II-c) Reflexos'!I:I) -> 5732.559805 | F31: ='I-Cenário Base'!K31+SUMIF('II-a) Medidas a implementar'!$C:$C,$A31,'II-a) Medidas a implementar'!H:H)+SUMIF('II-c) Reflexos'!$D:$D,$A31,'II-c) Reflexos'!J:J) -> 5993.773552 | G31: ='I-Cenário Base'!L31+SUMIF('II-a) Medidas a implementar'!$C:$C,$A31,'II-a) Medidas a implementar'!I:I)+SUMIF('II-c) Reflexos'!$D:$D,$A31,'II-c) Reflexos'!K:K) -> 6327.405004 | H31: ='I-Cenário Base'!M31+SUMIF('II-a) Medidas a implementar'!$C:$C,$A31,'II-a) Medidas a implementar'!J:J)+SUMIF('II-c) Reflexos'!$D:$D,$A31,'II-c) Reflexos'!L:L) -> 6679.779201 | I31: ='I-Cenário Base'!N31+SUMIF('II-a) Medidas a implementar'!$C:$C,$A31,'II-a) Medidas a implementar'!K:K)+SUMIF('II-c) Reflexos'!$D:$D,$A31,'II-c) Reflexos'!M:M) -> 7051.954328 | J31: ='I-Cenário Base'!O31+SUMIF('II-a) Medidas a implementar'!$C:$C,$A31,'II-a) Medidas a implementar'!L:L)+SUMIF('II-c) Reflexos'!$D:$D,$A31,'II-c) Reflexos'!N:N) -> 7445.048476 | K31: ='I-Cenário Base'!P31+SUMIF('II-a) Medidas a implementar'!$C:$C,$A31,'II-a) Medidas a implementar'!M:M)+SUMIF('II-c) Reflexos'!$D:$D,$A31,'II-c) Reflexos'!O:O) -> 0 | L31: ='I-Cenário Base'!Q31+SUMIF('II-a) Medidas a implementar'!$C:$C,$A31,'II-a) Medidas a implementar'!N:N)+SUMIF('II-c) Reflexos'!$D:$D,$A31,'II-c) Reflexos'!P:P) -> 0
A32: Receitas Primárias Correntes (VIII) = (II-b-c) | B32: =B8-B19-B28 -> 43305.06931 | C32: 43683.98832 | D32: 44075.93465 | E32: 46786.29025 | F32: 48551.51968 | G32: 51137.84738 | H32: 53937.88833 | I32: 56832.11705 | J32: 59713.89502 | K32: 0 | L32: 0
A33: Receitas de Capital (IX) = (X+XI+XII+XIII+XIV) | B33: =B34+B35+B36+B39+B40 -> 3217.171544 | C33: =C34+C35+C36+C39+C40 -> 97.8503426 | D33: 180.0309543 | E33: 597.204889 | F33: 230.4979549 | G33: 223.9553864 | H33: 140.5599249 | I33: 56.99560359 | J33: 58.41940939 | K33: =K34+K35+K36+K39+K40 -> 0 | L33: 0
A34: Operações de Crédito (X) | B34: ='I-Cenário Base'!G34+SUMIF('II-a) Medidas a implementar'!$C:$C,$A34,'II-a) Medidas a implementar'!D:D)+SUMIF('II-c) Reflexos'!$D:$D,$A34,'II-c) Reflexos'!F:F) -> 2494.249732 | C34: ='I-Cenário Base'!H34+SUMIF('II-a) Medidas a implementar'!$C:$C,$A34,'II-a) Medidas a implementar'!E:E)+SUMIF('II-c) Reflexos'!$D:$D,$A34,'II-c) Reflexos'!G:G) -> 0 | D34: ='I-Cenário Base'!I34+SUMIF('II-a) Medidas a implementar'!$C:$C,$A34,'II-a) Medidas a implementar'!F:F)+SUMIF('II-c) Reflexos'!$D:$D,$A34,'II-c) Reflexos'!H:H) -> 0 | E34: ='I-Cenário Base'!J34+SUMIF('II-a) Medidas a implementar'!$C:$C,$A34,'II-a) Medidas a implementar'!G:G)+SUMIF('II-c) Reflexos'!$D:$D,$A34,'II-c) Reflexos'!I:I) -> 83.2459125 | F34: ='I-Cenário Base'!K34+SUMIF('II-a) Medidas a implementar'!$C:$C,$A34,'II-a) Medidas a implementar'!H:H)+SUMIF('II-c) Reflexos'!$D:$D,$A34,'II-c) Reflexos'!J:J) -> 167.8237596 | G34: ='I-Cenário Base'!L34+SUMIF('II-a) Medidas a implementar'!$C:$C,$A34,'II-a) Medidas a implementar'!I:I)+SUMIF('II-c) Reflexos'!$D:$D,$A34,'II-c) Reflexos'!K:K) -> 169.8216615 | H34: ='I-Cenário Base'!M34+SUMIF('II-a) Medidas a implementar'!$C:$C,$A34,'II-a) Medidas a implementar'!J:J)+SUMIF('II-c) Reflexos'!$D:$D,$A34,'II-c) Reflexos'!L:L) -> 84.91083075 | I34: ='I-Cenário Base'!N34+SUMIF('II-a) Medidas a implementar'!$C:$C,$A34,'II-a) Medidas a implementar'!K:K)+SUMIF('II-c) Reflexos'!$D:$D,$A34,'II-c) Reflexos'!M:M) -> 0 | J34: ='I-Cenário Base'!O34+SUMIF('II-a) Medidas a implementar'!$C:$C,$A34,'II-a) Medidas a implementar'!L:L)+SUMIF('II-c) Reflexos'!$D:$D,$A34,'II-c) Reflexos'!N:N) -> 0 | K34: ='I-Cenário Base'!P34+SUMIF('II-a) Medidas a implementar'!$C:$C,$A34,'II-a) Medidas a implementar'!M:M)+SUMIF('II-c) Reflexos'!$D:$D,$A34,'II-c) Reflexos'!O:O) -> 0 | L34: ='I-Cenário Base'!Q34+SUMIF('II-a) Medidas a implementar'!$C:$C,$A34,'II-a) Medidas a implementar'!N:N)+SUMIF('II-c) Reflexos'!$D:$D,$A34,'II-c) Reflexos'!P:P) -> 0
A35: Amortização de Empréstimos (XI) | B35: ='I-Cenário Base'!G35+SUMIF('II-a) Medidas a implementar'!$C:$C,$A35,'II-a) Medidas a implementar'!D:D)+SUMIF('II-c) Reflexos'!$D:$D,$A35,'II-c) Reflexos'!F:F) -> 13.53869195 | C35: ='I-Cenário Base'!H35+SUMIF('II-a) Medidas a implementar'!$C:$C,$A35,'II-a) Medidas a implementar'!E:E)+SUMIF('II-c) Reflexos'!$D:$D,$A35,'II-c) Reflexos'!G:G) -> 14.62721123 | D35: ='I-Cenário Base'!I35+SUMIF('II-a) Medidas a implementar'!$C:$C,$A35,'II-a) Medidas a implementar'!F:F)+SUMIF('II-c) Reflexos'!$D:$D,$A35,'II-c) Reflexos'!H:H) -> 14.99995433 | E35: ='I-Cenário Base'!J35+SUMIF('II-a) Medidas a implementar'!$C:$C,$A35,'II-a) Medidas a implementar'!G:G)+SUMIF('II-c) Reflexos'!$D:$D,$A35,'II-c) Reflexos'!I:I) -> 15.11201782 | F35: ='I-Cenário Base'!K35+SUMIF('II-a) Medidas a implementar'!$C:$C,$A35,'II-a) Medidas a implementar'!H:H)+SUMIF('II-c) Reflexos'!$D:$D,$A35,'II-c) Reflexos'!J:J) -> 14.18829092 | G35: ='I-Cenário Base'!L35+SUMIF('II-a) Medidas a implementar'!$C:$C,$A35,'II-a) Medidas a implementar'!I:I)+SUMIF('II-c) Reflexos'!$D:$D,$A35,'II-c) Reflexos'!K:K) -> 14.49324338 | H35: ='I-Cenário Base'!M35+SUMIF('II-a) Medidas a implementar'!$C:$C,$A35,'II-a) Medidas a implementar'!J:J)+SUMIF('II-c) Reflexos'!$D:$D,$A35,'II-c) Reflexos'!L:L) -> 14.81939823 | I35: ='I-Cenário Base'!N35+SUMIF('II-a) Medidas a implementar'!$C:$C,$A35,'II-a) Medidas a implementar'!K:K)+SUMIF('II-c) Reflexos'!$D:$D,$A35,'II-c) Reflexos'!M:M) -> 14.94101674 | J35: ='I-Cenário Base'!O35+SUMIF('II-a) Medidas a implementar'!$C:$C,$A35,'II-a) Medidas a implementar'!L:L)+SUMIF('II-c) Reflexos'!$D:$D,$A35,'II-c) Reflexos'!N:N) -> 15.10318494 | K35: ='I-Cenário Base'!P35+SUMIF('II-a) Medidas a implementar'!$C:$C,$A35,'II-a) Medidas a implementar'!M:M)+SUMIF('II-c) Reflexos'!$D:$D,$A35,'II-c) Reflexos'!O:O) -> 0 | L35: ='I-Cenário Base'!Q35+SUMIF('II-a) Medidas a implementar'!$C:$C,$A35,'II-a) Medidas a implementar'!N:N)+SUMIF('II-c) Reflexos'!$D:$D,$A35,'II-c) Reflexos'!P:P) -> 0
A36: Alienação de Bens (XII) | B36: =SUM(B37:B38) -> 586.9045723 | C36: =SUM(C37:C38) -> 9.52604968 | D36: 70 | E36: 10 | F36: 10 | G36: 0 | H36: 0 | I36: 0 | J36: 0 | K36: =SUM(K37:K38) -> 0 | L36: 0
A37: Alienação de Bens Não Primária (e) | B37: ='I-Cenário Base'!G37+SUMIF('II-a) Medidas a implementar'!$C:$C,$A37,'II-a) Medidas a implementar'!D:D)+SUMIF('II-c) Reflexos'!$D:$D,$A37,'II-c) Reflexos'!F:F) -> 549.4763229 | C37: ='I-Cenário Base'!H37+SUMIF('II-a) Medidas a implementar'!$C:$C,$A37,'II-a) Medidas a implementar'!E:E)+SUMIF('II-c) Reflexos'!$D:$D,$A37,'II-c) Reflexos'!G:G) -> 0 | D37: ='I-Cenário Base'!I37+SUMIF('II-a) Medidas a implementar'!$C:$C,$A37,'II-a) Medidas a implementar'!F:F)+SUMIF('II-c) Reflexos'!$D:$D,$A37,'II-c) Reflexos'!H:H) -> 0 | E37: ='I-Cenário Base'!J37+SUMIF('II-a) Medidas a implementar'!$C:$C,$A37,'II-a) Medidas a implementar'!G:G)+SUMIF('II-c) Reflexos'!$D:$D,$A37,'II-c) Reflexos'!I:I) -> 0 | F37: ='I-Cenário Base'!K37+SUMIF('II-a) Medidas a implementar'!$C:$C,$A37,'II-a) Medidas a implementar'!H:H)+SUMIF('II-c) Reflexos'!$D:$D,$A37,'II-c) Reflexos'!J:J) -> 0 | G37: ='I-Cenário Base'!L37+SUMIF('II-a) Medidas a implementar'!$C:$C,$A37,'II-a) Medidas a implementar'!I:I)+SUMIF('II-c) Reflexos'!$D:$D,$A37,'II-c) Reflexos'!K:K) -> 0 | H37: ='I-Cenário Base'!M37+SUMIF('II-a) Medidas a implementar'!$C:$C,$A37,'II-a) Medidas a implementar'!J:J)+SUMIF('II-c) Reflexos'!$D:$D,$A37,'II-c) Reflexos'!L:L) -> 0 | I37: ='I-Cenário Base'!N37+SUMIF('II-a) Medidas a implementar'!$C:$C,$A37,'II-a) Medidas a implementar'!K:K)+SUMIF('II-c) Reflexos'!$D:$D,$A37,'II-c) Reflexos'!M:M) -> 0 | J37: ='I-Cenário Base'!O37+SUMIF('II-a) Medidas a implementar'!$C:$C,$A37,'II-a) Medidas a implementar'!L:L)+SUMIF('II-c) Reflexos'!$D:$D,$A37,'II-c) Reflexos'!N:N) -> 0 | K37: ='I-Cenário Base'!P37+SUMIF('II-a) Medidas a implementar'!$C:$C,$A37,'II-a) Medidas a implementar'!M:M)+SUMIF('II-c) Reflexos'!$D:$D,$A37,'II-c) Reflexos'!O:O) -> 0 | L37: ='I-Cenário Base'!Q37+SUMIF('II-a) Medidas a implementar'!$C:$C,$A37,'II-a) Medidas a implementar'!N:N)+SUMIF('II-c) Reflexos'!$D:$D,$A37,'II-c) Reflexos'!P:P) -> 0
A38: Alienação de Bens Primária | B38: ='I-Cenário Base'!G38+SUMIF('II-a) Medidas a implementar'!$C:$C,$A38,'II-a) Medidas a implementar'!D:D)+SUMIF('II-c) Reflexos'!$D:$D,$A38,'II-c) Reflexos'!F:F) -> 37.42824933 | C38: ='I-Cenário Base'!H38+SUMIF('II-a) Medidas a implementar'!$C:$C,$A38,'II-a) Medidas a implementar'!E:E)+SUMIF('II-c) Reflexos'!$D:$D,$A38,'II-c) Reflexos'!G:G) -> 9.52604968 | D38: ='I-Cenário Base'!I38+SUMIF('II-a) Medidas a implementar'!$C:$C,$A38,'II-a) Medidas a implementar'!F:F)+SUMIF('II-c) Reflexos'!$D:$D,$A38,'II-c) Reflexos'!H:H) -> 70 | E38: ='I-Cenário Base'!J38+SUMIF('II-a) Medidas a implementar'!$C:$C,$A38,'II-a) Medidas a implementar'!G:G)+SUMIF('II-c) Reflexos'!$D:$D,$A38,'II-c) Reflexos'!I:I) -> 10 | F38: ='I-Cenário Base'!K38+SUMIF('II-a) Medidas a implementar'!$C:$C,$A38,'II-a) Medidas a implementar'!H:H)+SUMIF('II-c) Reflexos'!$D:$D,$A38,'II-c) Reflexos'!J:J) -> 10 | G38: ='I-Cenário Base'!L38+SUMIF('II-a) Medidas a implementar'!$C:$C,$A38,'II-a) Medidas a implementar'!I:I)+SUMIF('II-c) Reflexos'!$D:$D,$A38,'II-c) Reflexos'!K:K) -> 0 | H38: ='I-Cenário Base'!M38+SUMIF('II-a) Medidas a implementar'!$C:$C,$A38,'II-a) Medidas a implementar'!J:J)+SUMIF('II-c) Reflexos'!$D:$D,$A38,'II-c) Reflexos'!L:L) -> 0 | I38: ='I-Cenário Base'!N38+SUMIF('II-a) Medidas a implementar'!$C:$C,$A38,'II-a) Medidas a implementar'!K:K)+SUMIF('II-c) Reflexos'!$D:$D,$A38,'II-c) Reflexos'!M:M) -> 0 | J38: ='I-Cenário Base'!O38+SUMIF('II-a) Medidas a implementar'!$C:$C,$A38,'II-a) Medidas a implementar'!L:L)+SUMIF('II-c) Reflexos'!$D:$D,$A38,'II-c) Reflexos'!N:N) -> 0 | K38: ='I-Cenário Base'!P38+SUMIF('II-a) Medidas a implementar'!$C:$C,$A38,'II-a) Medidas a implementar'!M:M)+SUMIF('II-c) Reflexos'!$D:$D,$A38,'II-c) Reflexos'!O:O) -> 0 | L38: ='I-Cenário Base'!Q38+SUMIF('II-a) Medidas a implementar'!$C:$C,$A38,'II-a) Medidas a implementar'!N:N)+SUMIF('II-c) Reflexos'!$D:$D,$A38,'II-c) Reflexos'!P:P) -> 0
A39: Transferências de Capital (XIII) | B39: ='I-Cenário Base'!G39+SUMIF('II-a) Medidas a implementar'!$C:$C,$A39,'II-a) Medidas a implementar'!D:D)+SUMIF('II-c) Reflexos'!$D:$D,$A39,'II-c) Reflexos'!F:F) -> 122.4335482 | C39: ='I-Cenário Base'!H39+SUMIF('II-a) Medidas a implementar'!$C:$C,$A39,'II-a) Medidas a implementar'!E:E)+SUMIF('II-c) Reflexos'!$D:$D,$A39,'II-c) Reflexos'!G:G) -> 73.62708169 | D39: ='I-Cenário Base'!I39+SUMIF('II-a) Medidas a implementar'!$C:$C,$A39,'II-a) Medidas a implementar'!F:F)+SUMIF('II-c) Reflexos'!$D:$D,$A39,'II-c) Reflexos'!H:H) -> 94.957 | E39: ='I-Cenário Base'!J39+SUMIF('II-a) Medidas a implementar'!$C:$C,$A39,'II-a) Medidas a implementar'!G:G)+SUMIF('II-c) Reflexos'!$D:$D,$A39,'II-c) Reflexos'!I:I) -> 38.76856179 | F39: ='I-Cenário Base'!K39+SUMIF('II-a) Medidas a implementar'!$C:$C,$A39,'II-a) Medidas a implementar'!H:H)+SUMIF('II-c) Reflexos'!$D:$D,$A39,'II-c) Reflexos'!J:J) -> 38.40297137 | G39: ='I-Cenário Base'!L39+SUMIF('II-a) Medidas a implementar'!$C:$C,$A39,'II-a) Medidas a implementar'!I:I)+SUMIF('II-c) Reflexos'!$D:$D,$A39,'II-c) Reflexos'!K:K) -> 39.55506051 | H39: ='I-Cenário Base'!M39+SUMIF('II-a) Medidas a implementar'!$C:$C,$A39,'II-a) Medidas a implementar'!J:J)+SUMIF('II-c) Reflexos'!$D:$D,$A39,'II-c) Reflexos'!L:L) -> 40.74171233 | I39: ='I-Cenário Base'!N39+SUMIF('II-a) Medidas a implementar'!$C:$C,$A39,'II-a) Medidas a implementar'!K:K)+SUMIF('II-c) Reflexos'!$D:$D,$A39,'II-c) Reflexos'!M:M) -> 41.9639637 | J39: ='I-Cenário Base'!O39+SUMIF('II-a) Medidas a implementar'!$C:$C,$A39,'II-a) Medidas a implementar'!L:L)+SUMIF('II-c) Reflexos'!$D:$D,$A39,'II-c) Reflexos'!N:N) -> 43.22288261 | K39: ='I-Cenário Base'!P39+SUMIF('II-a) Medidas a implementar'!$C:$C,$A39,'II-a) Medidas a implementar'!M:M)+SUMIF('II-c) Reflexos'!$D:$D,$A39,'II-c) Reflexos'!O:O) -> 0 | L39: ='I-Cenário Base'!Q39+SUMIF('II-a) Medidas a implementar'!$C:$C,$A39,'II-a) Medidas a implementar'!N:N)+SUMIF('II-c) Reflexos'!$D:$D,$A39,'II-c) Reflexos'!P:P) -> 0
A40: Outras Receitas de Capital (XIV) | B40: =SUM(B41:B42) -> 0.045 | C40: =SUM(C41:C42) -> 0.07 | D40: 0.074 | E40: 450.0783968 | F40: 0.08293302 | G40: 0.0854210106 | H40: 0.08798364092 | I40: 0.09062315015 | J40: 0.09334184465 | K40: =SUM(K41:K42) -> 0 | L40: 0
A41: Outras Receitas de Capital Não Primárias (f) | B41: ='I-Cenário Base'!G41+SUMIF('II-a) Medidas a implementar'!$C:$C,$A41,'II-a) Medidas a implementar'!D:D)+SUMIF('II-c) Reflexos'!$D:$D,$A41,'II-c) Reflexos'!F:F) -> 0 | C41: ='I-Cenário Base'!H41+SUMIF('II-a) Medidas a implementar'!$C:$C,$A41,'II-a) Medidas a implementar'!E:E)+SUMIF('II-c) Reflexos'!$D:$D,$A41,'II-c) Reflexos'!G:G) -> 0 | D41: ='I-Cenário Base'!I41+SUMIF('II-a) Medidas a implementar'!$C:$C,$A41,'II-a) Medidas a implementar'!F:F)+SUMIF('II-c) Reflexos'!$D:$D,$A41,'II-c) Reflexos'!H:H) -> 0 | E41: ='I-Cenário Base'!J41+SUMIF('II-a) Medidas a implementar'!$C:$C,$A41,'II-a) Medidas a implementar'!G:G)+SUMIF('II-c) Reflexos'!$D:$D,$A41,'II-c) Reflexos'!I:I) -> 450 | F41: ='I-Cenário Base'!K41+SUMIF('II-a) Medidas a implementar'!$C:$C,$A41,'II-a) Medidas a implementar'!H:H)+SUMIF('II-c) Reflexos'!$D:$D,$A41,'II-c) Reflexos'!J:J) -> 0 | G41: ='I-Cenário Base'!L41+SUMIF('II-a) Medidas a implementar'!$C:$C,$A41,'II-a) Medidas a implementar'!I:I)+SUMIF('II-c) Reflexos'!$D:$D,$A41,'II-c) Reflexos'!K:K) -> 0 | H41: ='I-Cenário Base'!M41+SUMIF('II-a) Medidas a implementar'!$C:$C,$A41,'II-a) Medidas a implementar'!J:J)+SUMIF('II-c) Reflexos'!$D:$D,$A41,'II-c) Reflexos'!L:L) -> 0 | I41: ='I-Cenário Base'!N41+SUMIF('II-a) Medidas a implementar'!$C:$C,$A41,'II-a) Medidas a implementar'!K:K)+SUMIF('II-c) Reflexos'!$D:$D,$A41,'II-c) Reflexos'!M:M) -> 0 | J41: ='I-Cenário Base'!O41+SUMIF('II-a) Medidas a implementar'!$C:$C,$A41,'II-a) Medidas a implementar'!L:L)+SUMIF('II-c) Reflexos'!$D:$D,$A41,'II-c) Reflexos'!N:N) -> 0 | K41: ='I-Cenário Base'!P41+SUMIF('II-a) Medidas a implementar'!$C:$C,$A41,'II-a) Medidas a implementar'!M:M)+SUMIF('II-c) Reflexos'!$D:$D,$A41,'II-c) Reflexos'!O:O) -> 0 | L41: ='I-Cenário Base'!Q41+SUMIF('II-a) Medidas a implementar'!$C:$C,$A41,'II-a) Medidas a implementar'!N:N)+SUMIF('II-c) Reflexos'!$D:$D,$A41,'II-c) Reflexos'!P:P) -> 0
A42: Outras Receitas de Capital Primárias | B42: ='I-Cenário Base'!G42+SUMIF('II-a) Medidas a implementar'!$C:$C,$A42,'II-a) Medidas a implementar'!D:D)+SUMIF('II-c) Reflexos'!$D:$D,$A42,'II-c) Reflexos'!F:F) -> 0.045 | C42: ='I-Cenário Base'!H42+SUMIF('II-a) Medidas a implementar'!$C:$C,$A42,'II-a) Medidas a implementar'!E:E)+SUMIF('II-c) Reflexos'!$D:$D,$A42,'II-c) Reflexos'!G:G) -> 0.07 | D42: ='I-Cenário Base'!I42+SUMIF('II-a) Medidas a implementar'!$C:$C,$A42,'II-a) Medidas a implementar'!F:F)+SUMIF('II-c) Reflexos'!$D:$D,$A42,'II-c) Reflexos'!H:H) -> 0.074 | E42: ='I-Cenário Base'!J42+SUMIF('II-a) Medidas a implementar'!$C:$C,$A42,'II-a) Medidas a implementar'!G:G)+SUMIF('II-c) Reflexos'!$D:$D,$A42,'II-c) Reflexos'!I:I) -> 0.07839685 | F42: ='I-Cenário Base'!K42+SUMIF('II-a) Medidas a implementar'!$C:$C,$A42,'II-a) Medidas a implementar'!H:H)+SUMIF('II-c) Reflexos'!$D:$D,$A42,'II-c) Reflexos'!J:J) -> 0.08293302 | G42: ='I-Cenário Base'!L42+SUMIF('II-a) Medidas a implementar'!$C:$C,$A42,'II-a) Medidas a implementar'!I:I)+SUMIF('II-c) Reflexos'!$D:$D,$A42,'II-c) Reflexos'!K:K) -> 0.0854210106 | H42: ='I-Cenário Base'!M42+SUMIF('II-a) Medidas a implementar'!$C:$C,$A42,'II-a) Medidas a implementar'!J:J)+SUMIF('II-c) Reflexos'!$D:$D,$A42,'II-c) Reflexos'!L:L) -> 0.08798364092 | I42: ='I-Cenário Base'!N42+SUMIF('II-a) Medidas a implementar'!$C:$C,$A42,'II-a) Medidas a implementar'!K:K)+SUMIF('II-c) Reflexos'!$D:$D,$A42,'II-c) Reflexos'!M:M) -> 0.09062315015 | J42: ='I-Cenário Base'!O42+SUMIF('II-a) Medidas a implementar'!$C:$C,$A42,'II-a) Medidas a implementar'!L:L)+SUMIF('II-c) Reflexos'!$D:$D,$A42,'II-c) Reflexos'!N:N) -> 0.09334184465 | K42: ='I-Cenário Base'!P42+SUMIF('II-a) Medidas a implementar'!$C:$C,$A42,'II-a) Medidas a implementar'!M:M)+SUMIF('II-c) Reflexos'!$D:$D,$A42,'II-c) Reflexos'!O:O) -> 0 | L42: ='I-Cenário Base'!Q42+SUMIF('II-a) Medidas a implementar'!$C:$C,$A42,'II-a) Medidas a implementar'!N:N)+SUMIF('II-c) Reflexos'!$D:$D,$A42,'II-c) Reflexos'!P:P) -> 0
A43: Receitas Primárias de Capital (XV) = (IX-X-XI-e-f) | B43: =B33-B34-B35-B37-B41 -> 159.9067975 | C43: =C33-C34-C35-C37-C41 -> 83.22313137 | D43: 165.031 | E43: 48.84695864 | F43: 48.48590439 | G43: 39.64048152 | H43: 40.82969597 | I43: 42.05458685 | J43: 43.31622445 | K43: =K33-K34-K35-K37-K41 -> 0 | L43: 0
A44: RECEITA PRIMÁRIA TOTAL (XVI) = (VIII+XV) | B44: =B32+B43 -> 43464.97611 | C44: =C32+C43 -> 43767.21145 | D44: 44240.96565 | E44: 46835.13721 | F44: 48600.00558 | G44: 51177.48787 | H44: 53978.71803 | I44: 56874.17164 | J44: 59757.21124 | K44: =K32+K43 -> 0 | L44: 0
A45: Despesa Orçamentária (XVII) = (XVIII+XXIII) | B45: =B46+B58 -> 43405.1973 | C45: 44467.16659 | D45: 45877.82284 | E45: 48309.43631 | F45: 50304.22924 | G45: 52544.89491 | H45: 53790.96378 | I45: 56028.03977 | J45: 58359.99525 | K45: 0 | L45: 0
A46: Despesas Correntes (XVIII) = (XIX+XX+XXI) | B46: =B47+B52+B53 -> 38177.27567 | C46: =C47+C52+C53 -> 40781.07801 | D46: 44293.65889 | E46: 46601.04259 | F46: 48218.27891 | G46: 49591.98486 | H46: 50564.87797 | I46: 51823.19294 | J46: 53723.5231 | K46: =K47+K52+K53 -> 0 | L46: 0
A47: Pessoal e Encargos Sociais (XIX) | B47: =SUM(B48:B51) -> 18648.93856 | C47: =SUM(C48:C51) -> 20134.70995 | D47: 22514.29834 | E47: 23595.5029 | F47: 24108.69447 | G47: 24262.00789 | H47: 24987.40005 | I47: 25075.83934 | J47: 25750.09977 | K47: =SUM(K48:K51) -> 0 | L47: 0
A48: Ativo | B48: ='I-Cenário Base'!G48+SUMIF('II-a) Medidas a implementar'!$C:$C,$A48,'II-a) Medidas a implementar'!D:D)+SUMIF('II-c) Reflexos'!$D:$D,$A48,'II-c) Reflexos'!F:F) -> 12544.62652 | C48: ='I-Cenário Base'!H48+SUMIF('II-a) Medidas a implementar'!$C:$C,$A48,'II-a) Medidas a implementar'!E:E)+SUMIF('II-c) Reflexos'!$D:$D,$A48,'II-c) Reflexos'!G:G) -> 13386.73919 | D48: ='I-Cenário Base'!I48+SUMIF('II-a) Medidas a implementar'!$C:$C,$A48,'II-a) Medidas a implementar'!F:F)+SUMIF('II-c) Reflexos'!$D:$D,$A48,'II-c) Reflexos'!H:H) -> 15795.47857 | E48: ='I-Cenário Base'!J48+SUMIF('II-a) Medidas a implementar'!$C:$C,$A48,'II-a) Medidas a implementar'!G:G)+SUMIF('II-c) Reflexos'!$D:$D,$A48,'II-c) Reflexos'!I:I) -> 17040.12732 | F48: ='I-Cenário Base'!K48+SUMIF('II-a) Medidas a implementar'!$C:$C,$A48,'II-a) Medidas a implementar'!H:H)+SUMIF('II-c) Reflexos'!$D:$D,$A48,'II-c) Reflexos'!J:J) -> 17766.12259 | G48: ='I-Cenário Base'!L48+SUMIF('II-a) Medidas a implementar'!$C:$C,$A48,'II-a) Medidas a implementar'!I:I)+SUMIF('II-c) Reflexos'!$D:$D,$A48,'II-c) Reflexos'!K:K) -> 18048.66949 | H48: ='I-Cenário Base'!M48+SUMIF('II-a) Medidas a implementar'!$C:$C,$A48,'II-a) Medidas a implementar'!J:J)+SUMIF('II-c) Reflexos'!$D:$D,$A48,'II-c) Reflexos'!L:L) -> 18963.86842 | I48: ='I-Cenário Base'!N48+SUMIF('II-a) Medidas a implementar'!$C:$C,$A48,'II-a) Medidas a implementar'!K:K)+SUMIF('II-c) Reflexos'!$D:$D,$A48,'II-c) Reflexos'!M:M) -> 19146.99759 | J48: ='I-Cenário Base'!O48+SUMIF('II-a) Medidas a implementar'!$C:$C,$A48,'II-a) Medidas a implementar'!L:L)+SUMIF('II-c) Reflexos'!$D:$D,$A48,'II-c) Reflexos'!N:N) -> 19843.81862 | K48: ='I-Cenário Base'!P48+SUMIF('II-a) Medidas a implementar'!$C:$C,$A48,'II-a) Medidas a implementar'!M:M)+SUMIF('II-c) Reflexos'!$D:$D,$A48,'II-c) Reflexos'!O:O) -> 0 | L48: ='I-Cenário Base'!Q48+SUMIF('II-a) Medidas a implementar'!$C:$C,$A48,'II-a) Medidas a implementar'!N:N)+SUMIF('II-c) Reflexos'!$D:$D,$A48,'II-c) Reflexos'!P:P) -> 0
A49: Inativos e Pensionistas | B49: ='I-Cenário Base'!G49+SUMIF('II-a) Medidas a implementar'!$C:$C,$A49,'II-a) Medidas a implementar'!D:D)+SUMIF('II-c) Reflexos'!$D:$D,$A49,'II-c) Reflexos'!F:F) -> 5154.006258 | C49: ='I-Cenário Base'!H49+SUMIF('II-a) Medidas a implementar'!$C:$C,$A49,'II-a) Medidas a implementar'!E:E)+SUMIF('II-c) Reflexos'!$D:$D,$A49,'II-c) Reflexos'!G:G) -> 5196.524291 | D49: ='I-Cenário Base'!I49+SUMIF('II-a) Medidas a implementar'!$C:$C,$A49,'II-a) Medidas a implementar'!F:F)+SUMIF('II-c) Reflexos'!$D:$D,$A49,'II-c) Reflexos'!H:H) -> 5499.333485 | E49: ='I-Cenário Base'!J49+SUMIF('II-a) Medidas a implementar'!$C:$C,$A49,'II-a) Medidas a implementar'!G:G)+SUMIF('II-c) Reflexos'!$D:$D,$A49,'II-c) Reflexos'!I:I) -> 5306.391446 | F49: ='I-Cenário Base'!K49+SUMIF('II-a) Medidas a implementar'!$C:$C,$A49,'II-a) Medidas a implementar'!H:H)+SUMIF('II-c) Reflexos'!$D:$D,$A49,'II-c) Reflexos'!J:J) -> 5059.891303 | G49: ='I-Cenário Base'!L49+SUMIF('II-a) Medidas a implementar'!$C:$C,$A49,'II-a) Medidas a implementar'!I:I)+SUMIF('II-c) Reflexos'!$D:$D,$A49,'II-c) Reflexos'!K:K) -> 4889.932629 | H49: ='I-Cenário Base'!M49+SUMIF('II-a) Medidas a implementar'!$C:$C,$A49,'II-a) Medidas a implementar'!J:J)+SUMIF('II-c) Reflexos'!$D:$D,$A49,'II-c) Reflexos'!L:L) -> 4658.044418 | I49: ='I-Cenário Base'!N49+SUMIF('II-a) Medidas a implementar'!$C:$C,$A49,'II-a) Medidas a implementar'!K:K)+SUMIF('II-c) Reflexos'!$D:$D,$A49,'II-c) Reflexos'!M:M) -> 4519.976581 | J49: ='I-Cenário Base'!O49+SUMIF('II-a) Medidas a implementar'!$C:$C,$A49,'II-a) Medidas a implementar'!L:L)+SUMIF('II-c) Reflexos'!$D:$D,$A49,'II-c) Reflexos'!N:N) -> 4452.699967 | K49: ='I-Cenário Base'!P49+SUMIF('II-a) Medidas a implementar'!$C:$C,$A49,'II-a) Medidas a implementar'!M:M)+SUMIF('II-c) Reflexos'!$D:$D,$A49,'II-c) Reflexos'!O:O) -> 0 | L49: ='I-Cenário Base'!Q49+SUMIF('II-a) Medidas a implementar'!$C:$C,$A49,'II-a) Medidas a implementar'!N:N)+SUMIF('II-c) Reflexos'!$D:$D,$A49,'II-c) Reflexos'!P:P) -> 0
A50: Sentenças Judiciais - Pessoal | B50: ='I-Cenário Base'!G50+SUMIF('II-a) Medidas a implementar'!$C:$C,$A50,'II-a) Medidas a implementar'!D:D)+SUMIF('II-c) Reflexos'!$D:$D,$A50,'II-c) Reflexos'!F:F) -> 242.1215607 | C50: ='I-Cenário Base'!H50+SUMIF('II-a) Medidas a implementar'!$C:$C,$A50,'II-a) Medidas a implementar'!E:E)+SUMIF('II-c) Reflexos'!$D:$D,$A50,'II-c) Reflexos'!G:G) -> 801.5390299 | D50: ='I-Cenário Base'!I50+SUMIF('II-a) Medidas a implementar'!$C:$C,$A50,'II-a) Medidas a implementar'!F:F)+SUMIF('II-c) Reflexos'!$D:$D,$A50,'II-c) Reflexos'!H:H) -> 444.082 | E50: ='I-Cenário Base'!J50+SUMIF('II-a) Medidas a implementar'!$C:$C,$A50,'II-a) Medidas a implementar'!G:G)+SUMIF('II-c) Reflexos'!$D:$D,$A50,'II-c) Reflexos'!I:I) -> 449.4647734 | F50: ='I-Cenário Base'!K50+SUMIF('II-a) Medidas a implementar'!$C:$C,$A50,'II-a) Medidas a implementar'!H:H)+SUMIF('II-c) Reflexos'!$D:$D,$A50,'II-c) Reflexos'!J:J) -> 458.4560647 | G50: ='I-Cenário Base'!L50+SUMIF('II-a) Medidas a implementar'!$C:$C,$A50,'II-a) Medidas a implementar'!I:I)+SUMIF('II-c) Reflexos'!$D:$D,$A50,'II-c) Reflexos'!K:K) -> 474.454527 | H50: ='I-Cenário Base'!M50+SUMIF('II-a) Medidas a implementar'!$C:$C,$A50,'II-a) Medidas a implementar'!J:J)+SUMIF('II-c) Reflexos'!$D:$D,$A50,'II-c) Reflexos'!L:L) -> 491.0674354 | I50: ='I-Cenário Base'!N50+SUMIF('II-a) Medidas a implementar'!$C:$C,$A50,'II-a) Medidas a implementar'!K:K)+SUMIF('II-c) Reflexos'!$D:$D,$A50,'II-c) Reflexos'!M:M) -> 508.2127957 | J50: ='I-Cenário Base'!O50+SUMIF('II-a) Medidas a implementar'!$C:$C,$A50,'II-a) Medidas a implementar'!L:L)+SUMIF('II-c) Reflexos'!$D:$D,$A50,'II-c) Reflexos'!N:N) -> 525.9092435 | K50: ='I-Cenário Base'!P50+SUMIF('II-a) Medidas a implementar'!$C:$C,$A50,'II-a) Medidas a implementar'!M:M)+SUMIF('II-c) Reflexos'!$D:$D,$A50,'II-c) Reflexos'!O:O) -> 0 | L50: ='I-Cenário Base'!Q50+SUMIF('II-a) Medidas a implementar'!$C:$C,$A50,'II-a) Medidas a implementar'!N:N)+SUMIF('II-c) Reflexos'!$D:$D,$A50,'II-c) Reflexos'!P:P) -> 0
A51: Outras Despesas com Pessoal | B51: ='I-Cenário Base'!G51+SUMIF('II-a) Medidas a implementar'!$C:$C,$A51,'II-a) Medidas a implementar'!D:D)+SUMIF('II-c) Reflexos'!$D:$D,$A51,'II-c) Reflexos'!F:F) -> 708.184215 | C51: ='I-Cenário Base'!H51+SUMIF('II-a) Medidas a implementar'!$C:$C,$A51,'II-a) Medidas a implementar'!E:E)+SUMIF('II-c) Reflexos'!$D:$D,$A51,'II-c) Reflexos'!G:G) -> 749.9074355 | D51: ='I-Cenário Base'!I51+SUMIF('II-a) Medidas a implementar'!$C:$C,$A51,'II-a) Medidas a implementar'!F:F)+SUMIF('II-c) Reflexos'!$D:$D,$A51,'II-c) Reflexos'!H:H) -> 775.4042883 | E51: ='I-Cenário Base'!J51+SUMIF('II-a) Medidas a implementar'!$C:$C,$A51,'II-a) Medidas a implementar'!G:G)+SUMIF('II-c) Reflexos'!$D:$D,$A51,'II-c) Reflexos'!I:I) -> 799.5193617 | F51: ='I-Cenário Base'!K51+SUMIF('II-a) Medidas a implementar'!$C:$C,$A51,'II-a) Medidas a implementar'!H:H)+SUMIF('II-c) Reflexos'!$D:$D,$A51,'II-c) Reflexos'!J:J) -> 824.2245099 | G51: ='I-Cenário Base'!L51+SUMIF('II-a) Medidas a implementar'!$C:$C,$A51,'II-a) Medidas a implementar'!I:I)+SUMIF('II-c) Reflexos'!$D:$D,$A51,'II-c) Reflexos'!K:K) -> 848.9512452 | H51: ='I-Cenário Base'!M51+SUMIF('II-a) Medidas a implementar'!$C:$C,$A51,'II-a) Medidas a implementar'!J:J)+SUMIF('II-c) Reflexos'!$D:$D,$A51,'II-c) Reflexos'!L:L) -> 874.4197826 | I51: ='I-Cenário Base'!N51+SUMIF('II-a) Medidas a implementar'!$C:$C,$A51,'II-a) Medidas a implementar'!K:K)+SUMIF('II-c) Reflexos'!$D:$D,$A51,'II-c) Reflexos'!M:M) -> 900.6523761 | J51: ='I-Cenário Base'!O51+SUMIF('II-a) Medidas a implementar'!$C:$C,$A51,'II-a) Medidas a implementar'!L:L)+SUMIF('II-c) Reflexos'!$D:$D,$A51,'II-c) Reflexos'!N:N) -> 927.6719474 | K51: ='I-Cenário Base'!P51+SUMIF('II-a) Medidas a implementar'!$C:$C,$A51,'II-a) Medidas a implementar'!M:M)+SUMIF('II-c) Reflexos'!$D:$D,$A51,'II-c) Reflexos'!O:O) -> 0 | L51: ='I-Cenário Base'!Q51+SUMIF('II-a) Medidas a implementar'!$C:$C,$A51,'II-a) Medidas a implementar'!N:N)+SUMIF('II-c) Reflexos'!$D:$D,$A51,'II-c) Reflexos'!P:P) -> 0
A52: Juros e Encargos da Dívida (XX) | B52: ='I-Cenário Base'!G52+SUMIF('II-a) Medidas a implementar'!$C:$C,$A52,'II-a) Medidas a implementar'!D:D)+SUMIF('II-c) Reflexos'!$D:$D,$A52,'II-c) Reflexos'!F:F) -> 358.1340531 | C52: ='I-Cenário Base'!H52+SUMIF('II-a) Medidas a implementar'!$C:$C,$A52,'II-a) Medidas a implementar'!E:E)+SUMIF('II-c) Reflexos'!$D:$D,$A52,'II-c) Reflexos'!G:G) -> 581.1270751 | D52: ='I-Cenário Base'!I52+SUMIF('II-a) Medidas a implementar'!$C:$C,$A52,'II-a) Medidas a implementar'!F:F)+SUMIF('II-c) Reflexos'!$D:$D,$A52,'II-c) Reflexos'!H:H) -> 742.6441063 | E52: ='I-Cenário Base'!J52+SUMIF('II-a) Medidas a implementar'!$C:$C,$A52,'II-a) Medidas a implementar'!G:G)+SUMIF('II-c) Reflexos'!$D:$D,$A52,'II-c) Reflexos'!I:I) -> 869.0964481 | F52: ='I-Cenário Base'!K52+SUMIF('II-a) Medidas a implementar'!$C:$C,$A52,'II-a) Medidas a implementar'!H:H)+SUMIF('II-c) Reflexos'!$D:$D,$A52,'II-c) Reflexos'!J:J) -> 974.9416802 | G52: ='I-Cenário Base'!L52+SUMIF('II-a) Medidas a implementar'!$C:$C,$A52,'II-a) Medidas a implementar'!I:I)+SUMIF('II-c) Reflexos'!$D:$D,$A52,'II-c) Reflexos'!K:K) -> 1039.981084 | H52: ='I-Cenário Base'!M52+SUMIF('II-a) Medidas a implementar'!$C:$C,$A52,'II-a) Medidas a implementar'!J:J)+SUMIF('II-c) Reflexos'!$D:$D,$A52,'II-c) Reflexos'!L:L) -> 1058.153873 | I52: ='I-Cenário Base'!N52+SUMIF('II-a) Medidas a implementar'!$C:$C,$A52,'II-a) Medidas a implementar'!K:K)+SUMIF('II-c) Reflexos'!$D:$D,$A52,'II-c) Reflexos'!M:M) -> 1050.873426 | J52: ='I-Cenário Base'!O52+SUMIF('II-a) Medidas a implementar'!$C:$C,$A52,'II-a) Medidas a implementar'!L:L)+SUMIF('II-c) Reflexos'!$D:$D,$A52,'II-c) Reflexos'!N:N) -> 1033.200805 | K52: ='I-Cenário Base'!P52+SUMIF('II-a) Medidas a implementar'!$C:$C,$A52,'II-a) Medidas a implementar'!M:M)+SUMIF('II-c) Reflexos'!$D:$D,$A52,'II-c) Reflexos'!O:O) -> 0 | L52: ='I-Cenário Base'!Q52+SUMIF('II-a) Medidas a implementar'!$C:$C,$A52,'II-a) Medidas a implementar'!N:N)+SUMIF('II-c) Reflexos'!$D:$D,$A52,'II-c) Reflexos'!P:P) -> 0
A53: Outras Despesas Correntes (XXI) | B53: =SUM(B54:B56) -> 19170.20306 | C53: =SUM(C54:C56) -> 20065.24099 | D53: =SUM(D54:D56) -> 21036.71644 | E53: 22136.44324 | F53: 23134.64276 | G53: 24289.99589 | H53: 24519.32405 | I53: 25696.48018 | J53: 26940.22252 | K53: =SUM(K54:K56) -> 0 | L53: 0
A54: Transferências Constitucionais e Legais (g) | B54: ='I-Cenário Base'!G54+SUMIF('II-a) Medidas a implementar'!$C:$C,$A54,'II-a) Medidas a implementar'!D:D)+SUMIF('II-c) Reflexos'!$D:$D,$A54,'II-c) Reflexos'!F:F) -> 7107.399388 | C54: ='I-Cenário Base'!H54+SUMIF('II-a) Medidas a implementar'!$C:$C,$A54,'II-a) Medidas a implementar'!E:E)+SUMIF('II-c) Reflexos'!$D:$D,$A54,'II-c) Reflexos'!G:G) -> 7573.455184 | D54: ='I-Cenário Base'!I54+SUMIF('II-a) Medidas a implementar'!$C:$C,$A54,'II-a) Medidas a implementar'!F:F)+SUMIF('II-c) Reflexos'!$D:$D,$A54,'II-c) Reflexos'!H:H) -> 7833.345996 | E54: ='I-Cenário Base'!J54+SUMIF('II-a) Medidas a implementar'!$C:$C,$A54,'II-a) Medidas a implementar'!G:G)+SUMIF('II-c) Reflexos'!$D:$D,$A54,'II-c) Reflexos'!I:I) -> 8353.639628 | F54: ='I-Cenário Base'!K54+SUMIF('II-a) Medidas a implementar'!$C:$C,$A54,'II-a) Medidas a implementar'!H:H)+SUMIF('II-c) Reflexos'!$D:$D,$A54,'II-c) Reflexos'!J:J) -> 8764.118304 | G54: ='I-Cenário Base'!L54+SUMIF('II-a) Medidas a implementar'!$C:$C,$A54,'II-a) Medidas a implementar'!I:I)+SUMIF('II-c) Reflexos'!$D:$D,$A54,'II-c) Reflexos'!K:K) -> 9257.507253 | H54: ='I-Cenário Base'!M54+SUMIF('II-a) Medidas a implementar'!$C:$C,$A54,'II-a) Medidas a implementar'!J:J)+SUMIF('II-c) Reflexos'!$D:$D,$A54,'II-c) Reflexos'!L:L) -> 9783.148515 | I54: ='I-Cenário Base'!N54+SUMIF('II-a) Medidas a implementar'!$C:$C,$A54,'II-a) Medidas a implementar'!K:K)+SUMIF('II-c) Reflexos'!$D:$D,$A54,'II-c) Reflexos'!M:M) -> 10338.63569 | J54: ='I-Cenário Base'!O54+SUMIF('II-a) Medidas a implementar'!$C:$C,$A54,'II-a) Medidas a implementar'!L:L)+SUMIF('II-c) Reflexos'!$D:$D,$A54,'II-c) Reflexos'!N:N) -> 10925.66342 | K54: ='I-Cenário Base'!P54+SUMIF('II-a) Medidas a implementar'!$C:$C,$A54,'II-a) Medidas a implementar'!M:M)+SUMIF('II-c) Reflexos'!$D:$D,$A54,'II-c) Reflexos'!O:O) -> 0 | L54: ='I-Cenário Base'!Q54+SUMIF('II-a) Medidas a implementar'!$C:$C,$A54,'II-a) Medidas a implementar'!N:N)+SUMIF('II-c) Reflexos'!$D:$D,$A54,'II-c) Reflexos'!P:P) -> 0
A55: Sentenças Judiciais - Outras Correntes | B55: ='I-Cenário Base'!G55+SUMIF('II-a) Medidas a implementar'!$C:$C,$A55,'II-a) Medidas a implementar'!D:D)+SUMIF('II-c) Reflexos'!$D:$D,$A55,'II-c) Reflexos'!F:F) -> 750.3812759 | C55: ='I-Cenário Base'!H55+SUMIF('II-a) Medidas a implementar'!$C:$C,$A55,'II-a) Medidas a implementar'!E:E)+SUMIF('II-c) Reflexos'!$D:$D,$A55,'II-c) Reflexos'!G:G) -> 810.1046516 | D55: ='I-Cenário Base'!I55+SUMIF('II-a) Medidas a implementar'!$C:$C,$A55,'II-a) Medidas a implementar'!F:F)+SUMIF('II-c) Reflexos'!$D:$D,$A55,'II-c) Reflexos'!H:H) -> 1003.284149 | E55: ='I-Cenário Base'!J55+SUMIF('II-a) Medidas a implementar'!$C:$C,$A55,'II-a) Medidas a implementar'!G:G)+SUMIF('II-c) Reflexos'!$D:$D,$A55,'II-c) Reflexos'!I:I) -> 1042.123754 | F55: ='I-Cenário Base'!K55+SUMIF('II-a) Medidas a implementar'!$C:$C,$A55,'II-a) Medidas a implementar'!H:H)+SUMIF('II-c) Reflexos'!$D:$D,$A55,'II-c) Reflexos'!J:J) -> 1085.311496 | G55: ='I-Cenário Base'!L55+SUMIF('II-a) Medidas a implementar'!$C:$C,$A55,'II-a) Medidas a implementar'!I:I)+SUMIF('II-c) Reflexos'!$D:$D,$A55,'II-c) Reflexos'!K:K) -> 1184.728415 | H55: ='I-Cenário Base'!M55+SUMIF('II-a) Medidas a implementar'!$C:$C,$A55,'II-a) Medidas a implementar'!J:J)+SUMIF('II-c) Reflexos'!$D:$D,$A55,'II-c) Reflexos'!L:L) -> 293.3345058 | I55: ='I-Cenário Base'!N55+SUMIF('II-a) Medidas a implementar'!$C:$C,$A55,'II-a) Medidas a implementar'!K:K)+SUMIF('II-c) Reflexos'!$D:$D,$A55,'II-c) Reflexos'!M:M) -> 302.134541 | J55: ='I-Cenário Base'!O55+SUMIF('II-a) Medidas a implementar'!$C:$C,$A55,'II-a) Medidas a implementar'!L:L)+SUMIF('II-c) Reflexos'!$D:$D,$A55,'II-c) Reflexos'!N:N) -> 311.1985772 | K55: ='I-Cenário Base'!P55+SUMIF('II-a) Medidas a implementar'!$C:$C,$A55,'II-a) Medidas a implementar'!M:M)+SUMIF('II-c) Reflexos'!$D:$D,$A55,'II-c) Reflexos'!O:O) -> 0 | L55: ='I-Cenário Base'!Q55+SUMIF('II-a) Medidas a implementar'!$C:$C,$A55,'II-a) Medidas a implementar'!N:N)+SUMIF('II-c) Reflexos'!$D:$D,$A55,'II-c) Reflexos'!P:P) -> 0
A56: Demais Despesas Correntes | B56: ='I-Cenário Base'!G56+SUMIF('II-a) Medidas a implementar'!$C:$C,$A56,'II-a) Medidas a implementar'!D:D)+SUMIF('II-c) Reflexos'!$D:$D,$A56,'II-c) Reflexos'!F:F) -> 11312.4224 | C56: ='I-Cenário Base'!H56+SUMIF('II-a) Medidas a implementar'!$C:$C,$A56,'II-a) Medidas a implementar'!E:E)+SUMIF('II-c) Reflexos'!$D:$D,$A56,'II-c) Reflexos'!G:G) -> 11681.68115 | D56: ='I-Cenário Base'!I56+SUMIF('II-a) Medidas a implementar'!$C:$C,$A56,'II-a) Medidas a implementar'!F:F)+SUMIF('II-c) Reflexos'!$D:$D,$A56,'II-c) Reflexos'!H:H) -> 12200.08629 | E56: ='I-Cenário Base'!J56+SUMIF('II-a) Medidas a implementar'!$C:$C,$A56,'II-a) Medidas a implementar'!G:G)+SUMIF('II-c) Reflexos'!$D:$D,$A56,'II-c) Reflexos'!I:I) -> 12740.67986 | F56: ='I-Cenário Base'!K56+SUMIF('II-a) Medidas a implementar'!$C:$C,$A56,'II-a) Medidas a implementar'!H:H)+SUMIF('II-c) Reflexos'!$D:$D,$A56,'II-c) Reflexos'!J:J) -> 13285.21296 | G56: ='I-Cenário Base'!L56+SUMIF('II-a) Medidas a implementar'!$C:$C,$A56,'II-a) Medidas a implementar'!I:I)+SUMIF('II-c) Reflexos'!$D:$D,$A56,'II-c) Reflexos'!K:K) -> 13847.76022 | H56: ='I-Cenário Base'!M56+SUMIF('II-a) Medidas a implementar'!$C:$C,$A56,'II-a) Medidas a implementar'!J:J)+SUMIF('II-c) Reflexos'!$D:$D,$A56,'II-c) Reflexos'!L:L) -> 14442.84103 | I56: ='I-Cenário Base'!N56+SUMIF('II-a) Medidas a implementar'!$C:$C,$A56,'II-a) Medidas a implementar'!K:K)+SUMIF('II-c) Reflexos'!$D:$D,$A56,'II-c) Reflexos'!M:M) -> 15055.70995 | J56: ='I-Cenário Base'!O56+SUMIF('II-a) Medidas a implementar'!$C:$C,$A56,'II-a) Medidas a implementar'!L:L)+SUMIF('II-c) Reflexos'!$D:$D,$A56,'II-c) Reflexos'!N:N) -> 15703.36052 | K56: ='I-Cenário Base'!P56+SUMIF('II-a) Medidas a implementar'!$C:$C,$A56,'II-a) Medidas a implementar'!M:M)+SUMIF('II-c) Reflexos'!$D:$D,$A56,'II-c) Reflexos'!O:O) -> 0 | L56: ='I-Cenário Base'!Q56+SUMIF('II-a) Medidas a implementar'!$C:$C,$A56,'II-a) Medidas a implementar'!N:N)+SUMIF('II-c) Reflexos'!$D:$D,$A56,'II-c) Reflexos'!P:P) -> 0
A57: Despesas Primárias Correntes (XXII) = (XVIII-XX-h) | B57: =B46-B52 -> 37819.14162 | C57: 40199.95094 | D57: 43551.01478 | E57: 45731.94614 | F57: 47243.33723 | G57: 48552.00377 | H57: 49506.7241 | I57: 50772.31952 | J57: 52690.3223 | K57: 0 | L57: 0
A58: Despesas de Capital (XXIII) = (XXIV+XXV+XXVI) | B58: =B59+B62+B66 -> 5227.921628 | C58: =C59+C62+C66 -> 3686.088578 | D58: 1584.163956 | E58: 1708.393717 | F58: 2085.950334 | G58: 2952.910051 | H58: 3226.085809 | I58: 4204.846825 | J58: 4636.472154 | K58: =K59+K62+K66 -> 0 | L58: 0
A59: Investimentos (XXIV) | B59: =SUM(B60:B61) -> 2608.604831 | C59: =SUM(C60:C61) -> 3341.051072 | D59: 1111.687132 | E59: 923.3047993 | F59: 1133.516118 | G59: 1785.152898 | H59: 1923.416691 | I59: 2760.164649 | J59: 3018.784786 | K59: =SUM(K60:K61) -> 0 | L59: 0
A60: Sentenças Judiciais - Investimentos | B60: ='I-Cenário Base'!G60+SUMIF('II-a) Medidas a implementar'!$C:$C,$A60,'II-a) Medidas a implementar'!D:D)+SUMIF('II-c) Reflexos'!$D:$D,$A60,'II-c) Reflexos'!F:F) -> 0 | C60: ='I-Cenário Base'!H60+SUMIF('II-a) Medidas a implementar'!$C:$C,$A60,'II-a) Medidas a implementar'!E:E)+SUMIF('II-c) Reflexos'!$D:$D,$A60,'II-c) Reflexos'!G:G) -> 0 | D60: ='I-Cenário Base'!I60+SUMIF('II-a) Medidas a implementar'!$C:$C,$A60,'II-a) Medidas a implementar'!F:F)+SUMIF('II-c) Reflexos'!$D:$D,$A60,'II-c) Reflexos'!H:H) -> 0 | E60: ='I-Cenário Base'!J60+SUMIF('II-a) Medidas a implementar'!$C:$C,$A60,'II-a) Medidas a implementar'!G:G)+SUMIF('II-c) Reflexos'!$D:$D,$A60,'II-c) Reflexos'!I:I) -> 0 | F60: ='I-Cenário Base'!K60+SUMIF('II-a) Medidas a implementar'!$C:$C,$A60,'II-a) Medidas a implementar'!H:H)+SUMIF('II-c) Reflexos'!$D:$D,$A60,'II-c) Reflexos'!J:J) -> 0 | G60: ='I-Cenário Base'!L60+SUMIF('II-a) Medidas a implementar'!$C:$C,$A60,'II-a) Medidas a implementar'!I:I)+SUMIF('II-c) Reflexos'!$D:$D,$A60,'II-c) Reflexos'!K:K) -> 0 | H60: ='I-Cenário Base'!M60+SUMIF('II-a) Medidas a implementar'!$C:$C,$A60,'II-a) Medidas a implementar'!J:J)+SUMIF('II-c) Reflexos'!$D:$D,$A60,'II-c) Reflexos'!L:L) -> 0 | I60: ='I-Cenário Base'!N60+SUMIF('II-a) Medidas a implementar'!$C:$C,$A60,'II-a) Medidas a implementar'!K:K)+SUMIF('II-c) Reflexos'!$D:$D,$A60,'II-c) Reflexos'!M:M) -> 0 | J60: ='I-Cenário Base'!O60+SUMIF('II-a) Medidas a implementar'!$C:$C,$A60,'II-a) Medidas a implementar'!L:L)+SUMIF('II-c) Reflexos'!$D:$D,$A60,'II-c) Reflexos'!N:N) -> 0 | K60: ='I-Cenário Base'!P60+SUMIF('II-a) Medidas a implementar'!$C:$C,$A60,'II-a) Medidas a implementar'!M:M)+SUMIF('II-c) Reflexos'!$D:$D,$A60,'II-c) Reflexos'!O:O) -> 0 | L60: ='I-Cenário Base'!Q60+SUMIF('II-a) Medidas a implementar'!$C:$C,$A60,'II-a) Medidas a implementar'!N:N)+SUMIF('II-c) Reflexos'!$D:$D,$A60,'II-c) Reflexos'!P:P) -> 0
A61: Demais Investimentos | B61: ='I-Cenário Base'!G61+SUMIF('II-a) Medidas a implementar'!$C:$C,$A61,'II-a) Medidas a implementar'!D:D)+SUMIF('II-c) Reflexos'!$D:$D,$A61,'II-c) Reflexos'!F:F) -> 2608.604831 | C61: ='I-Cenário Base'!H61+SUMIF('II-a) Medidas a implementar'!$C:$C,$A61,'II-a) Medidas a implementar'!E:E)+SUMIF('II-c) Reflexos'!$D:$D,$A61,'II-c) Reflexos'!G:G) -> 3341.051072 | D61: ='I-Cenário Base'!I61+SUMIF('II-a) Medidas a implementar'!$C:$C,$A61,'II-a) Medidas a implementar'!F:F)+SUMIF('II-c) Reflexos'!$D:$D,$A61,'II-c) Reflexos'!H:H) -> 1111.687132 | E61: ='I-Cenário Base'!J61+SUMIF('II-a) Medidas a implementar'!$C:$C,$A61,'II-a) Medidas a implementar'!G:G)+SUMIF('II-c) Reflexos'!$D:$D,$A61,'II-c) Reflexos'!I:I) -> 923.3047993 | F61: ='I-Cenário Base'!K61+SUMIF('II-a) Medidas a implementar'!$C:$C,$A61,'II-a) Medidas a implementar'!H:H)+SUMIF('II-c) Reflexos'!$D:$D,$A61,'II-c) Reflexos'!J:J) -> 1133.516118 | G61: ='I-Cenário Base'!L61+SUMIF('II-a) Medidas a implementar'!$C:$C,$A61,'II-a) Medidas a implementar'!I:I)+SUMIF('II-c) Reflexos'!$D:$D,$A61,'II-c) Reflexos'!K:K) -> 1785.152898 | H61: ='I-Cenário Base'!M61+SUMIF('II-a) Medidas a implementar'!$C:$C,$A61,'II-a) Medidas a implementar'!J:J)+SUMIF('II-c) Reflexos'!$D:$D,$A61,'II-c) Reflexos'!L:L) -> 1923.416691 | I61: ='I-Cenário Base'!N61+SUMIF('II-a) Medidas a implementar'!$C:$C,$A61,'II-a) Medidas a implementar'!K:K)+SUMIF('II-c) Reflexos'!$D:$D,$A61,'II-c) Reflexos'!M:M) -> 2760.164649 | J61: ='I-Cenário Base'!O61+SUMIF('II-a) Medidas a implementar'!$C:$C,$A61,'II-a) Medidas a implementar'!L:L)+SUMIF('II-c) Reflexos'!$D:$D,$A61,'II-c) Reflexos'!N:N) -> 3018.784786 | K61: ='I-Cenário Base'!P61+SUMIF('II-a) Medidas a implementar'!$C:$C,$A61,'II-a) Medidas a implementar'!M:M)+SUMIF('II-c) Reflexos'!$D:$D,$A61,'II-c) Reflexos'!O:O) -> 0 | L61: ='I-Cenário Base'!Q61+SUMIF('II-a) Medidas a implementar'!$C:$C,$A61,'II-a) Medidas a implementar'!N:N)+SUMIF('II-c) Reflexos'!$D:$D,$A61,'II-c) Reflexos'!P:P) -> 0
A62: Inversões Financeiras (XXV) | B62: =SUM(B63:B65) -> 25.31551421 | C62: =SUM(C63:C65) -> 26.54331665 | D62: 27.44578942 | E62: 28.29935347 | F62: 29.17380349 | G62: 30.04901759 | H62: 30.95048812 | I62: 31.87900276 | J62: 32.83537285 | K62: =SUM(K63:K65) -> 0 | L62: 0
A63: Inversões Financeiras Não Primárias (h) 1) | B63: ='I-Cenário Base'!G63+SUMIF('II-a) Medidas a implementar'!$C:$C,$A63,'II-a) Medidas a implementar'!D:D)+SUMIF('II-c) Reflexos'!$D:$D,$A63,'II-c) Reflexos'!F:F) -> 0 | C63: ='I-Cenário Base'!H63+SUMIF('II-a) Medidas a implementar'!$C:$C,$A63,'II-a) Medidas a implementar'!E:E)+SUMIF('II-c) Reflexos'!$D:$D,$A63,'II-c) Reflexos'!G:G) -> 0 | D63: ='I-Cenário Base'!I63+SUMIF('II-a) Medidas a implementar'!$C:$C,$A63,'II-a) Medidas a implementar'!F:F)+SUMIF('II-c) Reflexos'!$D:$D,$A63,'II-c) Reflexos'!H:H) -> 0 | E63: ='I-Cenário Base'!J63+SUMIF('II-a) Medidas a implementar'!$C:$C,$A63,'II-a) Medidas a implementar'!G:G)+SUMIF('II-c) Reflexos'!$D:$D,$A63,'II-c) Reflexos'!I:I) -> 0 | F63: ='I-Cenário Base'!K63+SUMIF('II-a) Medidas a implementar'!$C:$C,$A63,'II-a) Medidas a implementar'!H:H)+SUMIF('II-c) Reflexos'!$D:$D,$A63,'II-c) Reflexos'!J:J) -> 0 | G63: ='I-Cenário Base'!L63+SUMIF('II-a) Medidas a implementar'!$C:$C,$A63,'II-a) Medidas a implementar'!I:I)+SUMIF('II-c) Reflexos'!$D:$D,$A63,'II-c) Reflexos'!K:K) -> 0 | H63: ='I-Cenário Base'!M63+SUMIF('II-a) Medidas a implementar'!$C:$C,$A63,'II-a) Medidas a implementar'!J:J)+SUMIF('II-c) Reflexos'!$D:$D,$A63,'II-c) Reflexos'!L:L) -> 0 | I63: ='I-Cenário Base'!N63+SUMIF('II-a) Medidas a implementar'!$C:$C,$A63,'II-a) Medidas a implementar'!K:K)+SUMIF('II-c) Reflexos'!$D:$D,$A63,'II-c) Reflexos'!M:M) -> 0 | J63: ='I-Cenário Base'!O63+SUMIF('II-a) Medidas a implementar'!$C:$C,$A63,'II-a) Medidas a implementar'!L:L)+SUMIF('II-c) Reflexos'!$D:$D,$A63,'II-c) Reflexos'!N:N) -> 0 | K63: ='I-Cenário Base'!P63+SUMIF('II-a) Medidas a implementar'!$C:$C,$A63,'II-a) Medidas a implementar'!M:M)+SUMIF('II-c) Reflexos'!$D:$D,$A63,'II-c) Reflexos'!O:O) -> 0 | L63: ='I-Cenário Base'!Q63+SUMIF('II-a) Medidas a implementar'!$C:$C,$A63,'II-a) Medidas a implementar'!N:N)+SUMIF('II-c) Reflexos'!$D:$D,$A63,'II-c) Reflexos'!P:P) -> 0
A64: Sentenças Judiciais - Inversões | B64: ='I-Cenário Base'!G64+SUMIF('II-a) Medidas a implementar'!$C:$C,$A64,'II-a) Medidas a implementar'!D:D)+SUMIF('II-c) Reflexos'!$D:$D,$A64,'II-c) Reflexos'!F:F) -> 0 | C64: ='I-Cenário Base'!H64+SUMIF('II-a) Medidas a implementar'!$C:$C,$A64,'II-a) Medidas a implementar'!E:E)+SUMIF('II-c) Reflexos'!$D:$D,$A64,'II-c) Reflexos'!G:G) -> 0 | D64: ='I-Cenário Base'!I64+SUMIF('II-a) Medidas a implementar'!$C:$C,$A64,'II-a) Medidas a implementar'!F:F)+SUMIF('II-c) Reflexos'!$D:$D,$A64,'II-c) Reflexos'!H:H) -> 0 | E64: ='I-Cenário Base'!J64+SUMIF('II-a) Medidas a implementar'!$C:$C,$A64,'II-a) Medidas a implementar'!G:G)+SUMIF('II-c) Reflexos'!$D:$D,$A64,'II-c) Reflexos'!I:I) -> 0 | F64: ='I-Cenário Base'!K64+SUMIF('II-a) Medidas a implementar'!$C:$C,$A64,'II-a) Medidas a implementar'!H:H)+SUMIF('II-c) Reflexos'!$D:$D,$A64,'II-c) Reflexos'!J:J) -> 0 | G64: ='I-Cenário Base'!L64+SUMIF('II-a) Medidas a implementar'!$C:$C,$A64,'II-a) Medidas a implementar'!I:I)+SUMIF('II-c) Reflexos'!$D:$D,$A64,'II-c) Reflexos'!K:K) -> 0 | H64: ='I-Cenário Base'!M64+SUMIF('II-a) Medidas a implementar'!$C:$C,$A64,'II-a) Medidas a implementar'!J:J)+SUMIF('II-c) Reflexos'!$D:$D,$A64,'II-c) Reflexos'!L:L) -> 0 | I64: ='I-Cenário Base'!N64+SUMIF('II-a) Medidas a implementar'!$C:$C,$A64,'II-a) Medidas a implementar'!K:K)+SUMIF('II-c) Reflexos'!$D:$D,$A64,'II-c) Reflexos'!M:M) -> 0 | J64: ='I-Cenário Base'!O64+SUMIF('II-a) Medidas a implementar'!$C:$C,$A64,'II-a) Medidas a implementar'!L:L)+SUMIF('II-c) Reflexos'!$D:$D,$A64,'II-c) Reflexos'!N:N) -> 0 | K64: ='I-Cenário Base'!P64+SUMIF('II-a) Medidas a implementar'!$C:$C,$A64,'II-a) Medidas a implementar'!M:M)+SUMIF('II-c) Reflexos'!$D:$D,$A64,'II-c) Reflexos'!O:O) -> 0 | L64: ='I-Cenário Base'!Q64+SUMIF('II-a) Medidas a implementar'!$C:$C,$A64,'II-a) Medidas a implementar'!N:N)+SUMIF('II-c) Reflexos'!$D:$D,$A64,'II-c) Reflexos'!P:P) -> 0
A65: Demais Inversões Financeiras Primárias | B65: ='I-Cenário Base'!G65+SUMIF('II-a) Medidas a implementar'!$C:$C,$A65,'II-a) Medidas a implementar'!D:D)+SUMIF('II-c) Reflexos'!$D:$D,$A65,'II-c) Reflexos'!F:F) -> 25.31551421 | C65: ='I-Cenário Base'!H65+SUMIF('II-a) Medidas a implementar'!$C:$C,$A65,'II-a) Medidas a implementar'!E:E)+SUMIF('II-c) Reflexos'!$D:$D,$A65,'II-c) Reflexos'!G:G) -> 26.54331665 | D65: ='I-Cenário Base'!I65+SUMIF('II-a) Medidas a implementar'!$C:$C,$A65,'II-a) Medidas a implementar'!F:F)+SUMIF('II-c) Reflexos'!$D:$D,$A65,'II-c) Reflexos'!H:H) -> 27.44578942 | E65: ='I-Cenário Base'!J65+SUMIF('II-a) Medidas a implementar'!$C:$C,$A65,'II-a) Medidas a implementar'!G:G)+SUMIF('II-c) Reflexos'!$D:$D,$A65,'II-c) Reflexos'!I:I) -> 28.29935347 | F65: ='I-Cenário Base'!K65+SUMIF('II-a) Medidas a implementar'!$C:$C,$A65,'II-a) Medidas a implementar'!H:H)+SUMIF('II-c) Reflexos'!$D:$D,$A65,'II-c) Reflexos'!J:J) -> 29.17380349 | G65: ='I-Cenário Base'!L65+SUMIF('II-a) Medidas a implementar'!$C:$C,$A65,'II-a) Medidas a implementar'!I:I)+SUMIF('II-c) Reflexos'!$D:$D,$A65,'II-c) Reflexos'!K:K) -> 30.04901759 | H65: ='I-Cenário Base'!M65+SUMIF('II-a) Medidas a implementar'!$C:$C,$A65,'II-a) Medidas a implementar'!J:J)+SUMIF('II-c) Reflexos'!$D:$D,$A65,'II-c) Reflexos'!L:L) -> 30.95048812 | I65: ='I-Cenário Base'!N65+SUMIF('II-a) Medidas a implementar'!$C:$C,$A65,'II-a) Medidas a implementar'!K:K)+SUMIF('II-c) Reflexos'!$D:$D,$A65,'II-c) Reflexos'!M:M) -> 31.87900276 | J65: ='I-Cenário Base'!O65+SUMIF('II-a) Medidas a implementar'!$C:$C,$A65,'II-a) Medidas a implementar'!L:L)+SUMIF('II-c) Reflexos'!$D:$D,$A65,'II-c) Reflexos'!N:N) -> 32.83537285 | K65: ='I-Cenário Base'!P65+SUMIF('II-a) Medidas a implementar'!$C:$C,$A65,'II-a) Medidas a implementar'!M:M)+SUMIF('II-c) Reflexos'!$D:$D,$A65,'II-c) Reflexos'!O:O) -> 0 | L65: ='I-Cenário Base'!Q65+SUMIF('II-a) Medidas a implementar'!$C:$C,$A65,'II-a) Medidas a implementar'!N:N)+SUMIF('II-c) Reflexos'!$D:$D,$A65,'II-c) Reflexos'!P:P) -> 0
A66: Amortização da Dívida (XXVI) | B66: ='I-Cenário Base'!G66+SUMIF('II-a) Medidas a implementar'!$C:$C,$A66,'II-a) Medidas a implementar'!D:D)+SUMIF('II-c) Reflexos'!$D:$D,$A66,'II-c) Reflexos'!F:F) -> 2594.001283 | C66: ='I-Cenário Base'!H66+SUMIF('II-a) Medidas a implementar'!$C:$C,$A66,'II-a) Medidas a implementar'!E:E)+SUMIF('II-c) Reflexos'!$D:$D,$A66,'II-c) Reflexos'!G:G) -> 318.4941892 | D66: ='I-Cenário Base'!I66+SUMIF('II-a) Medidas a implementar'!$C:$C,$A66,'II-a) Medidas a implementar'!F:F)+SUMIF('II-c) Reflexos'!$D:$D,$A66,'II-c) Reflexos'!H:H) -> 445.031035 | E66: ='I-Cenário Base'!J66+SUMIF('II-a) Medidas a implementar'!$C:$C,$A66,'II-a) Medidas a implementar'!G:G)+SUMIF('II-c) Reflexos'!$D:$D,$A66,'II-c) Reflexos'!I:I) -> 756.7895643 | F66: ='I-Cenário Base'!K66+SUMIF('II-a) Medidas a implementar'!$C:$C,$A66,'II-a) Medidas a implementar'!H:H)+SUMIF('II-c) Reflexos'!$D:$D,$A66,'II-c) Reflexos'!J:J) -> 923.2604125 | G66: ='I-Cenário Base'!L66+SUMIF('II-a) Medidas a implementar'!$C:$C,$A66,'II-a) Medidas a implementar'!I:I)+SUMIF('II-c) Reflexos'!$D:$D,$A66,'II-c) Reflexos'!K:K) -> 1137.708135 | H66: ='I-Cenário Base'!M66+SUMIF('II-a) Medidas a implementar'!$C:$C,$A66,'II-a) Medidas a implementar'!J:J)+SUMIF('II-c) Reflexos'!$D:$D,$A66,'II-c) Reflexos'!L:L) -> 1271.71863 | I66: ='I-Cenário Base'!N66+SUMIF('II-a) Medidas a implementar'!$C:$C,$A66,'II-a) Medidas a implementar'!K:K)+SUMIF('II-c) Reflexos'!$D:$D,$A66,'II-c) Reflexos'!M:M) -> 1412.803173 | J66: ='I-Cenário Base'!O66+SUMIF('II-a) Medidas a implementar'!$C:$C,$A66,'II-a) Medidas a implementar'!L:L)+SUMIF('II-c) Reflexos'!$D:$D,$A66,'II-c) Reflexos'!N:N) -> 1584.851995 | K66: ='I-Cenário Base'!P66+SUMIF('II-a) Medidas a implementar'!$C:$C,$A66,'II-a) Medidas a implementar'!M:M)+SUMIF('II-c) Reflexos'!$D:$D,$A66,'II-c) Reflexos'!O:O) -> 0 | L66: ='I-Cenário Base'!Q66+SUMIF('II-a) Medidas a implementar'!$C:$C,$A66,'II-a) Medidas a implementar'!N:N)+SUMIF('II-c) Reflexos'!$D:$D,$A66,'II-c) Reflexos'!P:P) -> 0
A67: Despesas Primárias de Capital (XXVII) = (XXIII-h-XXVI) | B67: =B58-B63-B66 -> 2633.920345 | C67: =C58-C63-C66 -> 3367.594388 | D67: 1139.132921 | E67: 951.6041528 | F67: 1162.689921 | G67: 1815.201916 | H67: 1954.367179 | I67: 2792.043652 | J67: 3051.620159 | K67: =K58-K63-K66 -> 0 | L67: 0
A68: DESPESA PRIMÁRIA ORÇAMENTÁRIA (XXVIII) = (XXII+XXVII) | B68: =B57+B67 -> 40453.06196 | C68: =C57+C67 -> 43567.54533 | D68: 44690.1477 | E68: 46683.55029 | F68: 48406.02715 | G68: 50367.20569 | H68: 51461.09128 | I68: 53564.36317 | J68: 55741.94245 | K68: =K57+K67 -> 0 | L68: 0
A69: Receitas Correntes Intraorçamentárias (exceto fonte RPPS) (XXIX) | B69: 5.70996484
A70: RECEITA CORRENTE LÍQUIDA (XXX) = (II-a-d-g-XXIX) | B70: =B8-B16-B29-B54-B69 -> 37208.46005 | C70: =C8-C16-C29-C54-C69 -> 37323.70667 | D70: 37085.02766 | E70: 38749.01606 | F70: 39756.18178 | G70: 41706.60882 | H70: 43955.46788 | I70: 46278.30342 | J70: 48549.31752 | K70: 0 | L70: 0
A71: RESTOS A PAGAR
A72: Inscrições de Restos a Pagar (XXXI) = (i+l) | B72: =SUM(B73,B76) -> 1637.873227 | C72: =SUM(C73,C76) -> 1744.476682 | D72: 1772.738913 | E72: 1822.698722 | F72: 1912.47237 | G72: 2002.514016 | H72: 2001.969657 | I72: 2052.149159 | J72: 2072.439425 | K72: =SUM(K73,K76) -> 0 | L72: 0
A73: Inscrição de RAP Processados (i) | B73: =SUM(B74:B75) -> 125.0173809 | C73: =SUM(C74:C75) -> 116.4341374 | D73: 103.849259 | E73: 81.29183386 | F73: 105.3249833 | G73: 121.3200552 | H73: 82.82899096 | I73: 56.66178434 | J73: 0 | K73: =SUM(K74:K75) -> 0 | L73: 0
A74: Inscrição de RAP Processados Primários (j) | B74: ='I-Cenário Base'!G74 -> 125.0160115 | C74: =IF(C7<(C45+C83),IF(C45>C7,C45-C7,0)*(B74/B72)+C83*(B74/B72),0) -> 116.432862 | D74: 103.8481215 | E74: 81.29094345 | F74: 105.3238297 | G74: 121.3187263 | H74: 82.82808371 | I74: 56.66116371 | J74: 0 | K74: 0
A75: Inscrição de RAP Processados Não Primários (k) | B75: ='I-Cenário Base'!G75 -> 0.00136935 | C75: =IF(C7<(C45+C83),IF(C45>C7,C45-C7,0)*(B75/B72)+C83*(B75/B72),0) -> 0.001275335356 | D75: 0.001137489698 | E75: 0.0008904119725 | F75: 0.001153653715 | G75: 0.001328852167 | H75: 0.00090724888 | I75: 0.000620632218 | J75: 0 | K75: 0
A76: Inscrição de RAP Não Processados (l) | B76: =SUM(B77:B78) -> 1512.855846 | C76: =SUM(C77:C78) -> 1628.042544 | D76: 1668.889654 | E76: 1741.406888 | F76: 1807.147387 | G76: 1881.193961 | H76: 1919.140666 | I76: 1995.487375 | J76: 2072.439425 | K76: =SUM(K77:K78) -> 0 | L76: 0
A77: Inscrição de RAP Não Processados Primários (m) | B77: ='I-Cenário Base'!G77 -> 1504.011464 | C77: =(B77/B68)*C68 -> 1619.805386 | D77: =(C77/C68)*D68 -> 1661.542816 | E77: 1735.655879 | F77: 1799.696147 | G77: 1872.611147 | H77: 1913.280911 | I77: 1991.478824 | J77: 2072.439425 | K77: 0
A78: Inscrição de RAP Não Processados Não Primários (n) | B78: ='I-Cenário Base'!G78 -> 8.84438216 | C78: =IF(C7<(C45+C83),IF(C45>C7,C45-C7,0)*(B78/B72)+C83*(B78/B72),0) -> 8.237158706 | D78: 7.346838715 | E78: 5.751008701 | F78: 7.451239157 | G78: 8.582814037 | H78: 5.859755219 | I78: 4.00855042 | J78: 0 | K78: 0
A79: Cancelamentos de Restos a Pagar (XXXII) = (o+p) | B79: =SUM(B80:B81) -> 637.984298 | C79: =SUM(C80:C81) -> 699.4635615 | D79: 553.8932705 | E79: 556.0139089 | F79: 571.0944739 | G79: 598.6852378 | H79: 626.9028055 | I79: 627.9719482 | J79: 643.0724954 | K79: =SUM(K80:K81) -> 0 | L79: 0
A80: Cancelamento de RAP Processados (o) | B80: ='I-Cenário Base'!G80 -> 105.4354007 | C80: =0.3*B86 -> 76.84528553 | D80: =IFERROR(C86*(C80/B86),0) -> 65.48050727 | E80: 55.34701261 | F80: 48.67240756 | G80: 56.54102184 | H80: 62.54461714 | I80: 52.22974836 | J80: 44.42628301
A81: Cancelamento de RAP Não Processados (p) | B81: ='I-Cenário Base'!G81 -> 532.5488973 | C81: =0.3*B87 -> 622.618276 | D81: 488.4127633 | E81: 500.6668963 | F81: 522.4220663 | G81: 542.144216 | H81: 564.3581884 | I81: 575.7421998 | J81: 598.6462124
A82: Liquidação de Restos a Pagar Não Processados (XXXIII) | B82: ='I-Cenário Base'!G82 -> 2266.079206 | C82: =MAX(B87-C81,0) -> 1452.775977 | D82: =MAX(C87-D81,0) -> 1139.629781 | E82: 1168.222758 | F82: 1218.984821 | G82: =MAX(F87-G81,0) -> 1265.003171 | H82: 1316.835773 | I82: 1343.398466 | J82: 1396.841162
A83: Pagamento de Restos a Pagar Primário (XXXIV) | B83: ='I-Cenário Base'!G83 -> 2535.06102 | C83: =IFERROR((B83/'I-Cenário Base'!F85)*'III-Cenário Ajustado'!B85,0) -> 1525.422745 | D83: =IFERROR((C83/B85)*C85,0) -> 1207.956268 | E83: =IFERROR((D83/C85)*D85,0) -> 1212.581055 | F83: 1245.469454 | G83: 1305.640678 | H83: 1367.178865 | I83: 1369.510502 | J83: 1402.442479
A84: Pagamento de Restos a Pagar Não Primário (XXXV) | B84: ='I-Cenário Base'!G84 -> 8.01800942 | C84: =IFERROR((B84/'I-Cenário Base'!F85)*B85,0) -> 4.824678318 | D84: =IFERROR((C84/B85)*C85,0) -> 3.820580514 | E84: =IFERROR((D84/C85)*D85,0) -> 3.835208006 | F84: 3.939228971 | G84: 4.12954133 | H84: 4.324177184 | I84: 4.331551791 | J84: 4.435710588
A85: ESTOQUE DE RESTOS A PAGAR (XXXVI) = (XXXVII+XXXVIII) | B85: =SUM(B86:B87) -> 2331.545205 | C85: =SUM(C86:C87) -> 1846.310902 | D85: 1853.379696 | E85: 1903.648246 | F85: 1995.617459 | G85: 2089.676018 | H85: 2093.239827 | I85: 2143.574985 | J85: 2166.063725 | K85: =SUM(K86:K87) -> 2166.063725 | L85: 2166.063725
A86: Estoque de RAP Processados (XXXVII) = XXXVII(t-1) + (i-o+XXXIII-XXXIV-XXXV) | B86: ='I-Cenário Base'!F86+B73-B80+B82-B83-B84 -> 256.1509518 | C86: =B86+C73-C80+C82-C83-C84 -> 218.2683576 | D86: =C86+D73-D80+D82-D83-D84 -> 184.490042 | E86: 162.2413585 | F86: 188.4700728 | G86: 208.4820571 | H86: 174.0991612 | I86: 148.08761 | J86: 93.62429968 | K86: 93.62429968 | L86: 93.62429968
A87: Estoque de RAP Não Processados (XXXVIII) = XXXVIII(t-1) + (l-p-XXXIII) | B87: ='I-Cenário Base'!F87+B76-B81-B82 -> 2075.394253 | C87: =B87+C76-C81-C82 -> 1628.042544 | D87: =C87+D76-D81-D82 -> 1668.889654 | E87: 1741.406888 | F87: 1807.147387 | G87: 1881.193961 | H87: 1919.140666 | I87: 1995.487375 | J87: 2072.439425 | K87: 2072.439425 | L87: 2072.439425
A88: ESTOQUE DE RESTOS A PAGAR / RECEITA CORRENTE LÍQUIDA (XXXVI/XXX) | B88: =IFERROR(B85/B$70,0) -> 0.0626616958 | C88: =IFERROR(C85/C$70,0) -> 0.04946751184 | D88: 0.04997649492 | E88: 0.04912765381 | F88: 0.05019640644 | G88: 0.05010419398 | H88: 0.04762183019 | I88: 0.04631922145 | J88: 0.04461573994 | K88: =IFERROR(K85/K$70,0) -> 0 | L88: 0
A89: RAP Processados / RCL (XXXVII/XXX) | B89: =IFERROR(B86/B$70,0) -> 0.006884212661 | C89: =IFERROR(C86/C$70,0) -> 0.005847981806 | D89: 0.004974785073 | E89: 0.004186980084 | F89: 0.00474064823 | G89: 0.004998777485 | H89: 0.003960807827 | I89: 0.003199936019 | J89: 0.001928436989 | K89: =IFERROR(K86/K$70,0) -> 0 | L89: 0
A90: RAP Não Processados / RCL (XXXVIII/XXX) | B90: =IFERROR(B87/B$70,0) -> 0.05577748314 | C90: =IFERROR(C87/C$70,0) -> 0.04361953004 | D90: 0.04500170985 | E90: 0.04494067372 | F90: 0.04545575821 | G90: 0.04510541649 | H90: 0.04366102236 | I90: 0.04311928543 | J90: 0.04268730295 | K90: =IFERROR(K87/K$70,0) -> 0 | L90: 0
A91: DESPESA PRIMÁRIA (XXXIX) = (XXVIII-j-m+XXXIV) | B91: =B68-B74-B77+B83 -> 41359.09551 | C91: =C68-C74-C77+C83 -> 43356.72982 | D91: 44132.71303 | E91: 46079.18453 | F91: 47746.47663 | G91: 49678.9165 | H91: 50832.16115 | I91: 52885.73368 | J91: 55071.94551 | K91: =K68-K74-K77+K83 -> 0 | L91: 0
A92: Demais Despesas Primárias (XL) 2) | B92: ='I-Cenário Base'!G92+SUMIF('II-a) Medidas a implementar'!$C:$C,$A92,'II-a) Medidas a implementar'!D:D)+SUMIF('II-c) Reflexos'!$D:$D,$A92,'II-c) Reflexos'!F:F) -> 0 | C92: ='I-Cenário Base'!H92+SUMIF('II-a) Medidas a implementar'!$C:$C,$A92,'II-a) Medidas a implementar'!E:E)+SUMIF('II-c) Reflexos'!$D:$D,$A92,'II-c) Reflexos'!G:G) -> 0 | D92: ='I-Cenário Base'!I92+SUMIF('II-a) Medidas a implementar'!$C:$C,$A92,'II-a) Medidas a implementar'!F:F)+SUMIF('II-c) Reflexos'!$D:$D,$A92,'II-c) Reflexos'!H:H) -> 0 | E92: ='I-Cenário Base'!J92+SUMIF('II-a) Medidas a implementar'!$C:$C,$A92,'II-a) Medidas a implementar'!G:G)+SUMIF('II-c) Reflexos'!$D:$D,$A92,'II-c) Reflexos'!I:I) -> 0 | F92: ='I-Cenário Base'!K92+SUMIF('II-a) Medidas a implementar'!$C:$C,$A92,'II-a) Medidas a implementar'!H:H)+SUMIF('II-c) Reflexos'!$D:$D,$A92,'II-c) Reflexos'!J:J) -> 0 | G92: ='I-Cenário Base'!L92+SUMIF('II-a) Medidas a implementar'!$C:$C,$A92,'II-a) Medidas a implementar'!I:I)+SUMIF('II-c) Reflexos'!$D:$D,$A92,'II-c) Reflexos'!K:K) -> 0 | H92: ='I-Cenário Base'!M92+SUMIF('II-a) Medidas a implementar'!$C:$C,$A92,'II-a) Medidas a implementar'!J:J)+SUMIF('II-c) Reflexos'!$D:$D,$A92,'II-c) Reflexos'!L:L) -> 0 | I92: ='I-Cenário Base'!N92+SUMIF('II-a) Medidas a implementar'!$C:$C,$A92,'II-a) Medidas a implementar'!K:K)+SUMIF('II-c) Reflexos'!$D:$D,$A92,'II-c) Reflexos'!M:M) -> 0 | J92: ='I-Cenário Base'!O92+SUMIF('II-a) Medidas a implementar'!$C:$C,$A92,'II-a) Medidas a implementar'!L:L)+SUMIF('II-c) Reflexos'!$D:$D,$A92,'II-c) Reflexos'!N:N) -> 0 | K92: ='I-Cenário Base'!P92+SUMIF('II-a) Medidas a implementar'!$C:$C,$A92,'II-a) Medidas a implementar'!M:M)+SUMIF('II-c) Reflexos'!$D:$D,$A92,'II-c) Reflexos'!O:O) -> 0 | L92: ='I-Cenário Base'!Q92+SUMIF('II-a) Medidas a implementar'!$C:$C,$A92,'II-a) Medidas a implementar'!N:N)+SUMIF('II-c) Reflexos'!$D:$D,$A92,'II-c) Reflexos'!P:P) -> 0
A93: DESPESA PRIMÁRIA TOTAL (XLI) = (XXXIX+XL) | B93: =B91+B92 -> 41359.09551 | C93: =C91+C92 -> 43356.72982 | D93: 44132.71303 | E93: 46079.18453 | F93: 47746.47663 | G93: 49678.9165 | H93: 50832.16115 | I93: 52885.73368 | J93: 55071.94551 | K93: =K91+K92 -> 0 | L93: 0
A94: RESULTADO PRIMÁRIO
A95: RESULTADO PRIMÁRIO (XLII) = (XVI-XLI) | B95: =B44-B93 -> 2105.880606 | C95: 410.4816286 | D95: 108.2526219 | E95: 755.9526846 | F95: 853.5289545 | G95: 1498.571371 | H95: 3146.556875 | I95: 3988.437956 | J95: 4685.265733 | K95: 0 | L95: 0
A96: Juros e Encargos da Dívida (XX) | B96: =B52 -> 358.1340531 | C96: 581.1270751 | D96: 742.6441063 | E96: 869.0964481 | F96: 974.9416802 | G96: 1039.981084 | H96: 1058.153873 | I96: 1050.873426 | J96: 1033.200805 | K96: 0 | L96: 0
A97: Amortização da Dívida (XXVI) | B97: =B66 -> 2594.001283 | C97: 318.4941892 | D97: 445.031035 | E97: 756.7895643 | F97: 923.2604125 | G97: 1137.708135 | H97: 1271.71863 | I97: 1412.803173 | J97: 1584.851995 | K97: =K66 -> 0 | L97: 0
A98: Inversões Financeiras Não Primárias (h) 1) | B98: =B63 -> 0 | C98: 0 | D98: 0 | E98: 0 | F98: 0 | G98: 0 | H98: 0 | I98: 0 | J98: 0 | K98: 0 | L98: 0
A99: Receita de Aplicações Financeiras (b) | B99: =B19 -> 1356.518926 | C99: 1570.622933 | D99: 1230.046 | E99: 706.2107816 | F99: 361.5545876 | G99: 238.1319545 | H99: 238.1319545 | I99: 238.1319545 | J99: 238.1319545 | K99: 0 | L99: 0
A100: Outras Receitas Financeiras (c) | B100: =B28 -> 48.45793559 | C100: 41.522344 | D100: 43.844 | E100: 44.6347369 | F100: 44.56439431 | G100: 47.69281479 | H100: 51.04085039 | I100: 54.62391809 | J100: 58.45851714 | K100: 0 | L100: 0
A101: Outras Receitas de Capital Não Primárias (f) | B101: =B41 -> 0 | C101: 0 | D101: 0 | E101: 450 | F101: 0 | G101: 0 | H101: 0 | I101: 0 | J101: 0 | K101: 0 | L101: 0
A102: Amortização de Empréstimos (XI) | B102: =B35 -> 13.53869195 | C102: 14.62721123 | D102: 14.99995433 | E102: 15.11201782 | F102: 14.18829092 | G102: 14.49324338 | H102: 14.81939823 | I102: 14.94101674 | J102: 15.10318494 | K102: 0 | L102: 0
A103: Despesa Financeira Líquida (XLIII) = (XX+XXVI+h-k-n+XXXV-b-c-f-XI) | B103: =B96+B97+B98-B75-B78+B84-B99-B100-B101-B102 -> 1532.792041 | C103: -730.5649799 | D103: -104.7422088 | E103: 408.011785 | F103: 1474.381656 | G103: 1872.916605 | H103: 2024.343814 | I103: 2156.302091 | J103: 2310.794854 | K103: 0 | L103: 0
A104: NECESSIDADE DE FINANCIAMENTO (XLIV) = (XLIII-XLII) | B104: =B103-B95 -> -573.0885656 | C104: -1141.046609 | D104: -212.9948307 | E104: -347.9408996 | F104: 620.8527015 | G104: 374.3452339 | H104: -1122.213061 | I104: -1832.135865 | J104: -2374.470879 | K104: 0 | L104: 0
A105: Operações de Crédito (X) | B105: =B34 -> 2494.249732 | C105: 0 | D105: 0 | E105: 83.2459125 | F105: 167.8237596 | G105: 169.8216615 | H105: 84.91083075 | I105: 0 | J105: 0 | K105: 0 | L105: 0
A106: Alienação de Bens Não Primária (e) | B106: =B37 -> 549.4763229 | C106: 0 | D106: 0 | E106: 0 | F106: 0 | G106: 0 | H106: 0 | I106: 0 | J106: 0 | K106: 0 | L106: 0
A107: Fontes de Financiamento (XLV) = (X+e) | B107: =B105+B106 -> 3043.726055 | C107: =C105+C106 -> 0 | D107: 0 | E107: 83.2459125 | F107: 167.8237596 | G107: 169.8216615 | H107: 84.91083075 | I107: 0 | J107: 0 | K107: =K105+K106 -> 0 | L107: 0
A108: Outros Fluxos de Caixa (XLVI) | B108: ='I-Cenário Base'!G108+SUMIF('II-a) Medidas a implementar'!$C:$C,$A108,'II-a) Medidas a implementar'!D:D)+SUMIF('II-c) Reflexos'!$D:$D,$A108,'II-c) Reflexos'!F:F) -> 0 | C108: ='I-Cenário Base'!H108+SUMIF('II-a) Medidas a implementar'!$C:$C,$A108,'II-a) Medidas a implementar'!E:E)+SUMIF('II-c) Reflexos'!$D:$D,$A108,'II-c) Reflexos'!G:G) -> 0 | D108: ='I-Cenário Base'!I108+SUMIF('II-a) Medidas a implementar'!$C:$C,$A108,'II-a) Medidas a implementar'!F:F)+SUMIF('II-c) Reflexos'!$D:$D,$A108,'II-c) Reflexos'!H:H) -> 0 | E108: ='I-Cenário Base'!J108+SUMIF('II-a) Medidas a implementar'!$C:$C,$A108,'II-a) Medidas a implementar'!G:G)+SUMIF('II-c) Reflexos'!$D:$D,$A108,'II-c) Reflexos'!I:I) -> 0 | F108: ='I-Cenário Base'!K108+SUMIF('II-a) Medidas a implementar'!$C:$C,$A108,'II-a) Medidas a implementar'!H:H)+SUMIF('II-c) Reflexos'!$D:$D,$A108,'II-c) Reflexos'!J:J) -> 0 | G108: ='I-Cenário Base'!L108+SUMIF('II-a) Medidas a implementar'!$C:$C,$A108,'II-a) Medidas a implementar'!I:I)+SUMIF('II-c) Reflexos'!$D:$D,$A108,'II-c) Reflexos'!K:K) -> 0 | H108: ='I-Cenário Base'!M108+SUMIF('II-a) Medidas a implementar'!$C:$C,$A108,'II-a) Medidas a implementar'!J:J)+SUMIF('II-c) Reflexos'!$D:$D,$A108,'II-c) Reflexos'!L:L) -> 0 | I108: ='I-Cenário Base'!N108+SUMIF('II-a) Medidas a implementar'!$C:$C,$A108,'II-a) Medidas a implementar'!K:K)+SUMIF('II-c) Reflexos'!$D:$D,$A108,'II-c) Reflexos'!M:M) -> 0 | J108: ='I-Cenário Base'!O108+SUMIF('II-a) Medidas a implementar'!$C:$C,$A108,'II-a) Medidas a implementar'!L:L)+SUMIF('II-c) Reflexos'!$D:$D,$A108,'II-c) Reflexos'!N:N) -> 0 | K108: ='I-Cenário Base'!P108+SUMIF('II-a) Medidas a implementar'!$C:$C,$A108,'II-a) Medidas a implementar'!M:M)+SUMIF('II-c) Reflexos'!$D:$D,$A108,'II-c) Reflexos'!O:O) -> 0 | L108: ='I-Cenário Base'!Q108+SUMIF('II-a) Medidas a implementar'!$C:$C,$A108,'II-a) Medidas a implementar'!N:N)+SUMIF('II-c) Reflexos'!$D:$D,$A108,'II-c) Reflexos'!P:P) -> 0
A109: FLUXO DE CAIXA (XLVII) = (XLV-XLIV+XLVI) | B109: =B107-B104+B108 -> 3616.81462 | C109: =C107-C104+C108 -> 1141.046609 | D109: =D107-D104+D108 -> 212.9948307 | E109: 431.1868121 | F109: -453.0289419 | G109: -204.5235724 | H109: 1207.123892 | I109: 1832.135865 | J109: 2374.470879 | K109: =K107-K104+K108 -> 0 | L109: 0
A110: 1) Corresponde ao somatório de Concessão de Empréstimos e Financiamentos, Aquisição de Título de Capital já Integralizado e Aquisição de Título de Crédito.
A111: 2) As Demais Despesas Primárias são despesas que compõem o resultado primário por caixa, mas não transitam pelo orçamento.

Sheet IV-Verificações
A1: PLANO DE RECUPERAÇÃO FISCAL | D1: Ano-Base para a limitação de despesas: | E1: 2021
A2: Anexo IV - Verificação das condições de equilíbrio e do cumprimento da limitação de despesas
A4: Receitas arrecadadas, brutas do repasse para o Fundeb Despesas empenhadas e transferências a Municípios
B5: (Ano-Base) | C5: 2022 | D5: 2023 | E5: 2024 | F5: 2025 | G5: 2026 | H5: 2027 | I5: 2028 | J5: 2029 | K5: 2030 | L5: 2031 | M5: 2032
A6: VERIFICAÇÃO DE CUMPRIMENTO DA LIMITAÇÃO DE DESPESAS DO INCISO V DO § 1º DO ART. 2º DA LC 159
A7: Despesa Primária Total (XLI) | B7: =IF($E$1=2017,'I-Cenário Base'!B68,IF($E$1=2018,'I-Cenário Base'!C68,IF($E$1=2019,'I-Cenário Base'!D68,IF($E$1=2020,'I-Cenário Base'!E68,IF($E$1=2021,'I-Cenário Base'!F68,IF($E$1=2022,'I-Cenário Base'!G68,"")))))) -> 37720.61206 | C7: ='III-Cenário Ajustado'!B68 -> 40453.06196 | D7: ='III-Cenário Ajustado'!C68 -> 43567.54533 | E7: ='III-Cenário Ajustado'!D68 -> 44690.1477 | F7: ='III-Cenário Ajustado'!E68 -> 46683.55029 | G7: ='III-Cenário Ajustado'!F68 -> 48406.02715 | H7: ='III-Cenário Ajustado'!G68 -> 50367.20569 | I7: ='III-Cenário Ajustado'!H68 -> 51461.09128 | J7: ='III-Cenário Ajustado'!I68 -> 53564.36317 | K7: ='III-Cenário Ajustado'!J68 -> 55741.94245
A8: Despesas primárias intraorçamentárias (exceto fontes RPPS) (q) | B8: 1499.468466 | C8: 1528.21345 | D8: 1380.14906 | E8: 1597.16483 | F8: 1723.276675 | G8: 1904.762001 | H8: 2020.523116 | I8: 2177.615515 | J8: 2269.925976 | K8: 2264.125931
A9: Despesas primárias orçamentárias (fonte RPPS) (r) | B9: 2587.266213 | C9: 2463.394466 | D9: 2642.722378 | E9: 3001.406984 | F9: 3229.239193 | G9: 3506.559083 | H9: 3755.01036 | I9: 4026.769901 | J9: 4201.548965 | K9: 4313.795362
A10: Despesas primárias para fins de apuração do cumprimento da limitação de crescimento (s) = (XL) - (q) + (r) | B10: =B7-B8+B9 -> 38808.4098 | C10: =C7-C8+C9 -> 41388.24298 | D10: =D7-D8+D9 -> 44830.11864 | E10: =E7-E8+E9 -> 46094.38986 | F10: 48189.51281 | G10: 50007.82423 | H10: 52101.69293 | I10: 53310.24567 | J10: 55495.98616 | K10: 57791.61189
A11: Pagamento de passivos não financeiros (Portaria STN nº 10.464, Art. 19, inciso II) (t) | B11: =SUM(B12:B14) -> 1639.512311 | C11: =SUM(C12:C14) -> 1717.921802 | D11: =SUM(D12:D14) -> 2123.599589 | E11: 2072.433226 | F11: 2136.09519 | G11: 2208.18948 | H11: 2343.537519 | I11: 1489.287155 | J11: 1536.379107 | K11: 1584.920544
A12: Sentenças judiciais | B12: 1436.624284 | C12: 1492.204716 | D12: ='III-Cenário Ajustado'!C50+'III-Cenário Ajustado'!C55 -> 1611.643682 | E12: ='III-Cenário Ajustado'!D50+'III-Cenário Ajustado'!D55 -> 1447.366149 | F12: ='III-Cenário Ajustado'!E50+'III-Cenário Ajustado'!E55 -> 1491.588527 | G12: ='III-Cenário Ajustado'!F50+'III-Cenário Ajustado'!F55 -> 1543.767561 | H12: ='III-Cenário Ajustado'!G50+'III-Cenário Ajustado'!G55 -> 1659.182942 | I12: ='III-Cenário Ajustado'!H50+'III-Cenário Ajustado'!H55 -> 784.4019412 | J12: ='III-Cenário Ajustado'!I50+'III-Cenário Ajustado'!I55 -> 810.3473366 | K12: ='III-Cenário Ajustado'!J50+'III-Cenário Ajustado'!J55 -> 837.1078207
A13: Recomposição de fundos de reserva de depósitos judiciais e administrativos | B13: 0 | C13: 0 | D13: =178.1490104+30 -> 208.1490104 | E13: =D13*'V-Parâmetros'!O$7 -> 215.2260768 | F13: =E13*'V-Parâmetros'!P$7 -> 221.9196077 | G13: =F13*'V-Parâmetros'!Q$7 -> 228.7769236 | H13: =G13*'V-Parâmetros'!R$7 -> 235.6402313 | I13: =H13*'V-Parâmetros'!S$7 -> 242.7094383 | J13: =I13*'V-Parâmetros'!T$7 -> 249.9907214 | K13: =J13*'V-Parâmetros'!U$7 -> 257.4904431
A14: Outros | B14: 202.888027 | C14: 225.717086 | D14: 303.8068966 | E14: 409.841 | F14: =E14*'V-Parâmetros'!P$7 -> 422.5870551 | G14: =F14*'V-Parâmetros'!Q$7 -> 435.6449951 | H14: =G14*'V-Parâmetros'!R$7 -> 448.714345 | I14: =H14*'V-Parâmetros'!S$7 -> 462.1757753 | J14: =I14*'V-Parâmetros'!T$7 -> 476.0410486 | K14: =J14*'V-Parâmetros'!U$7 -> 490.32228
A15: Despesas primárias custeadas por empresas estatais consideradas não dependentes no ano base para apuração do limite de despesas (u)
A16: Despesas não incluídas no cálculo da limitação de despesas (v) | B16: =SUM(B17:B20) -> 7603.680875 | C16: 8545.461555 | D16: 9912.539827 | E16: 10112.98211 | F16: 11089.87399 | G16: 11755.71763 | H16: 12632.92077 | I16: 13581.96683 | J16: 14573.44562 | K16: 15638.94507 | L16: 0 | M16: 0
A17: Transferências constitucionais para os Municípios (LCP 159, Art. 2º, §4º, inciso I) | B17: ='I-Cenário Base'!F54 -> 6414.564957 | C17: ='I-Cenário Base'!G54 -> 7107.399388 | D17: ='III-Cenário Ajustado'!C54 -> 7573.455184 | E17: ='III-Cenário Ajustado'!D54 -> 7833.345996 | F17: ='III-Cenário Ajustado'!E54 -> 8353.639628 | G17: ='III-Cenário Ajustado'!F54 -> 8764.118304 | H17: ='III-Cenário Ajustado'!G54 -> 9257.507253 | I17: ='III-Cenário Ajustado'!H54 -> 9783.148515 | J17: ='III-Cenário Ajustado'!I54 -> 10338.63569 | K17: ='III-Cenário Ajustado'!J54 -> 10925.66342
A18: Despesas custeadas com recursos de emendas (LCP 159, Art. 2º, §4º, inciso II)
A19: Despesas em saúde e educação em função da variação da base de cálculo dos mínimos (LCP 159, Art. 2º, §4º, inciso IV) | C19: =('III-Cenário Ajustado'!B10*0.75+'III-Cenário Ajustado'!B11*0.5+'III-Cenário Ajustado'!B12+'III-Cenário Ajustado'!B13+'III-Cenário Ajustado'!B22+'III-Cenário Ajustado'!B23*0.75)*0.37-(('I-Cenário Base'!$F$10*0.75+'I-Cenário Base'!$F$11*0.5+'I-Cenário Base'!$F$12+'I-Cenário Base'!$F$13+'I-Cenário Base'!$F$22+'I-Cenário Base'!$F$23*0.75)*PRODUCT('V-Parâmetros'!$M7:M7)*0.37) -> 417.3043064 | D19: =(('III-Cenário Ajustado'!C10+545.14+696.82)*0.75+'III-Cenário Ajustado'!C11*0.5+'III-Cenário Ajustado'!C12+'III-Cenário Ajustado'!C13+'III-Cenário Ajustado'!C22+'III-Cenário Ajustado'!C23*0.75)*0.37-(('I-Cenário Base'!$F$10*0.75+'I-Cenário Base'!$F$11*0.5+'I-Cenário Base'!$F$12+'I-Cenário Base'!$F$13+'I-Cenário Base'!$F$22+'I-Cenário Base'!$F$23*0.75)*PRODUCT('V-Parâmetros'!$M7:N7)*0.37) -> 474.9297287 | E19: =('III-Cenário Ajustado'!D10*0.75+'III-Cenário Ajustado'!D11*0.5+'III-Cenário Ajustado'!D12+'III-Cenário Ajustado'!D13+'III-Cenário Ajustado'!D22+'III-Cenário Ajustado'!D23*0.75)*0.37-(('I-Cenário Base'!$F$10*0.75+'I-Cenário Base'!$F$11*0.5+'I-Cenário Base'!$F$12+'I-Cenário Base'!$F$13+'I-Cenário Base'!$F$22+'I-Cenário Base'!$F$23*0.75)*PRODUCT('V-Parâmetros'!$M7:O7)*0.37) -> 352.0999304 | F19: =(('III-Cenário Ajustado'!E10+348.44)*0.75+'III-Cenário Ajustado'!E11*0.5+'III-Cenário Ajustado'!E12+'III-Cenário Ajustado'!E13+'III-Cenário Ajustado'!E22+'III-Cenário Ajustado'!E23*0.75)*0.37-(('I-Cenário Base'!$F$10*0.75+'I-Cenário Base'!$F$11*0.5+'I-Cenário Base'!$F$12+'I-Cenário Base'!$F$13+'I-Cenário Base'!$F$22+'I-Cenário Base'!$F$23*0.75)*PRODUCT('V-Parâmetros'!$M7:P7)*0.37) -> 748.7518077 | G19: =('III-Cenário Ajustado'!F10*0.75+'III-Cenário Ajustado'!F11*0.5+'III-Cenário Ajustado'!F12+'III-Cenário Ajustado'!F13+'III-Cenário Ajustado'!F22+'III-Cenário Ajustado'!F23*0.75)*0.37-(('I-Cenário Base'!$F$10*0.75+'I-Cenário Base'!$F$11*0.5+'I-Cenário Base'!$F$12+'I-Cenário Base'!$F$13+'I-Cenário Base'!$F$22+'I-Cenário Base'!$F$23*0.75)*PRODUCT('V-Parâmetros'!$M7:Q7)*0.37) -> 942.7035547 | H19: =('III-Cenário Ajustado'!G10*0.75+'III-Cenário Ajustado'!G11*0.5+'III-Cenário Ajustado'!G12+'III-Cenário Ajustado'!G13+'III-Cenário Ajustado'!G22+'III-Cenário Ajustado'!G23*0.75)*0.37-(('I-Cenário Base'!$F$10*0.75+'I-Cenário Base'!$F$11*0.5+'I-Cenário Base'!$F$12+'I-Cenário Base'!$F$13+'I-Cenário Base'!$F$22+'I-Cenário Base'!$F$23*0.75)*PRODUCT('V-Parâmetros'!$M7:R7)*0.37) -> 1265.05088 | I19: =('III-Cenário Ajustado'!H10*0.75+'III-Cenário Ajustado'!H11*0.5+'III-Cenário Ajustado'!H12+'III-Cenário Ajustado'!H13+'III-Cenário Ajustado'!H22+'III-Cenário Ajustado'!H23*0.75)*0.37-(('I-Cenário Base'!$F$10*0.75+'I-Cenário Base'!$F$11*0.5+'I-Cenário Base'!$F$12+'I-Cenário Base'!$F$13+'I-Cenário Base'!$F$22+'I-Cenário Base'!$F$23*0.75)*PRODUCT('V-Parâmetros'!$M7:S7)*0.37) -> 1625.144795 | J19: =('III-Cenário Ajustado'!I10*0.75+'III-Cenário Ajustado'!I11*0.5+'III-Cenário Ajustado'!I12+'III-Cenário Ajustado'!I13+'III-Cenário Ajustado'!I22+'III-Cenário Ajustado'!I23*0.75)*0.37-(('I-Cenário Base'!$F$10*0.75+'I-Cenário Base'!$F$11*0.5+'I-Cenário Base'!$F$12+'I-Cenário Base'!$F$13+'I-Cenário Base'!$F$22+'I-Cenário Base'!$F$23*0.75)*PRODUCT('V-Parâmetros'!$M7:T7)*0.37) -> 1995.926206 | K19: =('III-Cenário Ajustado'!J10*0.75+'III-Cenário Ajustado'!J11*0.5+'III-Cenário Ajustado'!J12+'III-Cenário Ajustado'!J13+'III-Cenário Ajustado'!J22+'III-Cenário Ajustado'!J23*0.75)*0.37-(('I-Cenário Base'!$F$10*0.75+'I-Cenário Base'!$F$11*0.5+'I-Cenário Base'!$F$12+'I-Cenário Base'!$F$13+'I-Cenário Base'!$F$22+'I-Cenário Base'!$F$23*0.75)*PRODUCT('V-Parâmetros'!$M7:U7)*0.37) -> 2407.231408
A20: Despesas custeadas com recursos de transf. da União com aplicações vinculadas (LCP 159, Art. 2º, §4º, inciso V) | B20: 1189.115918 | C20: 1020.75786 | D20: 1864.154914 | E20: =D20*'V-Parâmetros'!O7 -> 1927.536181 | F20: =E20*'V-Parâmetros'!P7 -> 1987.482556 | G20: =F20*'V-Parâmetros'!Q7 -> 2048.895767 | H20: =G20*'V-Parâmetros'!R7 -> 2110.36264 | I20: =H20*'V-Parâmetros'!S7 -> 2173.67352 | J20: =I20*'V-Parâmetros'!T7 -> 2238.883725 | K20: =J20*'V-Parâmetros'!U7 -> 2306.050237
A21: DESPESA PRIMÁRIA PARA APURAÇÃO DA LIMITAÇÃO DE DESPESAS = (s) - (t) - (u) - (v) | B21: =B10-B11-B15-B16 -> 29565.21662 | C21: 31124.85962 | D21: 32793.97923 | E21: 33908.97452 | F21: 34963.54363 | G21: 36043.91713 | H21: 37125.23464 | I21: 38238.99168 | J21: 39386.16143 | K21: 40567.74627
A22: LIMITAÇÃO DE DESPESAS | C22: =$B21*PRODUCT('V-Parâmetros'!$M7:M7) -> 31277.04266 | D22: =$B21*PRODUCT('V-Parâmetros'!$M7:N7) -> 32793.97923 | E22: =$B21*PRODUCT('V-Parâmetros'!$M7:O7) -> 33908.97452 | F22: =$B21*PRODUCT('V-Parâmetros'!$M7:P7) -> 34963.54363 | G22: =$B21*PRODUCT('V-Parâmetros'!$M7:Q7) -> 36043.91713 | H22: =$B21*PRODUCT('V-Parâmetros'!$M7:R7) -> 37125.23464 | I22: =$B21*PRODUCT('V-Parâmetros'!$M7:S7) -> 38238.99168 | J22: =$B21*PRODUCT('V-Parâmetros'!$M7:T7) -> 39386.16143 | K22: =$B21*PRODUCT('V-Parâmetros'!$M7:U7) -> 40567.74627
A23: VERIFICAÇÃO DO EQUILÍBRIO
A24: Critério I: Resultado primário e serviço da dívida
A25: Resultado Primário | C25: ='III-Cenário Ajustado'!B95 -> 2105.880606 | D25: ='III-Cenário Ajustado'!C95 -> 410.4816286 | E25: ='III-Cenário Ajustado'!D95 -> 108.2526219 | F25: ='III-Cenário Ajustado'!E95 -> 755.9526846 | G25: ='III-Cenário Ajustado'!F95 -> 853.5289545 | H25: ='III-Cenário Ajustado'!G95 -> 1498.571371 | I25: ='III-Cenário Ajustado'!H95 -> 3146.556875 | J25: ='III-Cenário Ajustado'!I95 -> 3988.437956 | K25: ='III-Cenário Ajustado'!J95 -> 4685.265733
A26: Pagamento de passivos não financeiros (Portaria STN nº 10.464, Art. 41, Inciso II) | C26: =SUM(C27:C29) -> 992.5028366 | D26: 1819.792692 | E26: 1662.592226 | F26: 1713.508135 | G26: 1772.544485 | H26: 1894.823174 | I26: 1027.111379 | J26: 1060.338058 | K26: 1094.598264
A27: Sentenças judiciais | C27: ='III-Cenário Ajustado'!B50+'III-Cenário Ajustado'!B55+'III-Cenário Ajustado'!B60+'III-Cenário Ajustado'!B64 -> 992.5028366 | D27: =D12 -> 1611.643682 | E27: =E12 -> 1447.366149 | F27: 1491.588527 | G27: 1543.767561 | H27: 1659.182942 | I27: 784.4019412 | J27: 810.3473366 | K27: 837.1078207
A28: Recomposição de fundos de reserva de depósitos judiciais e administrativos | D28: =D13 -> 208.1490104 | E28: =E13 -> 215.2260768 | F28: 221.9196077 | G28: 228.7769236 | H28: 235.6402313 | I28: 242.7094383 | J28: 249.9907214 | K28: 257.4904431
A29: Outros
A30: Receitas não computadas conforme inciso III do art. 41 da Portaria STN nº 10.464 | C30: =SUM(C31:C33) -> 1699.759298 | D30: 1241.96 | E30: 0 | F30: 348.44 | G30: 0 | H30: 0 | I30: 0 | J30: 0 | K30: 0
A32: Incluir uma linha para cada receita extraordinária não computada no cálculo do resultado primário para fins de apuração do equilíbrio | C32: 1699.759298 | D32: =545.14+696.82 -> 1241.96 | F32: 348.44
A34: Despesas não computadas conforme inciso III do art. 41 da Portaria STN nº 10.464 | C34: =SUM(C35:C37) -> 0 | D34: =SUM(D35:D37) -> 0 | E34: 0 | F34: 0 | G34: 0 | H34: 0 | I34: 0 | J34: 0 | K34: 0
A36: Incluir uma linha para cada despesa extraordinária não computada no cálculo do resultado primário para fins de apuração do equilíbrio
A38: Resultado primário para fins de apuração do equilíbrio | C38: =C25+C26-C30+C34 -> 1398.624145 | D38: 988.3143206 | E38: 1770.844848 | F38: 2121.020819 | G38: 2626.073439 | H38: 3393.394544 | I38: 4173.668255 | J38: 5048.776014 | K38: 5779.863997
A39: Serviço da dívida por competência | C39: =4968781504.89/1000000 -> 4968.781505 | D39: 2398.761596 | E39: 2526.188633 | F39: 2781.343823 | G39: 2862.74231 | H39: 2950.917025 | I39: 2837.709891 | J39: 2780.132677 | K39: 2779.527962
A40: Amortizações extraordinárias a deduzir | C40: =2543993648.53/1000000 -> 2543.993649
A41: Serviço da dívida por competência para apuração do equilíbrio | C41: =C39-C40 -> 2424.787856 | D41: =D39-D40 -> 2398.761596 | E41: =E39-E40 -> 2526.188633 | F41: 2781.343823 | G41: 2862.74231 | H41: 2950.917025 | I41: 2837.709891 | J41: 2780.132677 | K41: =K39-K40 -> 2779.527962
A42: Critério II: Estoque de Restos a Pagar
A43: Aumento do estoque de restos a pagar | C43: ='III-Cenário Ajustado'!B85-'I-Cenário Base'!F85 -> -1543.1901 | D43: ='III-Cenário Ajustado'!C85-'III-Cenário Ajustado'!B85 -> -485.2343031 | E43: ='III-Cenário Ajustado'!D85-'III-Cenário Ajustado'!C85 -> 7.068794498 | F43: ='III-Cenário Ajustado'!E85-'III-Cenário Ajustado'!D85 -> 50.26855004 | G43: ='III-Cenário Ajustado'!F85-'III-Cenário Ajustado'!E85 -> 91.969213 | H43: ='III-Cenário Ajustado'!G85-'III-Cenário Ajustado'!F85 -> 94.05855902 | I43: ='III-Cenário Ajustado'!H85-'III-Cenário Ajustado'!G85 -> 3.563808801 | J43: ='III-Cenário Ajustado'!I85-'III-Cenário Ajustado'!H85 -> 50.33515735 | K43: ='III-Cenário Ajustado'!J85-'III-Cenário Ajustado'!I85 -> 22.48874028
A44: Estoque de restos a pagar | D44: ='III-Cenário Ajustado'!C85 -> 1846.310902 | E44: ='III-Cenário Ajustado'!D85 -> 1853.379696 | F44: ='III-Cenário Ajustado'!E85 -> 1903.648246 | G44: ='III-Cenário Ajustado'!F85 -> 1995.617459 | H44: ='III-Cenário Ajustado'!G85 -> 2089.676018 | I44: ='III-Cenário Ajustado'!H85 -> 2093.239827 | J44: ='III-Cenário Ajustado'!I85 -> 2143.574985 | K44: ='III-Cenário Ajustado'!J85 -> 2166.063725
A45: Estoque de restos a pagar não primários
A46: Estoque de restos a pagar primários / Receita corrente líquida (XXXV/XXIX) | C46: =(C44-C45)/'III-Cenário Ajustado'!B70 -> 0 | D46: =(D44-D45)/'III-Cenário Ajustado'!C70 -> 0.04946751184 | E46: =(E44-E45)/'III-Cenário Ajustado'!D70 -> 0.04997649492 | F46: =(F44-F45)/'III-Cenário Ajustado'!E70 -> 0.04912765381 | G46: =(G44-G45)/'III-Cenário Ajustado'!F70 -> 0.05019640644 | H46: =(H44-H45)/'III-Cenário Ajustado'!G70 -> 0.05010419398 | I46: =(I44-I45)/'III-Cenário Ajustado'!H70 -> 0.04762183019 | J46: =(J44-J45)/'III-Cenário Ajustado'!I70 -> 0.04631922145 | K46: =(K44-K45)/'III-Cenário Ajustado'!J70 -> 0.04461573994

Sheet V-Parâmetros
A1: PLANO DE RECUPERAÇÃO FISCAL
A2: Anexo V - Informações Auxiliares
A3: Parâmetros Utilizados nas Projeções
M4: Projeção | R4: Extrapolação
B5: 2011 | C5: 2012 | D5: 2013 | E5: 2014 | F5: 2015 | G5: 2016 | H5: 2017 | I5: 2018 | J5: 2019 | K5: 2020 | L5: 2021 | M5: 2022 | N5: 2023 | O5: 2024 | P5: 2025 | Q5: 2026 | R5: 2027 | S5: 2028 | T5: 2029 | U5: 2030 | V5: 2031 | W5: 2032 | X5: Fontes
A6: IPCA (% a.a.) | B6: 0.065 | C6: 0.0584 | D6: 0.0591 | E6: 0.0641 | F6: 0.1067 | G6: 0.0629 | H6: 0.0295 | I6: 0.0375 | J6: 0.04306151617 | K6: 0.0452 | L6: 0.1006 | M6: 0.0579 | N6: 0.0485 | O6: 0.034 | P6: 0.0311 | Q6: 0.0309 | R6: 0.03 | S6: =R6 -> 0.03 | T6: =S6 -> 0.03 | U6: 0.03 | X6: SPE
A7: IPCA (1+% a.a.) | B7: =1+B6 -> 1.065 | C7: =1+C6 -> 1.0584 | D7: 1.0591 | E7: 1.0641 | F7: 1.1067 | G7: 1.0629 | H7: 1.0295 | I7: 1.0375 | J7: 1.043061516 | K7: 1.0452 | L7: 1.1006 | M7: 1.0579 | N7: 1.0485 | O7: 1.034 | P7: 1.0311 | Q7: 1.0309 | R7: 1.03 | S7: 1.03 | T7: 1.03 | U7: 1.03 | X7: SPE
A8: IGP-DI (% a.a.) | B8: 0.051 | C8: 0.08096678165 | D8: 0.05518366406 | E8: 0.03783593444 | F8: 0.1070109898 | G8: 0.07182591194 | H8: -0.00418532887 | I8: 0.07099355972 | J8: 0.07695936316 | K8: 0.2308 | L8: 0.1774 | M8: 0.0503 | N8: -0.03 | O8: 0.04 | P8: 0.038 | Q8: 0.038 | R8: 0.038 | S8: =R8 -> 0.038 | T8: 0.038 | U8: 0.038 | X8: SPE
A9: Deflator (% a.a.) | B9: 0.0832 | C9: 0.07943126942 | D9: 0.07504564532 | E9: 0.07846709743 | F9: 0.07566175013 | G9: 0.0807 | H9: 0.0366 | I9: 0.0449 | J9: 0.0427 | K9: 0.0479 | L9: 0.111 | M9: 0.0827 | N9: 0.0487 | O9: 0.0392 | P9: 0.0405 | Q9: 0.0387 | R9: 0.0379 | S9: =R9 -> 0.0379 | T9: 0.0379 | U9: 0.0379 | X9: SPE
A10: PIB real Nacional (% a.a.) | B10: 0.0397 | C10: 0.0192 | D10: 0.03 | E10: 0.005 | F10: -0.0354716227 | G10: -0.03304672123 | H10: 0.0132 | I10: 0.0178 | J10: 0.0141 | K10: -0.0406 | L10: 0.0462 | M10: 0.029 | N10: 0.0316 | O10: 0.023 | P10: 0.0278 | Q10: 0.0241 | R10: 0.026 | S10: =R10 -> 0.026 | T10: 0.026 | U10: 0.026 | X10: SPE
A11: Selic (% a.a. acum ano) | B11: 0.1162462937 | C11: 0.08501905747 | D11: 0.08229101427 | E11: 0.1090720752 | F11: 0.1327626288 | G11: 0.1401857771 | H11: 0.09939818679 | I11: 0.06428977221 | J11: 0.05903753938 | K11: 0.02635318563 | L11: 0.0391 | M11: 0.1234 | N11: 0.1311 | O11: 0.0949 | P11: 0.0782 | Q11: 0.0707 | R11: 0.0706 | S11: =R11 -> 0.0706 | T11: 0.0706 | U11: 0.0706 | X11: SPE
A12: Dólar (fim de período) | B12: 1.8758 | C12: 2.0435 | D12: 2.3426 | E12: 2.6562 | F12: 3.9048 | G12: 3.3523 | H12: 3.2919 | I12: 3.8851 | J12: 4.0307 | K12: 5.2 | L12: 5.58 | M12: 5.22 | N12: 5 | O12: 5.02 | P12: 5.1 | Q12: 5.15 | R12: 5.2 | S12: =R12 -> 5.2 | T12: 5.2 | U12: 5.2 | X12: SPE
A13: Dólar (média ano) | B13: 1.673792 | C13: 1.95496494 | D13: 2.160505138 | E13: 2.354518182 | F13: 3.338696 | G13: 3.484976305 | H13: 3.192008333 | I13: 3.65445 | J13: 3.945083333 | K13: 5.16 | L13: 5.4 | M13: 5.16 | N13: 4.99 | O13: 5 | P13: 5.06 | Q13: 5.13 | R13: 5.18 | S13: =R13 -> 5.18 | T13: 5.18 | U13: 5.18 | X13: SPE

Sheet V-Parâmetros (2) (hidden)
A1: PLANO DE RECUPERAÇÃO FISCAL
A2: Anexo V - Informações Auxiliares
A3: Parâmetros Utilizados nas Projeções
K4: Projeção | O4: Extrapolação
B5: 2011 | C5: 2012 | D5: 2013 | E5: 2014 | F5: 2015 | G5: 2016 | H5: 2017 | I5: 2018 | J5: 2019 | K5: 2020 | L5: 2021 | M5: 2022 | N5: 2023 | O5: 2024 | P5: 2025 | Q5: 2026 | R5: 2027 | S5: 2028 | T5: 2029 | U5: 2030 | V5: Fontes
A6: IPCA (% a.a.) | B6: 0.065 | C6: 0.0584 | D6: 0.0591 | E6: 0.0641 | F6: 0.1067 | G6: 0.0629 | H6: 0.0295 | I6: 0.0375 | J6: 0.04306151617 | K6: 0.0183185979 | L6: 0.02938587787 | M6: 0.03498510776 | N6: 0.03248513774 | O6: 0.03248513774 | P6: 0.03248513774 | Q6: 0.03248513774 | R6: 0.03248513774 | S6: 0.03248513774 | T6: 0.03248513774 | U6: 0.03248513774 | V6: SPE
A7: IPCA (1+% a.a.) | B7: =1+B6 -> 1.065 | C7: =1+C6 -> 1.0584 | D7: 1.0591 | E7: 1.0641 | F7: 1.1067 | G7: 1.0629 | H7: 1.0295 | I7: 1.0375 | J7: 1.043061516 | K7: 1.018318598 | L7: 1.029385878 | M7: 1.034985108 | N7: 1.032485138 | O7: 1.032485138 | P7: 1.032485138 | Q7: 1.032485138 | R7: 1.032485138 | S7: 1.032485138 | T7: 1.032485138 | U7: 1.032485138 | V7: SPE
A8: IGP-DI (% a.a.) | B8: 0.051 | C8: 0.08096678165 | D8: 0.05518366406 | E8: 0.03783593444 | F8: 0.1070109898 | G8: 0.07182591194 | H8: -0.00418532887 | I8: 0.07099355972 | J8: 0.07695936316 | K8: 0.1301868977 | L8: 0.0417781851 | M8: 0.03998545851 | N8: 0.03498551679 | O8: 0.03498551679 | P8: 0.03498551679 | Q8: 0.03498551679 | R8: 0.03498551679 | S8: 0.03498551679 | T8: 0.03498551679 | U8: 0.03498551679 | V8: SPE
A9: Deflator (% a.a.) | B9: 0.0832 | C9: 0.07943126942 | D9: 0.07504564532 | E9: 0.07846709743 | F9: 0.07566175013 | G9: 0.08138286432 | H9: 0.035 | I9: 0.031 | J9: 0.0414011848 | K9: 0.03976830659 | L9: 0.03652213936 | M9: 0.04064592537 | N9: 0.04069821803 | O9: 0.04069821803 | P9: 0.04069821803 | Q9: 0.04069821803 | R9: 0.04069821803 | S9: 0.04069821803 | T9: 0.04069821803 | U9: 0.04069821803 | V9: SPE
A10: PIB Nacional (% a.a.) | B10: 0.0397 | C10: 0.0192 | D10: 0.03 | E10: 0.005 | F10: -0.0354716227 | G10: -0.03304672123 | H10: 0.01062169029 | I10: 0.01117639932 | J10: 0.01136585573 | K10: -0.04695658596 | L10: 0.03201560551 | M10: 0.02501256929 | N10: 0.02502311945 | O10: 0.02502311945 | P10: 0.02502311945 | Q10: 0.02502311945 | R10: 0.02502311945 | S10: 0.02502311945 | T10: 0.02502311945 | U10: 0.02502311945 | V10: SPE
A11: Selic (% a.a. acum ano) | B11: 0.1162462937 | C11: 0.08501905747 | D11: 0.08229101427 | E11: 0.1090720752 | F11: 0.1327626288 | G11: 0.1401857771 | H11: 0.09939818679 | I11: 0.06428977221 | J11: 0.05903753938 | K11: 0.02635318563 | L11: 0.02039095067 | M11: 0.03552669496 | N11: 0.05064307982 | O11: 0.05064307982 | P11: 0.05064307982 | Q11: 0.05064307982 | R11: 0.05064307982 | S11: 0.05064307982 | T11: 0.05064307982 | U11: 0.05064307982 | V11: SPE
A12: Dólar (fim de período) | B12: 1.8758 | C12: 2.0435 | D12: 2.3426 | E12: 2.6562 | F12: 3.9048 | G12: 3.3523 | H12: 3.2919 | I12: 3.8851 | J12: 4.0307 | K12: 5.25 | L12: 5 | M12: 4.9 | N12: 4.85 | O12: 5.007552918 | P12: 5.170223964 | Q12: 5.007552918 | R12: 5.170223964 | S12: 5.007552918 | T12: 5.170223964 | U12: 5.007552918 | V12: SPE
A13: Dólar (média ano) | B13: 1.673792 | C13: 1.95496494 | D13: 2.160505138 | E13: 2.354518182 | F13: 3.338696 | G13: 3.484976305 | H13: 3.192008333 | I13: 3.65445 | J13: 3.945083333 | K13: 5.122345833 | L13: 5.104583333 | M13: 4.866666667 | N13: 4.875 | O13: 5.045554394 | P13: 5.222075722 | Q13: 5.045554394 | R13: 5.222075722 | S13: 5.045554394 | T13: 5.222075722 | U13: 5.045554394 | V13: SPE
A14: Tx de Cresc. Real - Desp. Pessoal Ativo | B14: 0.04268718669 | C14: 0.08130518949 | D14: 0.1037997141 | E14: 0.04268499868 | F14: -0.0466164341 | G14: -0.08893338659 | H14: 0.01100128607 | I14: 0.03624538331 | J14: -0.06515140147 | K14: =AVERAGE(B14:J14) -> 0.01300250402 | L14: =K14 -> 0.01300250402 | M14: =L14 -> 0.01300250402 | N14: 0.01300250402 | O14: 0.01300250402 | P14: 0.01300250402 | Q14: 0.01300250402 | R14: 0.01300250402 | S14: 0.01300250402 | T14: 0.01300250402 | U14: 0.01300250402 | V14: PAF
A15: Tx de Cresc. - Pop Idosa | B15: 0.03211040561 | C15: 0.03426607283 | D15: 0.0358332783 | E15: 0.03670635975 | F15: 0.03713468838 | G15: 0.03761652157 | H15: 0.03801651874 | I15: 0.03835028933 | J15: 0.03872044246 | K15: 0.03897001421 | L15: 0.03905010854 | M15: 0.03902000114 | N15: 0.03856336347 | O15: 0.03761816759 | P15: 0.03636654195 | Q15: 0.03761816759 | R15: 0.03636654195 | S15: 0.03761816759 | T15: 0.03636654195 | U15: 0.03761816759 | V15: IBGE

Sheet VI-Referência
A1: PLANO DE RECUPERAÇÃO FISCAL
A2: Mapeamento de Contas RRF e Instruções
A4: Mapeamento de Contas RRF e Instruções
A6: ACIMA DA LINHA - RECEITAS E DESPESAS | B6: .
A7: Receita Total (I) = (II+IX)
A8: Receitas Correntes (II) = (III+IV+V+VI+VII-IIa) | B8: NR: 1.0.0.0.00.0.0 + NR: 7.0.0.0.00.0.0 (TODAS AS FR EXCETO FR: 800 + FR: 801 + FR: 802)
A9: Receitas Tributárias (III) | B9: NR: 1.1.0.0.00.0.0 + NR: 7.1.0.0.00.0.0 - Valores brutos, sem dedução das transferências ao FUNDEB - a serem lançadas na linha (IIa) - e das transferências aos Municípios, que devem ser lançadas na despesa.
A10: ICMS | B10: NR: 1.1.1.4.50.1.0 + NR: 1.1.1.4.50.2.0 + NR: 7.1.1.4.50.1.0 + NR: 7.1.1.4.50.2.0
A11: IPVA | B11: NR: 1.1.1.2.51.0.0 + NR: 7.1.1.2.51.0.0
A12: ITCD | B12: NR: 1.1.1.2.52.0.0 + NR: 7.1.1.2.52.0.0
A13: IRRF | B13: NR: 1.1.1.3.03.0.0 + NR: 7.1.1.3.03.0.0
A14: Outras Receitas Tributárias | B14: [NR: 1.1.0.0.00.0.0 (-) NR: 1.1.1.4.50.1.0 (-) NR: 1.1.1.4.50.2.0 (-) NR: 1.1.1.2.51.0.0 (-) NR: 1.1.1.2.52.0.0 (-) NR: 1.1.1.3.03.0.0] + [NR: 7.1.0.0.00.0.0 (-) NR: 7.1.1.4.50.1.0 (-) NR: 7.1.1.4.50.2.0 (-) NR: 7.1.1.2.51.0.0 (-) NR: 7.1.1.2.52.0.0 (-) NR: 7.1.1.3.03.0.0]
A15: Receitas de Contribuições (IV) | B15: NR: 1.2.0.0.00.0.0 + NR: 7.2.0.0.00.0.0; (TODAS FR EXCETO FR: 800 + FR: 801 + FR: 802)
A16: Receitas Previdenciárias (a) | B16: NR: 1.2.1.5.01.0.0 + NR: 1.2.1.5.03.0.0 + NR: 1.2.1.5.04.0.0 + NR: 1.2.1.5.52.0.0 + NR: 1.2.1.5.55.0.0 + NR: 1.2.1.5.56.0.0 + NR: 1.2.1.5.02.0.0 + NR: 1.2.1.5.50.0.0 + NR: 1.2.1.5.51.0.0 + NR: 1.2.1.5.53.0.0 + NR: 1.2.1.5.54.0.0 + NR: 7.2.1.5.01.0.0 + NR: 7.2.1.5.03.0.0 + NR: 7.2.1.5.04.0.0 + NR: 7.2.1.5.52.0.0 + NR: 7.2.1.5.55.0.0 + NR: 7.2.1.5.56.0.0 + NR: 7.2.1.5.02.0.0 + NR: 7.2.1.5.50.0.0 + NR: 7.2.1.5.51.0.0 + NR: 7.2.1.5.53.0.0 + NR: 7.2.1.5.54.0.0
A17: Outras Receitas de Contribuições | B17: [NR: 1.2.0.0.00.0.0 (-) NR: 1.2.1.5.01.0.0 (-) NR: 1.2.1.5.03.0.0 (-) NR: 1.2.1.5.04.0.0 (-) NR: 1.2.1.5.52.0.0 (-) NR: 1.2.1.5.55.0.0 (-) NR: 1.2.1.5.56.0.0 (-) NR: 1.2.1.5.02.0.0 (-) NR: 1.2.1.5.50.0.0 (-) NR: 1.2.1.5.51.0.0 (-) NR: 1.2.1.5.53.0.0 (-) NR: 1.2.1.5.54.0.0] + [NR: 7.2.0.0.00.0.0 (-) NR: 7.2.1.5.01.0.0 (-) NR: 7.2.1.5.03.0.0 (-) NR: 7.2.1.5.04.0.0 (-) NR: 7.2.1.5.52.0.0 (-) NR: 7.2.1.5.55.0.0 (-) NR: 7.2.1.5.56.0.0 (-) NR: 7.2.1.5.02.0.0 (-) NR: 7.2.1.5.50.0.0 (-) NR: 7.2.1.5.51.0.0 (-) NR: 7.2.1.5.53.0.0 (-) NR: 7.2.1.5.54.0.0]
A18: Receita Patrimonial (V) | B18: NR: 1.3.0.0.00.0.0 + NR: 7.3.0.0.00.0.0; (TODAS FR EXCETO FR: 800 + FR: 801 + FR: 802)
A19: Receita de Aplicações Financeiras (b) | B19: NR: 1.3.2.1.01.0.0 + NR: 1.3.2.1.02.0.0 + NR: 1.3.2.1.03.0.0 + NR: 1.3.2.1.04.0.0 + NR: 1.3.2.1.05.0.0 + NR: 1.3.2.9.99.0.0 + NR: 7.3.2.1.01.0.0 + NR: 7.3.2.1.02.0.0 + NR: 7.3.2.1.03.0.0 + NR: 7.3.2.1.04.0.0 + NR: 7.3.2.1.05.0.0 + NR: 7.3.2.9.99.0.0
A20: Outras Receitas Patrimoniais | B20: [(NR: 1.3.0.0.00.0.0 (-) NR: 1.3.2.1.01.0.0 (-) NR: 1.3.2.1.02.0.0 (-) NR: 1.3.2.1.03.0.0 (-) NR: 1.3.2.1.04.0.0 (-) NR: 1.3.2.1.05.0.0 (-) NR: 1.3.2.9.99.0.0) + (NR: 7.3.0.0.00.0.0 (-) NR: 7.3.2.1.01.0.0 (-) NR: 7.3.2.1.02.0.0 (-) NR: 7.3.2.1.03.0.0 (-) NR: 7.3.2.1.04.0.0 (-) NR: 7.3.2.1.05.0.0 (-) NR: 7.3.2.9.99.0.0)]
A21: Transferências Correntes (VI) | B21: (NR: 1.7.0.0.00.0.0 + NR: 7.7.0.0.00.0.0); (TODAS FR EXCETO FR: 800 + FR: 801 + FR: 802) - Valores brutos, sem dedução das transferências ao FUNDEB - a serem lançadas na linha (IIa) - e das transferências aos Municípios, que devem ser lançadas na despesa.
A22: Cota-Parte do FPE | B22: NR: 1.7.1.1.50.0.0 + NR: 7.7.1.1.50.0.0
A23: Cota-Parte do IPI-Exp. (LC nº 61/1989) | B23: NR: 1.7.1.1.53.0.0 + NR: 7.7.1.1.53.0.0
A24: Transferências do FUNDEB | B24: NR: 1.7.1.5.00.0.0 + NR: 1.7.5.1.00.0.0 + NR: 7.7.1.5.00.0.0 + NR: 7.7.5.1.00.0.0
A25: Royalties e Participações Especiais | B25: NR: 1.7.1.2.52.0.0 + NR: 7.7.1.2.52.0.0
A26: Outras Transferências Correntes | B26: [(NR: 1.7.0.0.00.0.0 (-) NR: 1.7.1.1.50.0.0 (-) NR: 1.7.1.1.53.0.0 (-) NR: 1.7.1.5.00.0.0 (-) NR: 1.7.5.1.00.0.0) + (NR: 7.7.0.0.00.0.0 (-) NR: 7.7.1.1.50.0.0 (-) NR: 7.7.1.1.53.0.0 (-) NR: 7.7.1.5.00.0.0 (-) NR: 7.7.5.1.00.0.0 (-) NR: 1.7.1.2.52.0.0 (-) NR: 7.7.1.2.52.0.0)]
A27: Demais Receitas Correntes (VII) | B27: NR: 1.4.0.0.00.0.0 + NR: 1.5.0.0.00.0.0 + NR: 1.6.0.0.00.0.0 + NR: 1.9.0.0.00.0.0 + NR: 7.4.0.0.00.0.0 + NR: 7.5.0.0.00.0.0 + NR: 7.6.0.0.00.0.0 + NR: 7.9.0.0.00.0.0
A28: Outras Receitas Financeiras (c) | B28: NR: 1.6.4.1.01.0.0 + NR: 1.6.4.1.03.0.0 + NR: 1.9.2.2.01.2.0 + NR: 1.9.2.2.06.4.0 + NR: 1.9.4.4.00.0.0 + NR: 1.9.9.9.11.0.0 + NR: 1.9.9.9.99.3.0 + NR: 7.6.4.1.01.0.0 + NR: 7.6.4.1.03.0.0 + NR: 7.9.2.2.01.2.0 + NR: 7.9.2.2.06.4.0 + NR: 7.9.4.4.00.0.0 + NR: 7.9.9.9.11.0.0 + NR: 7.9.9.9.99.3.0
A29: Compensações Financeiras entre o RGPS e o RPPS (d) | B29: NR: 1.9.9.9.03.0.0 + NR: 7.9.9.9.03.0.0
A30: Receitas Correntes Restantes | B30: [NR: 1.4.0.0.00.0.0 + NR: 1.5.0.0.00.0.0 + (NR: 1.6.0.0.00.0.0 (-) NR: 1.6.4.1.01.0.0 (-) NR: 1.6.4.1.03.0.0) + (NR: 1.9.0.0.00.0.0 (-) NR: 1.9.2.2.01.2.0 (-) NR: 1.9.2.2.06.4.0 (-) NR: 1.9.4.4.00.0.0 (-) NR: 1.9.9.9.11.0.0 (-) NR: 1.9.9.9.99.3.0 (-) NR: 1.9.9.9.03.0.) + NR: 7.4.0.0.00.0.0 + NR: 7.5.0.0.00.0.0 + (NR: 7.6.0.0.00.0.0 (-) NR: 7.6.4.1.01.0.0 (-) NR: 7.6.4.1.03.0.0) + (NR: 7.9.0.0.00.0.0 (-) NR: 7.9.2.2.01.2.0 (-) NR: 7.9.2.2.06.4.0 (-) NR: 7.9.4.4.00.0.0 (-) NR: 7.9.9.9.11.0.0 (-) NR: 7.9.9.9.99.3.0 (-) NR: 7.9.9.9.03.0.0)]
A31: Deduções para formação do Fundeb (IIa)
A32: Receitas Primárias Correntes (VIII) = (II-b-c)
A33: Receitas de Capital (IX) = (X+XI+XII+XIII+XIV) | B33: NR: 2.0.0.0.00.0.0 + NR: 8.0.0.0.00.0.0; (TODAS AS FR EXCETO FR: 800 + FR: 801 + FR: 802)
A34: Operações de Crédito (X) | B34: NR: 2.1.0.0.00.0.0 + NR: 8.1.0.0.00.0.0; (TODAS AS FR EXCETO FR: 800 + FR: 801 + FR: 802)
A35: Amortização de Empréstimos (XI) | B35: NR: 2.3.0.0.00.0.0 + NR: 8.3.0.0.00.0.0; (TODAS AS FR EXCETO FR: 800 + FR: 801 + FR: 802)
A36: Alienação de Bens (XII) | B36: NR: 2.2.0.0.00.0.0 + NR: 8.2.0.0.00.0.0; (TODAS AS FR EXCETO FR: 800 + FR: 801 + FR: 802)
A37: Alienação de Bens Não Primária (e) | B37: NR: 2.2.1.1.01.0.0 + NR: 8.2.1.1.01.0.0 + NR: 2.2.1.1.02.0.0 + NR: 8.2.1.1.02.0.0
A38: Alienação de Bens Primária | B38: NR: 2.2.0.0.00.0.0 (-) NR: 2.2.1.1.01.0.0 (-) NR: 2.2.1.1.02.0.0 + NR: 8.2.0.0.00.0.0 (-) NR: 8.2.1.1.01.0.0 (-) NR: 8.2.1.1.02.0.0
A39: Transferências de Capital (XIII) | B39: NR: 2.4.0.0.00.0.0 + NR: 8.4.0.0.00.0.0; (TODAS AS FR EXCETO FR: 800 + FR: 801 + FR: 802)
A40: Outras Receitas de Capital (XIV) | B40: NR: 2.4.0.0.00.0.0 + NR: 8.4.0.0.00.0.0; (TODAS AS FR EXCETO FR: 800 + FR: 801 + FR: 802)
A41: Outras Receitas de Capital Não Primárias (f) | B41: NR: 2.9.2.0.00.0.0 + NR: 2.9.3.0.00.0.0 + NR: 2.9.4.0.00.0.0 + NR: 8.9.2.0.00.0.0 + NR: 8.9.3.0.00.0.0 + NR: 8.9.4.0.00.0.0
A42: Outras Receitas de Capital Primárias | B42: NR: 2.9.1.0.00.0.0 + NR: 2.9.9.0.00.0.0 + NR: 8.9.1.0.00.0.0 + NR: 8.9.9.0.00.0.0
A43: Receitas Primárias de Capital (XV) = (IX-X-XI-e-f)
A44: RECEITA PRIMÁRIA TOTAL (XVI) = (VIII+XV)
A45: Despesa Orçamentária (XVII) = (XVIII+XXIII)
A46: Despesas Correntes (XVIII) = (XIX+XX+XXI) | B46: ND: 3.0.00.00.00; (TODAS FR EXCETO FR: 800 + FR: 801 + FR: 802)
A47: Pessoal e Encargos Sociais (XIX) | B47: ND: 3.1.00.00.00; (TODAS FR EXCETO FR: 800 + FR: 801 + FR: 802)
A48: Ativo | B48: ND: 3.1.90.04.00 + ND: 3.1.90.07.00 + ND: 3.1.90.11.00 + ND: 3.1.90.12.00 + ND: 3.1.90.13.00 + ND: 3.1.90.16.00 + ND: 3.1.90.17.00 + ND: 3.1.90.67.00 + ND: 3.1.90.96.00 + ND: 3.1.90.99.00 + ND: 3.1.91.04.00 + ND: 3.1.91.08.00 + ND: 3.1.91.13.00 + ND: 3.1.91.96.00 + ND: 3.1.91.99.00
A49: Inativos e Pensionistas | B49: ND: 3.1.90.01.00 + ND: 3.1.90.03.00
A50: Sentenças Judiciais - Pessoal | B50: ND: 3.1.90.91.00 + ND: 3.1.91.91.00
A51: Outras Despesas com Pessoal | B51: ND: 3.1.00.00.00 (-) Ativo (-) Inativos e Pensionistas (-) Senteças Judiciais
A52: Juros e Encargos da Dívida (XX) | B52: ND: 3.2.00.00.00; (TODAS FR EXCETO FR: 800 + FR: 801 + FR: 802)
A53: Outras Despesas Correntes (XXI) | B53: ND: 3.3.00.00.00; (TODAS FR EXCETO FR: 800 + FR: 801 + FR: 802)
A54: Transferências Constitucionais e Legais (g) | B54: ND: 3.3.40.81.00 - As transferências aos Municípios devem ser lançadas aqui.
A55: Sentenças Judiciais - Outras Correntes | B55: ND: 3.3.XX.91.00
A56: Demais Despesas Correntes | B56: ND: 3.3.00.00.00 (-) Transferências Constitucionais e Legais (-) Sentenças Judiciais
A57: Despesas Primárias Correntes (XXII) = (XVIII-XX)
A58: Despesas de Capital (XXIII) = (XXIV+XXV+XXVI) | B58: ND: 4.0.00.00.00; (TODAS AS FR EXCETO FR: 800 + FR: 801 + FR: 802)
A59: Investimentos (XXIV) | B59: [ND: 4.4.00.00.00; (TODAS FR EXCETO FR: 800 + FR: 801 + FR: 802)] + CC 8.6.3.1.1.01.00 + 8.6.3.1.2.01.00
A60: Sentenças Judiciais - Investimentos | B60: ND: 4.4.XX.91.00
A61: Demais Investimentos | B61: ND: 4.4.00.00.00 (-) ND: 4.4.XX.91.00
A62: Inversões Financeiras (XXV) | B62: ND: 4.5.00.00.00; (TODAS FR EXCETO FR: 800 + FR: 801 + FR: 802)
A63: Inversões Financeiras Não Primárias (h) 1) | B63: ND: 4.5.XX.66.00 + ND: 4.5.90.92.66 + ND: 4.5.XX.64.00 + ND: 4.5.90.92.64 + ND: 4.5.XX.63.00 + ND: 4.5.90.92.63
A64: Sentenças Judiciais - Inversões | B64: ND: 4.5.XX.91.00
A65: Demais Inversões Financeiras Primárias | B65: ND: 4.5.00.00.00 (-) Inversões Financeiras Não Primárias (-) Sentenças Judiciais
A66: Amortização da Dívida (XXVI) | B66: ND: 4.6.00.00.00; (TODAS FR EXCETO FR: 800 + FR: 801 + FR: 802)
A67: Despesas Primárias de Capital (XXVII) = (XXIII-h-XXVI)
A68: DESPESA PRIMÁRIA ORÇAMENTÁRIA (XXVIII) = (XXII+XXVII)
A69: RECEITA CORRENTE LÍQUIDA (XXIX) = (II-a-d-g)
A70: RESTOS A PAGAR
A71: Inscrições de Restos a Pagar (XXX) = (i+k)
A72: Inscrição de RAP Processados (i)
A73: Inscrição de RAP Processados Primários (j)
A74: Inscrição de RAP Processados Não Primários
A75: Inscrição de RAP Não Processados (k)
A76: Inscrição de RAP Não Processados Primários (l)
A77: Inscrição de RAP Não Processados Não Primários
A78: Cancelamentos de Restos a Pagar (XXXI) = (m+n)
A79: Cancelamento de RAP Processados (m)
A80: Cancelamento de RAP Não Processados (n)
A81: Liquidação de Restos a Pagar Não Processados (XXXII)
A82: Pagamento de Restos a Pagar Primário (XXXIII) | B82: Considera o pagamento de RAPs primários, inclusive os processados e não processados liquidados no exercício
A83: Pagamento de Restos a Pagar Não Primário (XXXIV) | B83: Considera o pagamento de RAPs não primários, inclusive os processados e não processados liquidados no exercício
A84: ESTOQUE DE RESTOS A PAGAR (XXXV) = (XXXVI+XXXVII)
A85: Estoque de RAP Processados (XXXVI) = XXXVI(t-1) + (i-m+XXXII-XXXIII-XXXIV) | B85: A primeira célula (B85) deve ser preenchida com o dado realizado
A86: Estoque de RAP Não Processados (XXXVII) = XXXVII(t-1) + (k-n-XXXII) | B86: A primeira célula (B86) deve ser preenchida com o dado realizado
A87: ESTOQUE DE RESTOS A PAGAR / RECEITA CORRENTE LÍQUIDA (XXXV/XXIX)
A88: RAP Processados / RCL (XXXVI/XXIX)
A89: RAP Não Processados / RCL (XXXVII/XXIX)
A90: DESPESA PRIMÁRIA (XXXVIII) = (XXVIII-j-l+XXXIII)
A91: Demais Despesas Primárias (XXXIX) 2) | B91: Despesas que compõe o resultado primário por caixa, mas não transitam pelo orçamento
A92: DESPESA PRIMÁRIA TOTAL (XL) = (XXXVIII+XXXIX)
A93: RESULTADOS PRIMÁRIO E NOMINAL
A94: RESULTADO PRIMÁRIO (XLI) = (XVI-XL)
A95: Juros e Encargos da Dívida (XX)
A96: Amortização da Dívida (XXVI)
A97: Inversões Financeiras Não Primárias (h) 1)
A98: Receita de Aplicações Financeiras (b)
A99: Outras Receitas Financeiras (c)
A100: Outras Receitas de Capital Não Primárias (f)
A101: Amortização de Empréstimos (XI)
A102: Despesa Financeira Líquida (XLII) = (XX+XXVI+h-b-c-f-XI)
A103: NECESSIDADE DE FINANCIAMENTO (XLIII) = (XLII-XLI)
A104: Operações de Crédito (X)
A105: Alienação de Bens Não Primária (e)
A106: Fontes de Financiamento (XLIV) = (X+e)
A107: Outros Fluxos de Caixa (XLV) | B107: Fluxos que impactam o caixa, mas não transitam pelo orçamento (exceto as demais despesas primárias).
A108: FLUXO DE CAIXA (XLVI) = (XLIV-XLIII+XLV)
A109: 1) Corresponde ao somatório de Concessão de Empréstimos e Financiamentos, Aquisição de Título de Capital já Integralizado e Aquisição de Título de Crédito.
A110: 2) As Demais Despesas Primárias são despesas que compõem o resultado primário por caixa, mas não transitam pelo orçamento.
